Workbook

Sheet Feuil1
A1: 1 | B1: 8 | C1: 16 | AA1: 1 | AB1: 2 | AC1: 3 | AD1: 4 | AE1: 5 | AF1: 6 | AG1: 7 | AH1: 8 | AI1: 9 | AJ1: 10 | AK1: 11 | AL1: 12 | AM1: 13 | AN1: 14 | AO1: 15 | AP1: 16 | AQ1: 17 | AR1: 18 | AS1: 19 | AT1: 20 | AU1: 21 | AV1: 22 | AW1: 23 | AX1: 24 | AZ1: =COUNTIF(AZ9:AZ4802,A8) -> 0 | BA1: =COUNTIF(BA9:BA4802,A8) -> 0 | BB1: =COUNTIF(BB9:BB4802,A8) -> 1384 | BC1: =COUNTIF(BC9:BC4802,A8) -> 562 | BD1: =COUNTIF(BD9:BD4802,A8) -> 225 | BE1: =COUNTIF(BE9:BE4802,A8) -> 94 | BF1: =COUNTIF(BF9:BF4802,A8) -> 37 | BG1: =COUNTIF(BG9:BG4802,A8) -> 17 | BH1: =COUNTIF(BH9:BH4802,A8) -> 5 | BI1: =COUNTIF(BI9:BI4802,A8) -> 2 | BJ1: =COUNTIF(BJ9:BJ4802,A8) -> 0 | BK1: =COUNTIF(BK9:BK4802,A8) -> 0 | BL1: =COUNTIF(BL9:BL4802,A8) -> 1680 | BM1: =COUNTIF(BM9:BM4802,A8) -> 812 | BN1: =COUNTIF(BN9:BN4802,A8) -> 382 | BO1: =COUNTIF(BO9:BO4805,A8) -> 179 | BP1: =COUNTIF(BP9:BP4802,A8) -> 94 | BQ1: =COUNTIF(BQ9:BQ4802,A8) -> 45 | BR1: =COUNTIF(BR9:BR4802,A8) -> 19 | BS1: =COUNTIF(BS9:BS4802,A8) -> 10 | BT1: =COUNTIF(BT9:BT4802,A8) -> 0 | BU1: =COUNTIF(BU9:BU4802,A8) -> 0 | CI1: 3 | CJ1: 0.5740189445 | CK1: =COUNTIF(CK9:CK4802,A8) -> 2292 | CL1: =COUNTIF(CL9:CL4802,A8) -> 2588 | CM1: =CL1/C8 -> 0.6586917791 | CN1: 4
A2: 2 | B2: 9 | C2: 17 | AZ2: =COUNTIF(AZ9:AZ4803,A1) -> 5 | BA2: =COUNTIF(BA9:BA4803,A1) -> 0 | BB2: =COUNTIF(BB9:BB4803,A1) -> 2545 | BC2: =COUNTIF(BC9:BC4803,A1) -> 2047 | BD2: =COUNTIF(BD9:BD4803,A1) -> 1349 | BE2: =COUNTIF(BE9:BE4803,A1) -> 743 | BF2: =COUNTIF(BF9:BF4803,A1) -> 419 | BG2: =COUNTIF(BG9:BG4803,A1) -> 210 | BH2: =COUNTIF(BH9:BH4803,A1) -> 103 | BI2: =COUNTIF(BI9:BI4803,A1) -> 44 | BJ2: =COUNTIF(BJ9:BJ4803,A1) -> 14 | BK2: =COUNTIF(BK9:BK4803,A1) -> 5 | BL2: =COUNTIF(BL10:BL4803,A1) -> 2248 | BM2: =COUNTIF(BM9:BM4803,A1) -> 2206 | BN2: =COUNTIF(BN9:BN4803,A1) -> 1787 | BO2: =COUNTIF(BO9:BO4805,A1) -> 1247 | BP2: =COUNTIF(BP9:BP4803,A1) -> 828 | BQ2: =COUNTIF(BQ9:BQ4803,A1) -> 540 | BR2: =COUNTIF(BR9:BR4803,A1) -> 333 | BS2: =COUNTIF(BS9:BS4803,A1) -> 191 | BT2: =COUNTIF(BT9:BT4803,A1) -> 0 | BU2: =COUNTIF(BU9:BU4803,A1) -> 0 | CK2: =COUNTIF(CK9:CK4991,A1) -> 868 | CL2: =COUNTIF(CL9:CL4803,A1) -> 822
A3: 3 | B3: 10 | C3: 18 | AZ3: =COUNTIF(AZ9:AZ4804,A2) -> 109 | BA3: =COUNTIF(BA9:BA4804,A2) -> 0 | BB3: =BB2/C8 -> 0.6477475185 | BC3: =COUNTIF(BC9:BC4804,A2) -> 1320 | BD3: =COUNTIF(BD9:BD4804,A2) -> 1844 | BE3: =COUNTIF(BE9:BE4804,A2) -> 1857 | BF3: =COUNTIF(BF10:BF4804,A2) -> 1453 | BG3: =COUNTIF(BG9:BG4804,A2) -> 1057 | BH3: =COUNTIF(BH9:BH4804,A2) -> 689 | BI3: =COUNTIF(BI9:BI4804,A2) -> 435 | BJ3: =COUNTIF(BJ9:BJ4804,A2) -> 220 | BK3: =COUNTIF(BK9:BK4804,A2) -> 116 | BL3: =BL2/C8 -> 0.5721557648 | BM3: =COUNTIF(BM9:BM4804,A2) -> 911 | BN3: =COUNTIF(BN9:BN4804,A2) -> 1541 | BO3: =COUNTIF(BO9:BO4805,A2) -> 1932 | BP3: =COUNTIF(BP9:BP4804,A2) -> 1915 | BQ3: =COUNTIF(BQ9:BQ4804,A2) -> 1751 | BR3: =COUNTIF(BR9:BR4804,A2) -> 1441 | BS3: =COUNTIF(BS9:BS4804,A2) -> 1131 | BT3: =COUNTIF(BT9:BT4804,A2) -> 0 | BU3: =COUNTIF(BU9:BU4804,A2) -> 0 | CK3: =COUNTIF(CK9:CK4992,A2) -> 430 | CL3: =COUNTIF(CL9:CL4804,A2) -> 337
A4: 4 | B4: 11 | AZ4: =COUNTIF(AZ9:AZ4805,A3) -> 779 | BA4: =COUNTIF(BA9:BA4805,A3) -> 0 | BC4: =BC3/C8 -> 0.3359633495 | BD4: =COUNTIF(BD9:BD4805,A3) -> 511 | BE4: =COUNTIF(BE9:BE4805,A3) -> 1106 | BF4: =COUNTIF(BF9:BF4805,A3) -> 1602 | BG4: =COUNTIF(BG9:BG4805,A3) -> 1809 | BH4: =COUNTIF(BH9:BH4805,A3) -> 1732 | BI4: =COUNTIF(BI9:BI4805,A3) -> 1479 | BJ4: =COUNTIF(BJ9:BJ4805,A3) -> 1205 | BK4: =COUNTIF(BK9:BK4805,A3) -> 813 | BN4: =COUNTIF(BN9:BN4805,A3) -> 219 | BO4: =COUNTIF(BO9:BO4805,A3) -> 571 | BP4: =COUNTIF(BP9:BP4805,A3) -> 1092 | BQ4: =COUNTIF(BQ9:BQ4805,A3) -> 1593 | BR4: =COUNTIF(BR9:BR4805,A3) -> 2136 | BS4: =COUNTIF(BS9:BS4805,A3) -> 2597 | BT4: =COUNTIF(BT9:BT4805,A3) -> 0 | BU4: =COUNTIF(BU9:BU4805,A3) -> 0 | CK4: =COUNTIF(CK9:CK4993,A3) -> 203 | CL4: =COUNTIF(CL9:CL4805,A3) -> 131
A5: 5 | B5: 12 | K5: =K6/C8 -> 0.5724102825 | L5: =L6/C8 -> 0.4527869687 | M5: =M6/C8 -> 0.3812674981 | N5: =N6/C8 -> 0.3303639603 | AZ5: =COUNTIF(AZ9:AZ4806,A4) -> 3036 | BD5: =BD4/C8 -> 0.1300585391 | BE5: =COUNTIF(BE9:BE4806,A4) -> 129 | BF5: =COUNTIF(BF9:BF4806,A4) -> 417 | BG5: =COUNTIF(BG9:BG4806,A4) -> 836 | BH5: =COUNTIF(BH9:BH4806,A4) -> 1400 | BI5: =COUNTIF(BI9:BI4806,A4) -> 1969 | BJ5: =COUNTIF(BJ9:BJ4806,A4) -> 2490 | BK5: =COUNTIF(BK9:BK4806,A4) -> 2995 | BN5: =BN4/C8 -> 0.05573937389 | BO5: =BO4/C8 -> 0.1453296004 | BP5: =BP4/C8 -> 0.2779333164 | BQ5: =BQ4/C8 -> 0.4054466785 | BR5: =BR4/C8 -> 0.5436497837 | BS5: =BS4/C8 -> 0.6609824383 | BT5: =BT4/C8 -> 0 | BU5: =BU4/C8 -> 0 | CK5: =COUNTIF(CK9:CK4994,A4) -> 85 | CL5: =COUNTIF(CL9:CL4806,A4) -> 57
A6: 6 | B6: 13 | J6: 3 | K6: =SUM(AM9:AM4985) -> 2249 | L6: 1779 | M6: 1498 | N6: 1298 | O6: 1110 | P6: 887 | Q6: 802 | R6: 621 | S6: 9228359 | T6: 7147223 | AZ6: =AZ5/C8 -> 0.7727157037 | BA6: =BA4/C8 -> 0 | BE6: =BE5/C8 -> 0.03283278188 | BF6: =BF5/C8 -> 0.1061338763 | BG6: =BG5/C8 -> 0.212776788 | BH6: =BH5/C8 -> 0.3563247646 | BI6: =BI5/C8 -> 0.5011453296 | BJ6: =BJ5/C8 -> 0.6337490456 | BK6: =BK5/C8 -> 0.7622804785 | BM6: =BM2+BM3 -> 3117 | BN6: =BN2+BN3+BN4 -> 3547 | BO6: =SUM(BO1:BO4) -> 3929 | BQ6: =BQ1/C8 -> 0.011453296 | CK6: =COUNTIF(CK9:CK4995,A5) -> 49 | CL6: =COUNTIF(CL9:CL4807,A5) -> 20
A7: 7 | B7: 14 | K7: =K8/C8 -> 0.6477475185 | L7: =L8/C8 -> 0.5451768898 | M7: =M8/C8 -> 0.4792568083 | N7: =N8/C8 -> 0.4380249427 | O7: 5 | P7: 6 | Q7: 7 | R7: 8 | S7: 9 | T7: 10 | U7: 11 | V7: 12 | BB7: =BB2/C8 -> 0.6477475185 | BC7: =(BC2+BC3)/C8 -> 0.8569610588 | BD7: =(BD2+BD3+BD4)/C8 -> 0.94273352 | BE7: =(BE2+BE3+BE4+BE5)/C8 -> 0.9760753372 | BF7: =(BF2+BF3+BF4+BF5)/C8 -> 0.9903283278 | BL7: =BL2/C8 -> 0.5721557648 | BM7: =BM6/C8 -> 0.7933316365 | BN7: =BN6/C8 -> 0.9027742428 | BO7: =(BO2+BO3+BO4)/C8 -> 0.9544413337 | BY7: =BY8/C8 -> 0.5724102825 | BZ7: 2 | CA7: 3 | CB7: 4 | CC7: 5 | CD7: 6 | CE7: 7 | CF7: 8 | CG7: 9 | CH7: 10 | CI7: 11 | CJ7: 12 | CK7: =COUNTIF(CK9:CK4996,A6) -> 26 | CL7: =COUNTIF(CL9:CL4808,A6) -> 12
A8: 0 | B8: 15 | C8: =COUNTA(G9:G5204) -> 3929 | J8: 4 | K8: =SUM(AA9:AA4796) -> 2545 | L8: =SUM(AB9:AB4796) -> 2142 | M8: 1883 | N8: 1721 | O8: 1510 | P8: 1294 | Q8: 1182 | R8: 950 | S8: 802 | T8: 627 | U8: 28 | V8: =SUM(AL9:AL4796) -> 20 | BB8: 1CV | BC8: 2CV | BD8: 3CV | BE8: 4CV | BF8: 5CV | BG8: 6CV | BH8: 7CV | BI8: 8CV | BJ8: 9CV | BK8: 10CV | BL8: 1cv | BM8: 2cv | BN8: 3cv | BO8: 4cv | BP8: 5cv | BQ8: 6cv | BR8: 7cv | BS8: 8cv | BT8: 9cv | BU8: 10cv | BY8: =SUM(AM9:AM4991) -> 2249 | BZ8: 1779 | CA8: 1498 | CB8: 1298 | CC8: 1110 | CD8: 887 | CE8: 802 | CF8: 621 | CG8: 9228359 | CH8: 7147223 | CI8: 5347060 | CJ8: 3141754 | CK8: =COUNTIF(CK9:CK4997,A7) -> 9 | CL8: =COUNTIF(CL9:CL4809,A7) -> 3
A9: 2022-02-14 | B9: Vincennes | C9: 1ère | D9: A | E9: 36 | F9: 14 | G9: 1 | H9: 14 | I9: 3 | J9: 12 | K9: 3 | L9: 7 | M9: 1 | N9: 2 | O9: 5 | P9: 14 | Q9: 12 | R9: 8 | S9: 13 | T9: 11 | W9: 1 | X9: 3 | Y9: 6 | Z9: 7 | AA9: =COUNTIF(K9:K9,G9)+COUNTIF(K9:K9,H9)+COUNTIF(K9:K9,I9)+COUNTIF(K9:K9,J9) -> 1 | AB9: =COUNTIF(L9:L9,H9)+COUNTIF(L9:L9,I9)+COUNTIF(L9:L9,J9)+COUNTIF(L9:L9,G9) -> 0 | AC9: =COUNTIF(M9:M9,I9)+COUNTIF(M9:M9,J9)+COUNTIF(M9:M9,G9)+COUNTIF(M9:M9,H9) -> 1 | AD9: =COUNTIF(N9:N9,J9)+COUNTIF(N9:N9,G9)+COUNTIF(N9:N9,H9)+COUNTIF(N9:N9,I9) -> 0 | AE9: =COUNTIF(O9:O9,G9)+COUNTIF(O9:O9,H9)+COUNTIF(O9:O9,I9)+COUNTIF(O9:O9,J9) -> 0 | AF9: =COUNTIF(P9:P9,H9)+COUNTIF(P9:P9,I9)+COUNTIF(P9:P9,J9)+COUNTIF(P9:P9,G9) -> 1 | AG9: =COUNTIF(Q9:Q9,I9)+COUNTIF(Q9:Q9,J9)+COUNTIF(Q9:Q9,G9)+COUNTIF(Q9:Q9,H9) -> 1 | AH9: =COUNTIF(R9:R9,J9)+COUNTIF(R9:R9,G9)+COUNTIF(R9:R9,H9)+COUNTIF(R9:R9,I9) -> 0 | AI9: =COUNTIF(S9:S9,G9)+COUNTIF(S9:S9,H9)+COUNTIF(S9:S9,I9)+COUNTIF(S9:S9,J9) -> 0 | AJ9: =COUNTIF(T9:T9,H9)+COUNTIF(T9:T9,I9)+COUNTIF(T9:T9,J9)+COUNTIF(T9:T9,G9) -> 0 | AK9: =COUNTIF(U9:U9,G9)+COUNTIF(U9:U9,H9)+COUNTIF(U9:U9,I9)+COUNTIF(U9:U9,J9) -> 0 | AL9: =COUNTIF(V9:V9,G9)+COUNTIF(V9:V9,H9)+COUNTIF(V9:V9,I9)+COUNTIF(V9:V9,J9) -> 0 | AM9: =COUNTIF(K9:K9,G9)+COUNTIF(K9:K9,H9)+COUNTIF(K9:K9,I9) -> 1 | AN9: =COUNTIF(L9:L9,H9)+COUNTIF(L9:L9,I9)+COUNTIF(L9:L9,G9) -> 0 | AO9: =COUNTIF(M9:M9,I9)+COUNTIF(M9:M9,G9)+COUNTIF(M9:M9,H9) -> 1 | AP9: =COUNTIF(N9:N9,G9)+COUNTIF(N9:N9,H9)+COUNTIF(N9:N9,I9) -> 0 | AQ9: =COUNTIF(O9:O9,H9)+COUNTIF(O9:O9,I9)+COUNTIF(O9:O9,G9) -> 0 | AR9: =COUNTIF(P9:P9,I9)+COUNTIF(P9:P9,G9)+COUNTIF(P9:P9,H9) -> 1 | AS9: =COUNTIF(Q9:Q9,G9)+COUNTIF(Q9:Q9,H9)+COUNTIF(Q9:Q9,I9) -> 0 | AT9: =COUNTIF(R9:R9,H9)+COUNTIF(R9:R9,I9)+COUNTIF(R9:R9,G9) -> 0 | AU9: 2545 | AV9: 1883 | AW9: 1294 | AX9: 1182 | AY9: =F9 -> 14 | AZ9: =SUM(AA9:AL9) -> 4 | BA9: =SUM(AM9:AX9) -> 6907 | BB9: =AA9 -> 1 | BC9: =SUM(AA9:AB9) -> 1 | BD9: =SUM(AA9:AC9) -> 2 | BE9: =SUM(AA9:AD9) -> 2 | BF9: =SUM(AA9:AE9) -> 2 | BG9: =SUM(AA9:AF9) -> 3 | BH9: =SUM(AA9:AG9) -> 4 | BI9: =SUM(AA9:AH9) -> 4 | BJ9: =SUM(AA9:AI9) -> 4 | BK9: =SUM(AA9:AJ9) -> 4 | BL9: =AM9 -> 1 | BM9: =SUM(AM9:AN9) -> 1 | BN9: =SUM(AM9:AO9) -> 2 | BO9: =SUM(AM9:AP9) -> 2 | BP9: =SUM(AM9:AQ9) -> 2 | BQ9: =SUM(AM9:AR9) -> 3 | BR9: =SUM(AM9:AS9) -> 3 | BS9: =SUM(AM9:AT9) -> 3 | BT9: =SUM(AM9:AU9) -> 2548 | BU9: =SUM(AM9:AV9) -> 4431 | BV9: 1 | BW9: 14 | BX9: 3 | BY9: 3 | BZ9: 7 | CA9: 1 | CB9: 2 | CC9: 5 | CD9: 14 | CE9: 12 | CF9: 8 | CG9: 13 | CH9: 11 | CI9: =U9 -> 0 | CJ9: 0 | CK9: =COUNTIF(BL9:BU9,0) -> 0 | CL9: =COUNTIF(BB9:BK9,0) -> 0 | CO9: 1 | CP9: 3 | CQ9: 6
C10: 3ème | D10: A | E10: 92 | F10: 12 | G10: 3 | H10: 11 | I10: 9 | J10: 8 | K10: 4 | L10: 7 | M10: 3 | N10: 5 | O10: 11 | P10: 8 | Q10: 6 | R10: 1 | S10: 9 | T10: 10 | W10: 3 | X10: 5 | Y10: 6 | Z10: 9 | AA10: 0 | AB10: 0 | AC10: 1 | AD10: 0 | AE10: 1 | AF10: 1 | AG10: 0 | AH10: 0 | AI10: 1 | AJ10: 0 | AK10: 0 | AL10: 0 | AM10: 0 | AN10: 0 | AO10: 1 | AP10: 0 | AQ10: 1 | AR10: 0 | AS10: 0 | AT10: 0 | AU10: 1883 | AV10: 1510 | AW10: 1294 | AX10: 802 | AY10: 12 | AZ10: 4 | BA10: 5491 | BB10: 0 | BC10: 0 | BD10: 1 | BE10: 1 | BF10: 2 | BG10: 3 | BH10: 3 | BI10: 3 | BJ10: 4 | BK10: 4 | BL10: 0 | BM10: 0 | BN10: 1 | BO10: 1 | BP10: 2 | BQ10: 2 | BR10: 2 | BS10: 2 | BT10: 1885 | BU10: 3395 | BV10: 3 | BW10: 11 | BX10: 9 | BY10: 4 | BZ10: 7 | CA10: 3 | CB10: 5 | CC10: 11 | CD10: 8 | CE10: 6 | CF10: 1 | CG10: 9 | CH10: 10 | CI10: 0 | CJ10: 0 | CK10: 2 | CL10: 2 | CO10: 3 | CP10: 5 | CQ10: 9
C11: 5ème | D11: A | E11: 53 | F11: 15 | G11: 2 | H11: 11 | I11: 13 | J11: 15 | K11: 10 | L11: 5 | M11: 14 | N11: 3 | O11: 11 | P11: 2 | Q11: 8 | R11: 12 | S11: 6 | T11: 13 | W11: 5 | X11: 6 | Y11: 10 | AA11: 0 | AB11: 0 | AC11: 0 | AD11: 0 | AE11: 1 | AF11: 1 | AG11: 0 | AH11: 0 | AI11: 0 | AJ11: 1 | AK11: 0 | AL11: 0 | AM11: 0 | AN11: 0 | AO11: 0 | AP11: 0 | AQ11: 1 | AR11: 1 | AS11: 0 | AT11: 0 | AU11: 1510 | AV11: 1294 | AW11: 627 | AY11: 15 | AZ11: 3 | BA11: 3433 | BB11: 0 | BC11: 0 | BD11: 0 | BE11: 0 | BF11: 1 | BG11: 2 | BH11: 2 | BI11: 2 | BJ11: 2 | BK11: 3 | BL11: 0 | BM11: 0 | BN11: 0 | BO11: 0 | BP11: 1 | BQ11: 2 | BR11: 2 | BS11: 2 | BT11: 1512 | BU11: 2806 | BV11: 2 | BW11: 11 | BX11: 13 | BY11: 10 | BZ11: 5 | CA11: 14 | CB11: 3 | CC11: 11 | CD11: 2 | CE11: 8 | CF11: 12 | CG11: 6 | CH11: 13 | CI11: 0 | CJ11: 0 | CK11: 4 | CL11: 4 | CO11: 5 | CP11: 6 | CQ11: 10
C12: 6ème | D12: A | E12: 46 | F12: 13 | G12: 8 | H12: 7 | I12: 9 | J12: 2 | K12: 5 | L12: 13 | M12: 7 | N12: 12 | O12: 6 | P12: 4 | Q12: 8 | R12: 10 | S12: 9 | T12: 11 | W12: 3 | X12: 7 | Y12: 9 | AA12: 0 | AB12: 0 | AC12: 1 | AD12: 0 | AE12: 0 | AF12: 0 | AG12: 1 | AH12: 0 | AI12: 1 | AJ12: 0 | AK12: 0 | AL12: 0 | AM12: 0 | AN12: 0 | AO12: 1 | AP12: 0 | AQ12: 0 | AR12: 0 | AS12: 1 | AT12: 0 | AU12: 1883 | AV12: 1182 | AW12: 802 | AY12: 13 | AZ12: 3 | BA12: 3869 | BB12: 0 | BC12: 0 | BD12: 1 | BE12: 1 | BF12: 1 | BG12: 1 | BH12: 2 | BI12: 2 | BJ12: 3 | BK12: 3 | BL12: 0 | BM12: 0 | BN12: 1 | BO12: 1 | BP12: 1 | BQ12: 1 | BR12: 2 | BS12: 2 | BT12: 1885 | BU12: 3067 | BV12: 8 | BW12: 7 | BX12: 9 | BY12: 5 | BZ12: 13 | CA12: 7 | CB12: 12 | CC12: 6 | CD12: 4 | CE12: 8 | CF12: 10 | CG12: 9 | CH12: 11 | CI12: 0 | CJ12: 0 | CK12: 2 | CL12: 2 | CO12: 3 | CP12: 7 | CQ12: 9
C13: 7ème | D13: A | E13: 45 | F13: 11 | G13: 10 | H13: 6 | I13: 11 | J13: 8 | K13: 11 | L13: 8 | M13: 6 | N13: 4 | O13: 10 | P13: 3 | Q13: 9 | R13: 5 | S13: 2 | T13: 1 | W13: 1 | X13: 2 | Y13: 3 | Z13: 5 | AA13: 1 | AB13: 1 | AC13: 1 | AD13: 0 | AE13: 1 | AF13: 0 | AG13: 0 | AH13: 0 | AI13: 0 | AJ13: 0 | AK13: 0 | AL13: 0 | AM13: 1 | AN13: 0 | AO13: 1 | AP13: 0 | AQ13: 1 | AR13: 0 | AS13: 0 | AT13: 0 | AU13: 2545 | AV13: 2142 | AW13: 1883 | AX13: 1510 | AY13: 11 | AZ13: 4 | BA13: 8083 | BB13: 1 | BC13: 2 | BD13: 3 | BE13: 3 | BF13: 4 | BG13: 4 | BH13: 4 | BI13: 4 | BJ13: 4 | BK13: 4 | BL13: 1 | BM13: 1 | BN13: 2 | BO13: 2 | BP13: 3 | BQ13: 3 | BR13: 3 | BS13: 3 | BT13: 2548 | BU13: 4690 | BV13: 10 | BW13: 6 | BX13: 11 | BY13: 11 | BZ13: 8 | CA13: 6 | CB13: 4 | CC13: 10 | CD13: 3 | CE13: 9 | CF13: 5 | CG13: 2 | CH13: 1 | CI13: 0 | CJ13: 0 | CK13: 0 | CL13: 0 | CO13: 1 | CP13: 3 | CQ13: 5
B14: Lyon | C14: 1ère | D14: A | E14: 58 | F14: 12 | G14: 1 | H14: 2 | I14: 12 | J14: 6 | K14: 7 | L14: 4 | M14: 9 | N14: 11 | O14: 3 | P14: 10 | Q14: 12 | R14: 6 | S14: 5 | T14: 2 | W14: 7 | X14: 8 | Y14: 10 | AA14: 0 | AB14: 0 | AC14: 0 | AD14: 0 | AE14: 0 | AF14: 0 | AG14: 1 | AH14: 1 | AI14: 0 | AJ14: 1 | AK14: 0 | AL14: 0 | AM14: 0 | AN14: 0 | AO14: 0 | AP14: 0 | AQ14: 0 | AR14: 0 | AS14: 1 | AT14: 0 | AU14: 1182 | AV14: 950 | AW14: 627 | AY14: 12 | AZ14: 3 | BA14: 2760 | BB14: 0 | BC14: 0 | BD14: 0 | BE14: 0 | BF14: 0 | BG14: 0 | BH14: 1 | BI14: 2 | BJ14: 2 | BK14: 3 | BL14: 0 | BM14: 0 | BN14: 0 | BO14: 0 | BP14: 0 | BQ14: 0 | BR14: 1 | BS14: 1 | BT14: 1183 | BU14: 2133 | BV14: 1 | BW14: 2 | BX14: 12 | BY14: 7 | BZ14: 4 | CA14: 9 | CB14: 11 | CC14: 3 | CD14: 10 | CE14: 12 | CF14: 6 | CG14: 5 | CH14: 2 | CI14: 0 | CJ14: 0 | CK14: 6 | CL14: 6 | CO14: 7 | CP14: 10
C15: 2ème | D15: A | E15: 83 | F15: 12 | G15: 12 | H15: 2 | I15: 6 | J15: 5 | K15: 8 | L15: 6 | M15: 12 | N15: 7 | O15: 2 | P15: 10 | Q15: 3 | R15: 4 | S15: 5 | T15: 1 | W15: 2 | X15: 3 | Y15: 5 | Z15: 9 | AA15: 0 | AB15: 1 | AC15: 1 | AD15: 0 | AE15: 1 | AF15: 0 | AG15: 0 | AH15: 0 | AI15: 1 | AJ15: 0 | AK15: 0 | AL15: 0 | AM15: 0 | AN15: 1 | AO15: 1 | AP15: 0 | AQ15: 1 | AR15: 0 | AS15: 0 | AT15: 0 | AU15: 2142 | AV15: 1883 | AW15: 1510 | AX15: 802 | AY15: 12 | AZ15: 4 | BA15: 6340 | BB15: 0 | BC15: 1 | BD15: 2 | BE15: 2 | BF15: 3 | BG15: 3 | BH15: 3 | BI15: 3 | BJ15: 4 | BK15: 4 | BL15: 0 | BM15: 1 | BN15: 2 | BO15: 2 | BP15: 3 | BQ15: 3 | BR15: 3 | BS15: 3 | BT15: 2145 | BU15: 4028 | BV15: 12 | BW15: 2 | BX15: 6 | BY15: 8 | BZ15: 6 | CA15: 12 | CB15: 7 | CC15: 2 | CD15: 10 | CE15: 3 | CF15: 4 | CG15: 5 | CH15: 1 | CI15: 0 | CJ15: 0 | CK15: 1 | CL15: 1 | CO15: 2 | CP15: 3 | CQ15: 5
C16: 3ème | D16: A | E16: 41 | F16: 16 | G16: 16 | H16: 5 | I16: 6 | J16: 13 | K16: 16 | L16: 14 | M16: 10 | N16: 15 | O16: 5 | P16: 13 | Q16: 2 | R16: 6 | S16: 9 | T16: 12 | W16: 1 | X16: 5 | Y16: 6 | Z16: 8 | AA16: 1 | AB16: 0 | AC16: 0 | AD16: 0 | AE16: 1 | AF16: 1 | AG16: 0 | AH16: 1 | AI16: 0 | AJ16: 0 | AK16: 0 | AL16: 0 | AM16: 1 | AN16: 0 | AO16: 0 | AP16: 0 | AQ16: 1 | AR16: 0 | AS16: 0 | AT16: 1 | AU16: 2545 | AV16: 1510 | AW16: 1294 | AX16: 950 | AY16: 16 | AZ16: 4 | BA16: 6302 | BB16: 1 | BC16: 1 | BD16: 1 | BE16: 1 | BF16: 2 | BG16: 3 | BH16: 3 | BI16: 4 | BJ16: 4 | BK16: 4 | BL16: 1 | BM16: 1 | BN16: 1 | BO16: 1 | BP16: 2 | BQ16: 2 | BR16: 2 | BS16: 3 | BT16: 2548 | BU16: 4058 | BV16: 16 | BW16: 5 | BX16: 6 | BY16: 16 | BZ16: 14 | CA16: 10 | CB16: 15 | CC16: 5 | CD16: 13 | CE16: 2 | CF16: 6 | CG16: 9 | CH16: 12 | CI16: 0 | CJ16: 0 | CK16: 0 | CL16: 0 | CO16: 1 | CP16: 5 | CQ16: 8
C17: 4ème | D17: A | E17: 44 | F17: 15 | G17: 15 | H17: 8 | I17: 1 | J17: 16 | K17: 15 | L17: 6 | M17: 1 | N17: 8 | O17: 11 | P17: 13 | Q17: 12 | R17: 9 | S17: 18 | T17: 5 | W17: 1 | X17: 3 | Y17: 4 | AA17: 1 | AB17: 0 | AC17: 1 | AD17: 1 | AE17: 0 | AF17: 0 | AG17: 0 | AH17: 0 | AI17: 0 | AJ17: 0 | AK17: 0 | AL17: 0 | AM17: 1 | AN17: 0 | AO17: 1 | AP17: 1 | AQ17: 0 | AR17: 0 | AS17: 0 | AT17: 0 | AU17: 2545 | AV17: 1883 | AW17: 1721 | AY17: 15 | AZ17: 3 | BA17: 6152 | BB17: 1 | BC17: 1 | BD17: 2 | BE17: 3 | BF17: 3 | BG17: 3 | BH17: 3 | BI17: 3 | BJ17: 3 | BK17: 3 | BL17: 1 | BM17: 1 | BN17: 2 | BO17: 3 | BP17: 3 | BQ17: 3 | BR17: 3 | BS17: 3 | BT17: 2548 | BU17: 4431 | BV17: 15 | BW17: 8 | BX17: 1 | BY17: 15 | BZ17: 6 | CA17: 1 | CB17: 8 | CC17: 11 | CD17: 13 | CE17: 12 | CF17: 9 | CG17: 18 | CH17: 5 | CI17: 0 | CJ17: 0 | CK17: 0 | CL17: 0 | CO17: 1 | CP17: 3 | CQ17: 4
C18: 5ème | D18: A | E18: 80 | F18: 14 | G18: 12 | H18: 4 | I18: 15 | J18: 3 | K18: 12 | L18: 1 | M18: 15 | N18: 5 | O18: 4 | P18: 11 | Q18: 14 | R18: 7 | S18: 8 | T18: 13 | W18: 1 | X18: 3 | Y18: 5 | AA18: 1 | AB18: 0 | AC18: 1 | AD18: 0 | AE18: 1 | AF18: 0 | AG18: 0 | AH18: 0 | AI18: 0 | AJ18: 0 | AK18: 0 | AL18: 0 | AM18: 1 | AN18: 0 | AO18: 1 | AP18: 0 | AQ18: 1 | AR18: 0 | AS18: 0 | AT18: 0 | AU18: 2545 | AV18: 1883 | AW18: 1510 | AY18: 14 | AZ18: 3 | BA18: 5941 | BB18: 1 | BC18: 1 | BD18: 2 | BE18: 2 | BF18: 3 | BG18: 3 | BH18: 3 | BI18: 3 | BJ18: 3 | BK18: 3 | BL18: 1 | BM18: 1 | BN18: 2 | BO18: 2 | BP18: 3 | BQ18: 3 | BR18: 3 | BS18: 3 | BT18: 2548 | BU18: 4431 | BV18: 12 | BW18: 4 | BX18: 15 | BY18: 12 | BZ18: 1 | CA18: 15 | CB18: 5 | CC18: 4 | CD18: 11 | CE18: 14 | CF18: 7 | CG18: 8 | CH18: 13 | CI18: 0 | CJ18: 0 | CK18: 0 | CL18: 0 | CO18: 1 | CP18: 3 | CQ18: 5
C19: 6ème | D19: A | E19: 71 | F19: 17 | G19: 1 | H19: 13 | I19: 17 | J19: 6 | K19: 4 | L19: 12 | M19: 17 | N19: 13 | O19: 14 | P19: 15 | Q19: 16 | R19: 11 | S19: 1 | T19: 6 | W19: 3 | X19: 4 | Y19: 9 | Z19: 10 | AA19: 0 | AB19: 0 | AC19: 1 | AD19: 1 | AE19: 0 | AF19: 0 | AG19: 0 | AH19: 0 | AI19: 1 | AJ19: 1 | AK19: 0 | AL19: 0 | AM19: 0 | AN19: 0 | AO19: 1 | AP19: 1 | AQ19: 0 | AR19: 0 | AS19: 0 | AT19: 0 | AU19: 1883 | AV19: 1721 | AW19: 802 | AX19: 627 | AY19: 17 | AZ19: 4 | BA19: 5035 | BB19: 0 | BC19: 0 | BD19: 1 | BE19: 2 | BF19: 2 | BG19: 2 | BH19: 2 | BI19: 2 | BJ19: 3 | BK19: 4 | BL19: 0 | BM19: 0 | BN19: 1 | BO19: 2 | BP19: 2 | BQ19: 2 | BR19: 2 | BS19: 2 | BT19: 1885 | BU19: 3606 | BV19: 1 | BW19: 13 | BX19: 17 | BY19: 4 | BZ19: 12 | CA19: 17 | CB19: 13 | CC19: 14 | CD19: 15 | CE19: 16 | CF19: 11 | CG19: 1 | CH19: 6 | CI19: 0 | CJ19: 0 | CK19: 2 | CL19: 2 | CO19: 3 | CP19: 4 | CQ19: 9
C20: 7ème | D20: A | E20: 72 | F20: 18 | G20: 17 | H20: 18 | I20: 16 | J20: 14 | K20: 18 | L20: 17 | M20: 4 | N20: 16 | O20: 13 | P20: 6 | Q20: 5 | R20: 11 | S20: 14 | T20: 9 | W20: 1 | X20: 2 | Y20: 4 | Z20: 9 | AA20: 1 | AB20: 1 | AC20: 0 | AD20: 1 | AE20: 0 | AF20: 0 | AG20: 0 | AH20: 0 | AI20: 1 | AJ20: 0 | AK20: 0 | AL20: 0 | AM20: 1 | AN20: 1 | AO20: 0 | AP20: 1 | AQ20: 0 | AR20: 0 | AS20: 0 | AT20: 0 | AU20: 2545 | AV20: 2142 | AW20: 1721 | AX20: 802 | AY20: 18 | AZ20: 4 | BA20: 7213 | BB20: 1 | BC20: 2 | BD20: 2 | BE20: 3 | BF20: 3 | BG20: 3 | BH20: 3 | BI20: 3 | BJ20: 4 | BK20: 4 | BL20: 1 | BM20: 2 | BN20: 2 | BO20: 3 | BP20: 3 | BQ20: 3 | BR20: 3 | BS20: 3 | BT20: 2548 | BU20: 4690 | BV20: 17 | BW20: 18 | BX20: 16 | BY20: 18 | BZ20: 17 | CA20: 4 | CB20: 16 | CC20: 13 | CD20: 6 | CE20: 5 | CF20: 11 | CG20: 14 | CH20: 9 | CI20: 0 | CJ20: 0 | CK20: 0 | CL20: 0 | CO20: 1 | CP20: 2 | CQ20: 4
A21: 2022-02-15 | B21: Vincennes | C21: 1ère | D21: A | E21: 53 | F21: 13 | G21: 15 | H21: 9 | I21: 8 | J21: 2 | K21: 8 | L21: 15 | M21: 12 | N21: 7 | O21: 6 | P21: 14 | Q21: 9 | R21: 10 | S21: 2 | T21: 1 | W21: 1 | X21: 2 | Y21: 7 | Z21: 9 | AA21: 1 | AB21: 1 | AC21: 0 | AD21: 0 | AE21: 0 | AF21: 0 | AG21: 1 | AH21: 0 | AI21: 1 | AJ21: 0 | AK21: 0 | AL21: 0 | AM21: 1 | AN21: 1 | AO21: 0 | AP21: 0 | AQ21: 0 | AR21: 0 | AS21: 1 | AT21: 0 | AU21: 2545 | AV21: 2142 | AW21: 1182 | AX21: 802 | AY21: 13 | AZ21: 4 | BA21: 6674 | BB21: 1 | BC21: 2 | BD21: 2 | BE21: 2 | BF21: 2 | BG21: 2 | BH21: 3 | BI21: 3 | BJ21: 4 | BK21: 4 | BL21: 1 | BM21: 2 | BN21: 2 | BO21: 2 | BP21: 2 | BQ21: 2 | BR21: 3 | BS21: 3 | BT21: 2548 | BU21: 4690 | BV21: 15 | BW21: 9 | BX21: 8 | BY21: 8 | BZ21: 15 | CA21: 12 | CB21: 7 | CC21: 6 | CD21: 14 | CE21: 9 | CF21: 10 | CG21: 2 | CH21: 1 | CI21: 0 | CJ21: 0 | CK21: 0 | CL21: 0 | CO21: 1 | CP21: 2 | CQ21: 7
C22: 2ème | D22: A | E22: 58 | F22: 11 | G22: 6 | H22: 7 | I22: 8 | J22: 5 | K22: 6 | L22: 1 | M22: 12 | N22: 11 | O22: 8 | P22: 7 | Q22: 2 | R22: 5 | S22: 9 | T22: 4 | W22: 1 | X22: 5 | Y22: 6 | Z22: 8 | AA22: 1 | AB22: 0 | AC22: 0 | AD22: 0 | AE22: 1 | AF22: 1 | AG22: 0 | AH22: 1 | AI22: 0 | AJ22: 0 | AK22: 0 | AL22: 0 | AM22: 1 | AN22: 0 | AO22: 0 | AP22: 0 | AQ22: 1 | AR22: 1 | AS22: 0 | AT22: 0 | AU22: 2545 | AV22: 1510 | AW22: 1294 | AX22: 950 | AY22: 11 | AZ22: 4 | BA22: 6302 | BB22: 1 | BC22: 1 | BD22: 1 | BE22: 1 | BF22: 2 | BG22: 3 | BH22: 3 | BI22: 4 | BJ22: 4 | BK22: 4 | BL22: 1 | BM22: 1 | BN22: 1 | BO22: 1 | BP22: 2 | BQ22: 3 | BR22: 3 | BS22: 3 | BT22: 2548 | BU22: 4058 | BV22: 6 | BW22: 7 | BX22: 8 | BY22: 6 | BZ22: 1 | CA22: 12 | CB22: 11 | CC22: 8 | CD22: 7 | CE22: 2 | CF22: 5 | CG22: 9 | CH22: 4 | CI22: 0 | CJ22: 0 | CK22: 0 | CL22: 0 | CO22: 1 | CP22: 5 | CQ22: 6
C23: 3ème | D23: A | E23: 46 | F23: 12 | G23: 4 | H23: 10 | I23: 1 | J23: 11 | K23: 13 | L23: 10 | M23: 3 | N23: 4 | O23: 12 | P23: 1 | Q23: 6 | R23: 9 | S23: 11 | T23: 8 | W23: 2 | X23: 4 | Y23: 6 | Z23: 9 | AA23: 0 | AB23: 1 | AC23: 0 | AD23: 1 | AE23: 0 | AF23: 1 | AG23: 0 | AH23: 0 | AI23: 1 | AJ23: 0 | AK23: 0 | AL23: 0 | AM23: 0 | AN23: 1 | AO23: 0 | AP23: 1 | AQ23: 0 | AR23: 1 | AS23: 0 | AT23: 0 | AU23: 2142 | AV23: 1721 | AW23: 1294 | AX23: 802 | AY23: 12 | AZ23: 4 | BA23: 5962 | BB23: 0 | BC23: 1 | BD23: 1 | BE23: 2 | BF23: 2 | BG23: 3 | BH23: 3 | BI23: 3 | BJ23: 4 | BK23: 4 | BL23: 0 | BM23: 1 | BN23: 1 | BO23: 2 | BP23: 2 | BQ23: 3 | BR23: 3 | BS23: 3 | BT23: 2145 | BU23: 3866 | BV23: 4 | BW23: 10 | BX23: 1 | BY23: 13 | BZ23: 10 | CA23: 3 | CB23: 4 | CC23: 12 | CD23: 1 | CE23: 6 | CF23: 9 | CG23: 11 | CH23: 8 | CI23: 0 | CJ23: 0 | CK23: 1 | CL23: 1 | CO23: 2 | CP23: 4 | CQ23: 6
C24: 5ème | D24: A | E24: 73 | F24: 10 | G24: 6 | H24: 2 | I24: 8 | J24: 7 | K24: 6 | L24: 1 | M24: 2 | N24: 7 | O24: 8 | P24: 11 | Q24: 3 | R24: 5 | S24: 4 | T24: 9 | W24: 1 | X24: 3 | Y24: 4 | Z24: 5 | AA24: 1 | AB24: 0 | AC24: 1 | AD24: 1 | AE24: 1 | AF24: 0 | AG24: 0 | AH24: 0 | AI24: 0 | AJ24: 0 | AK24: 0 | AL24: 0 | AM24: 1 | AN24: 0 | AO24: 1 | AP24: 0 | AQ24: 1 | AR24: 0 | AS24: 0 | AT24: 0 | AU24: 2545 | AV24: 1883 | AW24: 1721 | AX24: 1510 | AY24: 10 | AZ24: 4 | BA24: 7662 | BB24: 1 | BC24: 1 | BD24: 2 | BE24: 3 | BF24: 4 | BG24: 4 | BH24: 4 | BI24: 4 | BJ24: 4 | BK24: 4 | BL24: 1 | BM24: 1 | BN24: 2 | BO24: 2 | BP24: 3 | BQ24: 3 | BR24: 3 | BS24: 3 | BT24: 2548 | BU24: 4431 | BV24: 6 | BW24: 2 | BX24: 8 | BY24: 6 | BZ24: 1 | CA24: 2 | CB24: 7 | CC24: 8 | CD24: 11 | CE24: 3 | CF24: 5 | CG24: 4 | CH24: 9 | CI24: 0 | CJ24: 0 | CK24: 0 | CL24: 0 | CO24: 1 | CP24: 3 | CQ24: 5
C25: 6ème | D25: A | E25: 75 | F25: 12 | G25: 8 | H25: 1 | I25: 5 | J25: 10 | K25: 8 | L25: 7 | M25: 3 | N25: 5 | O25: 4 | P25: 1 | Q25: 2 | R25: 12 | S25: 11 | T25: 10 | W25: 1 | X25: 4 | Y25: 6 | Z25: 10 | AA25: 1 | AB25: 0 | AC25: 0 | AD25: 1 | AE25: 0 | AF25: 1 | AG25: 0 | AH25: 0 | AI25: 0 | AJ25: 1 | AK25: 0 | AL25: 0 | AM25: 1 | AN25: 0 | AO25: 0 | AP25: 1 | AQ25: 0 | AR25: 1 | AS25: 0 | AT25: 0 | AU25: 2545 | AV25: 1721 | AW25: 1294 | AX25: 627 | AY25: 12 | AZ25: 4 | BA25: 6190 | BB25: 1 | BC25: 1 | BD25: 1 | BE25: 2 | BF25: 2 | BG25: 3 | BH25: 3 | BI25: 3 | BJ25: 3 | BK25: 4 | BL25: 1 | BM25: 1 | BN25: 1 | BO25: 2 | BP25: 2 | BQ25: 3 | BR25: 3 | BS25: 3 | BT25: 2548 | BU25: 4269 | BV25: 8 | BW25: 1 | BX25: 5 | BY25: 8 | BZ25: 7 | CA25: 3 | CB25: 5 | CC25: 4 | CD25: 1 | CE25: 2 | CF25: 12 | CG25: 11 | CH25: 10 | CI25: 0 | CJ25: 0 | CK25: 0 | CL25: 0 | CO25: 1 | CP25: 4 | CQ25: 6
C26: 7ème | D26: A | E26: 83 | F26: 11 | G26: 10 | H26: 9 | I26: 8 | J26: 6 | K26: 8 | L26: 10 | M26: 9 | N26: 6 | O26: 12 | P26: 7 | Q26: 4 | R26: 11 | S26: 3 | T26: 1 | W26: 1 | X26: 2 | Y26: 3 | Z26: 4 | AA26: 1 | AB26: 1 | AC26: 1 | AD26: 1 | AE26: 0 | AF26: 0 | AG26: 0 | AH26: 0 | AI26: 0 | AJ26: 0 | AK26: 0 | AL26: 0 | AM26: 1 | AN26: 1 | AO26: 1 | AP26: 0 | AQ26: 0 | AR26: 0 | AS26: 0 | AT26: 0 | AU26: 2545 | AV26: 2142 | AW26: 1883 | AX26: 1721 | AY26: 11 | AZ26: 4 | BA26: 8294 | BB26: 1 | BC26: 2 | BD26: 3 | BE26: 4 | BF26: 4 | BG26: 4 | BH26: 4 | BI26: 4 | BJ26: 4 | BK26: 4 | BL26: 1 | BM26: 2 | BN26: 3 | BO26: 3 | BP26: 3 | BQ26: 3 | BR26: 3 | BS26: 3 | BT26: 2548 | BU26: 4690 | BV26: 10 | BW26: 9 | BX26: 8 | BY26: 8 | BZ26: 10 | CA26: 9 | CB26: 6 | CC26: 12 | CD26: 7 | CE26: 4 | CF26: 11 | CG26: 3 | CH26: 1 | CI26: 0 | CJ26: 0 | CK26: 0 | CL26: 0 | CO26: 1 | CP26: 2 | CQ26: 3
B27: Cagnes | C27: 3ème | D27: A | E27: 50 | F27: 14 | G27: 6 | H27: 4 | I27: 2 | J27: 5 | K27: 2 | L27: 3 | M27: 6 | N27: 5 | O27: 7 | P27: 8 | Q27: 1 | R27: 13 | S27: 4 | T27: 9 | W27: 1 | X27: 3 | Y27: 4 | Z27: 9 | AA27: 1 | AB27: 0 | AC27: 1 | AD27: 1 | AE27: 0 | AF27: 0 | AG27: 0 | AH27: 0 | AI27: 1 | AJ27: 0 | AK27: 0 | AL27: 0 | AM27: 1 | AN27: 0 | AO27: 1 | AP27: 0 | AQ27: 0 | AR27: 0 | AS27: 0 | AT27: 0 | AU27: 2545 | AV27: 1883 | AW27: 1721 | AX27: 802 | AY27: 14 | AZ27: 4 | BA27: 6953 | BB27: 1 | BC27: 1 | BD27: 2 | BE27: 3 | BF27: 3 | BG27: 3 | BH27: 3 | BI27: 3 | BJ27: 4 | BK27: 4 | BL27: 1 | BM27: 1 | BN27: 2 | BO27: 2 | BP27: 2 | BQ27: 2 | BR27: 2 | BS27: 2 | BT27: 2547 | BU27: 4430 | BV27: 6 | BW27: 4 | BX27: 2 | BY27: 2 | BZ27: 3 | CA27: 6 | CB27: 5 | CC27: 7 | CD27: 8 | CE27: 1 | CF27: 13 | CG27: 4 | CH27: 9 | CI27: 0 | CJ27: 0 | CK27: 0 | CL27: 0 | CO27: 1 | CP27: 3 | CQ27: 9
C28: 4ème | D28: A | E28: 58 | F28: 12 | G28: 4 | H28: 10 | I28: 7 | J28: 5 | K28: 10 | L28: 8 | M28: 7 | N28: 12 | O28: 9 | P28: 4 | Q28: 5 | R28: 2 | S28: 3 | T28: 1 | W28: 1 | X28: 3 | Y28: 6 | Z28: 7 | AA28: 1 | AB28: 0 | AC28: 1 | AD28: 0 | AE28: 0 | AF28: 1 | AG28: 1 | AH28: 0 | AI28: 0 | AJ28: 0 | AK28: 0 | AL28: 0 | AM28: 1 | AN28: 0 | AO28: 1 | AP28: 0 | AQ28: 0 | AR28: 1 | AS28: 0 | AT28: 0 | AU28: 2545 | AV28: 1883 | AW28: 1294 | AX28: 1182 | AY28: 12 | AZ28: 4 | BA28: 6907 | BB28: 1 | BC28: 1 | BD28: 2 | BE28: 2 | BF28: 2 | BG28: 3 | BH28: 4 | BI28: 4 | BJ28: 4 | BK28: 4 | BL28: 1 | BM28: 1 | BN28: 2 | BO28: 2 | BP28: 2 | BQ28: 3 | BR28: 3 | BS28: 3 | BT28: 2548 | BU28: 4431 | BV28: 4 | BW28: 10 | BX28: 7 | BY28: 10 | BZ28: 8 | CA28: 7 | CB28: 12 | CC28: 9 | CD28: 4 | CE28: 5 | CF28: 2 | CG28: 3 | CH28: 1 | CI28: 0 | CJ28: 0 | CK28: 0 | CL28: 0 | CO28: 1 | CP28: 3 | CQ28: 6
C29: 5ème | D29: A | E29: 73 | F29: 11 | G29: 1 | H29: 8 | I29: 5 | J29: 6 | K29: 1 | L29: 8 | M29: 3 | N29: 5 | O29: 2 | P29: 4 | Q29: 6 | R29: 9 | S29: 11 | T29: 7 | W29: 1 | X29: 2 | Y29: 4 | Z29: 7 | AA29: 1 | AB29: 1 | AC29: 0 | AD29: 1 | AE29: 0 | AF29: 0 | AG29: 1 | AH29: 0 | AI29: 0 | AJ29: 0 | AK29: 0 | AL29: 0 | AM29: 1 | AN29: 1 | AO29: 0 | AP29: 1 | AQ29: 0 | AR29: 0 | AS29: 0 | AT29: 0 | AU29: 2545 | AV29: 2142 | AW29: 1721 | AX29: 1182 | AY29: 11 | AZ29: 4 | BA29: 7593 | BB29: 1 | BC29: 2 | BD29: 2 | BE29: 3 | BF29: 3 | BG29: 3 | BH29: 4 | BI29: 4 | BJ29: 4 | BK29: 4 | BL29: 1 | BM29: 2 | BN29: 2 | BO29: 3 | BP29: 3 | BQ29: 3 | BR29: 3 | BS29: 3 | BT29: 2548 | BU29: 4690 | BV29: 1 | BW29: 8 | BX29: 5 | BY29: 1 | BZ29: 8 | CA29: 3 | CB29: 5 | CC29: 2 | CD29: 4 | CE29: 6 | CF29: 9 | CG29: 11 | CH29: 7 | CI29: 0 | CJ29: 0 | CK29: 0 | CL29: 0 | CO29: 1 | CP29: 2 | CQ29: 4
C30: 6ème | D30: A | E30: 46 | F30: 13 | G30: 2 | H30: 12 | I30: 5 | J30: 9 | K30: 2 | L30: 4 | M30: 7 | N30: 5 | O30: 8 | P30: 10 | Q30: 13 | R30: 1 | S30: 9 | T30: 12 | W30: 1 | X30: 4 | Y30: 9 | Z30: 10 | AA30: 1 | AB30: 0 | AC30: 0 | AD30: 1 | AE30: 0 | AF30: 0 | AG30: 0 | AH30: 0 | AI30: 1 | AJ30: 1 | AK30: 0 | AL30: 0 | AM30: 1 | AN30: 0 | AO30: 0 | AP30: 1 | AQ30: 0 | AR30: 0 | AS30: 0 | AT30: 0 | AU30: 2545 | AV30: 1721 | AW30: 802 | AX30: 627 | AY30: 13 | AZ30: 4 | BA30: 5697 | BB30: 1 | BC30: 1 | BD30: 1 | BE30: 2 | BF30: 2 | BG30: 2 | BH30: 2 | BI30: 2 | BJ30: 3 | BK30: 4 | BL30: 1 | BM30: 1 | BN30: 1 | BO30: 2 | BP30: 2 | BQ30: 2 | BR30: 2 | BS30: 2 | BT30: 2547 | BU30: 4268 | BV30: 2 | BW30: 12 | BX30: 5 | BY30: 2 | BZ30: 4 | CA30: 7 | CB30: 5 | CC30: 8 | CD30: 10 | CE30: 13 | CF30: 1 | CG30: 9 | CH30: 12 | CI30: 0 | CJ30: 0 | CK30: 0 | CL30: 0 | CO30: 1 | CP30: 4 | CQ30: 10
C31: 7ème | D31: A | E31: 57 | F31: 14 | G31: 11 | H31: 6 | I31: 7 | J31: 12 | K31: 14 | L31: 10 | M31: 7 | N31: 8 | O31: 6 | P31: 11 | Q31: 4 | R31: 12 | S31: 9 | T31: 2 | W31: 3 | X31: 5 | Y31: 6 | Z31: 8 | AA31: 0 | AB31: 0 | AC31: 1 | AD31: 0 | AE31: 1 | AF31: 1 | AG31: 0 | AH31: 1 | AI31: 0 | AJ31: 0 | AK31: 0 | AL31: 0 | AM31: 0 | AN31: 0 | AO31: 1 | AP31: 0 | AQ31: 1 | AR31: 1 | AS31: 0 | AT31: 0 | AU31: 1883 | AV31: 1510 | AW31: 1294 | AX31: 950 | AY31: 14 | AZ31: 4 | BA31: 5640 | BB31: 0 | BC31: 0 | BD31: 1 | BE31: 1 | BF31: 2 | BG31: 3 | BH31: 3 | BI31: 4 | BJ31: 4 | BK31: 4 | BL31: 0 | BM31: 0 | BN31: 1 | BO31: 1 | BP31: 2 | BQ31: 3 | BR31: 3 | BS31: 3 | BT31: 1886 | BU31: 3396 | BV31: 11 | BW31: 6 | BX31: 7 | BY31: 14 | BZ31: 10 | CA31: 7 | CB31: 8 | CC31: 6 | CD31: 11 | CE31: 4 | CF31: 12 | CG31: 9 | CH31: 2 | CI31: 0 | CJ31: 0 | CK31: 2 | CL31: 2 | CO31: 3 | CP31: 5 | CQ31: 6
C32: 8ème | D32: A | E32: 50 | F32: 10 | G32: 6 | H32: 2 | I32: 4 | J32: 7 | K32: 8 | L32: 2 | M32: 6 | N32: 1 | O32: 5 | P32: 7 | Q32: 4 | R32: 3 | S32: 9 | T32: 10 | W32: 2 | X32: 3 | Y32: 6 | Z32: 7 | AA32: 0 | AB32: 1 | AC32: 1 | AD32: 0 | AE32: 0 | AF32: 1 | AG32: 1 | AH32: 0 | AI32: 0 | AJ32: 0 | AK32: 0 | AL32: 0 | AM32: 0 | AN32: 1 | AO32: 1 | AP32: 0 | AQ32: 0 | AR32: 0 | AS32: 1 | AT32: 0 | AU32: 2142 | AV32: 1883 | AW32: 1294 | AX32: 1182 | AY32: 10 | AZ32: 4 | BA32: 6504 | BB32: 0 | BC32: 1 | BD32: 2 | BE32: 2 | BF32: 2 | BG32: 3 | BH32: 4 | BI32: 4 | BJ32: 4 | BK32: 4 | BL32: 0 | BM32: 1 | BN32: 2 | BO32: 2 | BP32: 2 | BQ32: 2 | BR32: 3 | BS32: 3 | BT32: 2145 | BU32: 4028 | BV32: 6 | BW32: 2 | BX32: 4 | BY32: 8 | BZ32: 2 | CA32: 6 | CB32: 1 | CC32: 5 | CD32: 7 | CE32: 4 | CF32: 3 | CG32: 9 | CH32: 10 | CI32: 0 | CJ32: 0 | CK32: 1 | CL32: 1 | CO32: 2 | CP32: 3 | CQ32: 7
B33: Agen | C33: 1ère | D33: A | E33: 64 | F33: 11 | G33: 7 | H33: 3 | I33: 6 | J33: 1 | K33: 7 | L33: 3 | M33: 2 | N33: 5 | O33: 4 | P33: 6 | Q33: 1 | R33: 9 | S33: 11 | T33: 10 | W33: 1 | X33: 2 | Y33: 6 | Z33: 7 | AA33: 1 | AB33: 1 | AC33: 0 | AD33: 0 | AE33: 0 | AF33: 1 | AG33: 1 | AH33: 0 | AI33: 0 | AJ33: 0 | AK33: 0 | AL33: 0 | AM33: 1 | AN33: 1 | AO33: 0 | AP33: 0 | AQ33: 0 | AR33: 1 | AS33: 0 | AT33: 0 | AU33: 2545 | AV33: 2142 | AW33: 1294 | AX33: 1182 | AY33: 11 | AZ33: 4 | BA33: 7166 | BB33: 1 | BC33: 2 | BD33: 2 | BE33: 2 | BF33: 2 | BG33: 3 | BH33: 4 | BI33: 4 | BJ33: 4 | BK33: 4 | BL33: 1 | BM33: 2 | BN33: 2 | BO33: 2 | BP33: 2 | BQ33: 3 | BR33: 3 | BS33: 3 | BT33: 2548 | BU33: 4690 | BV33: 7 | BW33: 3 | BX33: 6 | BY33: 7 | BZ33: 3 | CA33: 2 | CB33: 5 | CC33: 4 | CD33: 6 | CE33: 1 | CF33: 9 | CG33: 11 | CH33: 10 | CI33: 0 | CJ33: 0 | CK33: 0 | CL33: 0 | CO33: 1 | CP33: 2 | CQ33: 6
C34: 3ème | D34: A | E34: 42 | F34: 12 | G34: 2 | H34: 1 | I34: 6 | J34: 8 | K34: 7 | L34: 2 | M34: 8 | N34: 1 | O34: 6 | P34: 5 | Q34: 11 | R34: 4 | S34: 9 | T34: 12 | W34: 2 | X34: 3 | Y34: 4 | Z34: 5 | AA34: 0 | AB34: 1 | AC34: 1 | AD34: 1 | AE34: 1 | AF34: 0 | AG34: 0 | AH34: 0 | AI34: 0 | AJ34: 0 | AK34: 0 | AL34: 0 | AM34: 0 | AN34: 1 | AO34: 0 | AP34: 1 | AQ34: 1 | AR34: 0 | AS34: 0 | AT34: 0 | AU34: 2142 | AV34: 1883 | AW34: 1721 | AX34: 1510 | AY34: 12 | AZ34: 4 | BA34: 7259 | BB34: 0 | BC34: 1 | BD34: 2 | BE34: 3 | BF34: 4 | BG34: 4 | BH34: 4 | BI34: 4 | BJ34: 4 | BK34: 4 | BL34: 0 | BM34: 1 | BN34: 1 | BO34: 2 | BP34: 3 | BQ34: 3 | BR34: 3 | BS34: 3 | BT34: 2145 | BU34: 4028 | BV34: 2 | BW34: 1 | BX34: 6 | BY34: 7 | BZ34: 2 | CA34: 8 | CB34: 1 | CC34: 6 | CD34: 5 | CE34: 11 | CF34: 4 | CG34: 9 | CH34: 12 | CI34: 0 | CJ34: 0 | CK34: 1 | CL34: 1 | CO34: 2 | CP34: 4 | CQ34: 5
C35: 4ème | D35: A | E35: 31 | F35: 13 | G35: 8 | H35: 10 | I35: 3 | J35: 7 | K35: 7 | L35: 6 | M35: 3 | N35: 10 | O35: 4 | P35: 8 | Q35: 9 | R35: 2 | S35: 5 | T35: 13 | W35: 1 | X35: 3 | Y35: 4 | Z35: 6 | AA35: 1 | AB35: 0 | AC35: 1 | AD35: 1 | AE35: 0 | AF35: 1 | AG35: 0 | AH35: 0 | AI35: 0 | AJ35: 0 | AK35: 0 | AL35: 0 | AM35: 0 | AN35: 0 | AO35: 1 | AP35: 1 | AQ35: 0 | AR35: 1 | AS35: 0 | AT35: 0 | AU35: 2545 | AV35: 1883 | AW35: 1721 | AX35: 1294 | AY35: 13 | AZ35: 4 | BA35: 7446 | BB35: 1 | BC35: 1 | BD35: 2 | BE35: 3 | BF35: 3 | BG35: 4 | BH35: 4 | BI35: 4 | BJ35: 4 | BK35: 4 | BL35: 0 | BM35: 0 | BN35: 1 | BO35: 2 | BP35: 2 | BQ35: 3 | BR35: 3 | BS35: 3 | BT35: 2548 | BU35: 4431 | BV35: 8 | BW35: 10 | BX35: 3 | BY35: 7 | BZ35: 6 | CA35: 3 | CB35: 10 | CC35: 4 | CD35: 8 | CE35: 9 | CF35: 2 | CG35: 5 | CH35: 13 | CI35: 0 | CJ35: 0 | CK35: 2 | CL35: 0 | CO35: 3 | CP35: 4 | CQ35: 6
C36: 5ème | D36: A | E36: 20 | F36: 10 | G36: 8 | H36: 2 | I36: 3 | J36: 6 | K36: 8 | L36: 2 | M36: 6 | N36: 5 | O36: 1 | P36: 4 | Q36: 9 | R36: 3 | S36: 10 | T36: 7 | W36: 1 | X36: 2 | Y36: 3 | Z36: 8 | AA36: 1 | AB36: 1 | AC36: 1 | AD36: 0 | AE36: 0 | AF36: 0 | AG36: 0 | AH36: 1 | AI36: 0 | AJ36: 0 | AK36: 0 | AL36: 0 | AM36: 1 | AN36: 1 | AO36: 0 | AP36: 0 | AQ36: 0 | AR36: 0 | AS36: 0 | AT36: 1 | AU36: 2545 | AV36: 2142 | AW36: 1883 | AX36: 950 | AY36: 10 | AZ36: 4 | BA36: 7523 | BB36: 1 | BC36: 2 | BD36: 3 | BE36: 3 | BF36: 3 | BG36: 3 | BH36: 3 | BI36: 4 | BJ36: 4 | BK36: 4 | BL36: 1 | BM36: 2 | BN36: 2 | BO36: 2 | BP36: 2 | BQ36: 2 | BR36: 2 | BS36: 3 | BT36: 2548 | BU36: 4690 | BV36: 8 | BW36: 2 | BX36: 3 | BY36: 8 | BZ36: 2 | CA36: 6 | CB36: 5 | CC36: 1 | CD36: 4 | CE36: 9 | CF36: 3 | CG36: 10 | CH36: 7 | CI36: 0 | CJ36: 0 | CK36: 0 | CL36: 0 | CO36: 1 | CP36: 2 | CQ36: 8
C37: 6ème | D37: A | E37: 36 | F37: 11 | G37: 10 | H37: 7 | I37: 9 | J37: 11 | K37: 10 | L37: 11 | M37: 9 | N37: 6 | O37: 8 | P37: 7 | Q37: 5 | R37: 4 | S37: 3 | T37: 1 | W37: 1 | X37: 2 | Y37: 3 | Z37: 6 | AA37: 1 | AB37: 1 | AC37: 1 | AD37: 0 | AE37: 0 | AF37: 1 | AG37: 0 | AH37: 0 | AI37: 0 | AJ37: 0 | AK37: 0 | AL37: 0 | AM37: 1 | AN37: 0 | AO37: 1 | AP37: 0 | AQ37: 0 | AR37: 1 | AS37: 0 | AT37: 0 | AU37: 2545 | AV37: 2142 | AW37: 1883 | AX37: 1294 | AY37: 11 | AZ37: 4 | BA37: 7867 | BB37: 1 | BC37: 2 | BD37: 3 | BE37: 3 | BF37: 3 | BG37: 4 | BH37: 4 | BI37: 4 | BJ37: 4 | BK37: 4 | BL37: 1 | BM37: 1 | BN37: 2 | BO37: 2 | BP37: 2 | BQ37: 3 | BR37: 3 | BS37: 3 | BT37: 2548 | BU37: 4690 | BV37: 10 | BW37: 7 | BX37: 9 | BY37: 10 | BZ37: 11 | CA37: 9 | CB37: 6 | CC37: 8 | CD37: 7 | CE37: 5 | CF37: 4 | CG37: 3 | CH37: 1 | CI37: 0 | CJ37: 0 | CK37: 0 | CL37: 0 | CO37: 1 | CP37: 3 | CQ37: 6
C38: 7ème | D38: A | E38: 54 | F38: 13 | G38: 7 | H38: 9 | I38: 8 | J38: 6 | K38: 1 | L38: 12 | M38: 11 | N38: 10 | O38: 9 | P38: 7 | Q38: 8 | R38: 5 | S38: 6 | T38: 3 | W38: 5 | X38: 6 | Y38: 7 | Z38: 9 | AA38: 0 | AB38: 0 | AC38: 0 | AD38: 0 | AE38: 1 | AF38: 1 | AG38: 1 | AH38: 0 | AI38: 1 | AJ38: 0 | AK38: 0 | AL38: 0 | AM38: 0 | AN38: 0 | AO38: 0 | AP38: 0 | AQ38: 1 | AR38: 1 | AS38: 1 | AT38: 0 | AU38: 1510 | AV38: 1294 | AW38: 1182 | AX38: 802 | AY38: 13 | AZ38: 4 | BA38: 4791 | BB38: 0 | BC38: 0 | BD38: 0 | BE38: 0 | BF38: 1 | BG38: 2 | BH38: 3 | BI38: 3 | BJ38: 4 | BK38: 4 | BL38: 0 | BM38: 0 | BN38: 0 | BO38: 0 | BP38: 1 | BQ38: 2 | BR38: 3 | BS38: 3 | BT38: 1513 | BU38: 2807 | BV38: 7 | BW38: 9 | BX38: 8 | BY38: 1 | BZ38: 12 | CA38: 11 | CB38: 10 | CC38: 9 | CD38: 7 | CE38: 8 | CF38: 5 | CG38: 6 | CH38: 3 | CI38: 0 | CJ38: 0 | CK38: 4 | CL38: 4 | CO38: 5 | CP38: 6 | CQ38: 7
C39: 8ème | D39: A | E39: 43 | F39: 14 | G39: 4 | H39: 13 | I39: 3 | J39: 14 | K39: 4 | L39: 5 | M39: 13 | N39: 8 | O39: 14 | P39: 7 | Q39: 1 | R39: 11 | S39: 3 | T39: 2 | W39: 1 | X39: 3 | Y39: 5 | Z39: 9 | AA39: 1 | AB39: 0 | AC39: 1 | AD39: 0 | AE39: 1 | AF39: 0 | AG39: 0 | AH39: 0 | AI39: 1 | AJ39: 0 | AK39: 0 | AL39: 0 | AM39: 1 | AN39: 0 | AO39: 1 | AP39: 0 | AQ39: 0 | AR39: 0 | AS39: 0 | AT39: 0 | AU39: 2545 | AV39: 1883 | AW39: 1510 | AX39: 802 | AY39: 14 | AZ39: 4 | BA39: 6742 | BB39: 1 | BC39: 1 | BD39: 2 | BE39: 2 | BF39: 3 | BG39: 3 | BH39: 3 | BI39: 3 | BJ39: 4 | BK39: 4 | BL39: 1 | BM39: 1 | BN39: 2 | BO39: 2 | BP39: 2 | BQ39: 2 | BR39: 2 | BS39: 2 | BT39: 2547 | BU39: 4430 | BV39: 4 | BW39: 13 | BX39: 3 | BY39: 4 | BZ39: 5 | CA39: 13 | CB39: 8 | CC39: 14 | CD39: 7 | CE39: 1 | CF39: 11 | CG39: 3 | CH39: 2 | CI39: 0 | CJ39: 0 | CK39: 0 | CL39: 0 | CO39: 1 | CP39: 3 | CQ39: 9
B40: Laval | C40: 1ère | D40: A | E40: 56 | F40: 16 | G40: 5 | H40: 8 | I40: 6 | J40: 13 | K40: 15 | L40: 4 | M40: 8 | N40: 13 | O40: 12 | P40: 5 | Q40: 7 | R40: 14 | S40: 6 | T40: 2 | W40: 3 | X40: 4 | Y40: 6 | Z40: 9 | AA40: 0 | AB40: 0 | AC40: 1 | AD40: 1 | AE40: 0 | AF40: 1 | AG40: 0 | AH40: 0 | AI40: 1 | AJ40: 0 | AK40: 0 | AL40: 0 | AM40: 0 | AN40: 0 | AO40: 1 | AP40: 0 | AQ40: 0 | AR40: 1 | AS40: 0 | AT40: 0 | AU40: 1883 | AV40: 1721 | AW40: 1294 | AX40: 802 | AY40: 16 | AZ40: 4 | BA40: 5702 | BB40: 0 | BC40: 0 | BD40: 1 | BE40: 2 | BF40: 2 | BG40: 3 | BH40: 3 | BI40: 3 | BJ40: 4 | BK40: 4 | BL40: 0 | BM40: 0 | BN40: 1 | BO40: 1 | BP40: 1 | BQ40: 2 | BR40: 2 | BS40: 2 | BT40: 1885 | BU40: 3606 | BV40: 5 | BW40: 8 | BX40: 6 | BY40: 15 | BZ40: 4 | CA40: 8 | CB40: 13 | CC40: 12 | CD40: 5 | CE40: 7 | CF40: 14 | CG40: 6 | CH40: 2 | CI40: 0 | CJ40: 0 | CK40: 2 | CL40: 2 | CO40: 3 | CP40: 6 | CQ40: 9
C41: 2ème | D41: A | E41: 69 | F41: 14 | G41: 10 | H41: 16 | I41: 4 | J41: 3 | K41: 7 | L41: 10 | M41: 5 | N41: 16 | O41: 4 | P41: 13 | Q41: 8 | R41: 12 | S41: 6 | T41: 14 | W41: 2 | X41: 4 | Y41: 5 | AA41: 0 | AB41: 1 | AC41: 0 | AD41: 1 | AE41: 1 | AF41: 0 | AG41: 0 | AH41: 0 | AI41: 0 | AJ41: 0 | AK41: 0 | AL41: 0 | AM41: 0 | AN41: 1 | AO41: 0 | AP41: 1 | AQ41: 1 | AR41: 0 | AS41: 0 | AT41: 0 | AU41: 2142 | AV41: 1721 | AW41: 1510 | AY41: 14 | AZ41: 3 | BA41: 5376 | BB41: 0 | BC41: 1 | BD41: 1 | BE41: 2 | BF41: 3 | BG41: 3 | BH41: 3 | BI41: 3 | BJ41: 3 | BK41: 3 | BL41: 0 | BM41: 1 | BN41: 1 | BO41: 2 | BP41: 3 | BQ41: 3 | BR41: 3 | BS41: 3 | BT41: 2145 | BU41: 3866 | BV41: 10 | BW41: 16 | BX41: 4 | BY41: 7 | BZ41: 10 | CA41: 5 | CB41: 16 | CC41: 4 | CD41: 13 | CE41: 8 | CF41: 12 | CG41: 6 | CH41: 14 | CI41: 0 | CJ41: 0 | CK41: 1 | CL41: 1 | CO41: 2 | CP41: 4 | CQ41: 5
C42: 3ème | D42: A | E42: 56 | F42: 18 | G42: 5 | H42: 14 | I42: 10 | J42: 8 | K42: 14 | L42: 7 | M42: 5 | N42: 2 | O42: 10 | P42: 1 | Q42: 18 | R42: 11 | S42: 17 | T42: 9 | W42: 1 | X42: 3 | Y42: 5 | AA42: 1 | AB42: 0 | AC42: 1 | AD42: 0 | AE42: 1 | AF42: 0 | AG42: 0 | AH42: 0 | AI42: 0 | AJ42: 0 | AK42: 0 | AL42: 0 | AM42: 1 | AN42: 0 | AO42: 1 | AP42: 0 | AQ42: 1 | AR42: 0 | AS42: 0 | AT42: 0 | AU42: 2545 | AV42: 1883 | AW42: 1510 | AY42: 18 | AZ42: 3 | BA42: 5941 | BB42: 1 | BC42: 1 | BD42: 2 | BE42: 2 | BF42: 3 | BG42: 3 | BH42: 3 | BI42: 3 | BJ42: 3 | BK42: 3 | BL42: 1 | BM42: 1 | BN42: 2 | BO42: 2 | BP42: 3 | BQ42: 3 | BR42: 3 | BS42: 3 | BT42: 2548 | BU42: 4431 | BV42: 5 | BW42: 14 | BX42: 10 | BY42: 14 | BZ42: 7 | CA42: 5 | CB42: 2 | CC42: 10 | CD42: 1 | CE42: 18 | CF42: 11 | CG42: 17 | CH42: 9 | CI42: 0 | CJ42: 0 | CK42: 0 | CL42: 0 | CO42: 1 | CP42: 3 | CQ42: 5
C43: 4ème | D43: A | E43: 69 | F43: 16 | G43: 14 | H43: 4 | I43: 15 | J43: 9 | K43: 14 | L43: 8 | M43: 9 | N43: 11 | O43: 7 | P43: 6 | Q43: 16 | R43: 3 | S43: 15 | T43: 5 | W43: 1 | X43: 3 | Y43: 9 | AA43: 1 | AB43: 0 | AC43: 1 | AD43: 0 | AE43: 0 | AF43: 0 | AG43: 0 | AH43: 0 | AI43: 1 | AJ43: 0 | AK43: 0 | AL43: 0 | AM43: 1 | AN43: 0 | AO43: 0 | AP43: 0 | AQ43: 0 | AR43: 0 | AS43: 0 | AT43: 0 | AU43: 2545 | AV43: 1883 | AW43: 802 | AY43: 16 | AZ43: 3 | BA43: 5231 | BB43: 1 | BC43: 1 | BD43: 2 | BE43: 2 | BF43: 2 | BG43: 2 | BH43: 2 | BI43: 2 | BJ43: 3 | BK43: 3 | BL43: 1 | BM43: 1 | BN43: 1 | BO43: 1 | BP43: 1 | BQ43: 1 | BR43: 1 | BS43: 1 | BT43: 2546 | BU43: 4429 | BV43: 14 | BW43: 4 | BX43: 15 | BY43: 14 | BZ43: 8 | CA43: 9 | CB43: 11 | CC43: 7 | CD43: 6 | CE43: 16 | CF43: 3 | CG43: 15 | CH43: 5 | CI43: 0 | CJ43: 0 | CK43: 0 | CL43: 0 | CO43: 1 | CP43: 9
C44: 5ème | D44: A | E44: 79 | F44: 14 | G44: 13 | H44: 8 | I44: 12 | J44: 3 | K44: 7 | L44: 13 | M44: 8 | N44: 14 | O44: 1 | P44: 10 | Q44: 9 | R44: 12 | S44: 6 | T44: 3 | W44: 2 | X44: 3 | Y44: 8 | Z44: 10 | AA44: 0 | AB44: 1 | AC44: 1 | AD44: 0 | AE44: 0 | AF44: 0 | AG44: 0 | AH44: 1 | AI44: 0 | AJ44: 1 | AK44: 0 | AL44: 0 | AM44: 0 | AN44: 1 | AO44: 1 | AP44: 0 | AQ44: 0 | AR44: 0 | AS44: 0 | AT44: 1 | AU44: 2142 | AV44: 1883 | AW44: 950 | AX44: 627 | AY44: 14 | AZ44: 4 | BA44: 5605 | BB44: 0 | BC44: 1 | BD44: 2 | BE44: 2 | BF44: 2 | BG44: 2 | BH44: 2 | BI44: 3 | BJ44: 3 | BK44: 4 | BL44: 0 | BM44: 1 | BN44: 2 | BO44: 2 | BP44: 2 | BQ44: 2 | BR44: 2 | BS44: 3 | BT44: 2145 | BU44: 4028 | BV44: 13 | BW44: 8 | BX44: 12 | BY44: 7 | BZ44: 13 | CA44: 8 | CB44: 14 | CC44: 1 | CD44: 10 | CE44: 9 | CF44: 12 | CG44: 6 | CH44: 3 | CI44: 0 | CJ44: 0 | CK44: 1 | CL44: 1 | CO44: 2 | CP44: 3 | CQ44: 8
C45: 6ème | D45: A | E45: 63 | F45: 16 | G45: 1 | H45: 16 | I45: 9 | J45: 14 | K45: 15 | L45: 6 | M45: 16 | N45: 14 | O45: 8 | P45: 7 | Q45: 1 | R45: 3 | S45: 10 | T45: 5 | W45: 3 | X45: 4 | Y45: 7 | AA45: 0 | AB45: 0 | AC45: 1 | AD45: 1 | AE45: 0 | AF45: 0 | AG45: 1 | AH45: 0 | AI45: 0 | AJ45: 0 | AK45: 0 | AL45: 0 | AM45: 0 | AN45: 0 | AO45: 1 | AP45: 0 | AQ45: 0 | AR45: 0 | AS45: 1 | AT45: 0 | AU45: 1883 | AV45: 1721 | AW45: 1182 | AY45: 16 | AZ45: 3 | BA45: 4788 | BB45: 0 | BC45: 0 | BD45: 1 | BE45: 2 | BF45: 2 | BG45: 2 | BH45: 3 | BI45: 3 | BJ45: 3 | BK45: 3 | BL45: 0 | BM45: 0 | BN45: 1 | BO45: 1 | BP45: 1 | BQ45: 1 | BR45: 2 | BS45: 2 | BT45: 1885 | BU45: 3606 | BV45: 1 | BW45: 16 | BX45: 9 | BY45: 15 | BZ45: 6 | CA45: 16 | CB45: 14 | CC45: 8 | CD45: 7 | CE45: 1 | CF45: 3 | CG45: 10 | CH45: 5 | CI45: 0 | CJ45: 0 | CK45: 2 | CL45: 2 | CO45: 3 | CP45: 7
C46: 8ème | D46: A | E46: 100 | F46: 14 | G46: 2 | H46: 5 | I46: 13 | J46: 11 | K46: 5 | L46: 3 | M46: 2 | N46: 7 | O46: 6 | P46: 14 | Q46: 11 | R46: 4 | S46: 13 | T46: 8 | W46: 1 | X46: 3 | Y46: 7 | Z46: 9 | AA46: 1 | AB46: 0 | AC46: 1 | AD46: 0 | AE46: 0 | AF46: 0 | AG46: 1 | AH46: 0 | AI46: 1 | AJ46: 0 | AK46: 0 | AL46: 0 | AM46: 1 | AN46: 0 | AO46: 1 | AP46: 0 | AQ46: 0 | AR46: 0 | AS46: 0 | AT46: 0 | AU46: 2545 | AV46: 1883 | AW46: 1182 | AX46: 802 | AY46: 14 | AZ46: 4 | BA46: 6414 | BB46: 1 | BC46: 1 | BD46: 2 | BE46: 2 | BF46: 2 | BG46: 2 | BH46: 3 | BI46: 3 | BJ46: 4 | BK46: 4 | BL46: 1 | BM46: 1 | BN46: 2 | BO46: 2 | BP46: 2 | BQ46: 2 | BR46: 2 | BS46: 2 | BT46: 2547 | BU46: 4430 | BV46: 2 | BW46: 5 | BX46: 13 | BY46: 5 | BZ46: 3 | CA46: 2 | CB46: 7 | CC46: 6 | CD46: 14 | CE46: 11 | CF46: 4 | CG46: 13 | CH46: 8 | CI46: 0 | CJ46: 0 | CK46: 0 | CL46: 0 | CO46: 1 | CP46: 3 | CQ46: 9
A47: 2022-02-17 | B47: Vincennes | C47: 1ère | D47: A | E47: 44 | F47: 16 | G47: 11 | H47: 13 | I47: 12 | J47: 9 | K47: 15 | L47: 11 | M47: 9 | N47: 14 | O47: 4 | P47: 5 | Q47: 7 | R47: 13 | S47: 12 | T47: 2 | W47: 2 | X47: 3 | Y47: 8 | Z47: 9 | AA47: 0 | AB47: 1 | AC47: 1 | AD47: 0 | AE47: 0 | AF47: 0 | AG47: 0 | AH47: 1 | AI47: 1 | AJ47: 0 | AK47: 0 | AL47: 0 | AM47: 0 | AN47: 1 | AO47: 0 | AP47: 0 | AQ47: 0 | AR47: 0 | AS47: 0 | AT47: 1 | AU47: 2142 | AV47: 1883 | AW47: 950 | AX47: 802 | AY47: 16 | AZ47: 4 | BA47: 5779 | BB47: 0 | BC47: 1 | BD47: 2 | BE47: 2 | BF47: 2 | BG47: 2 | BH47: 2 | BI47: 3 | BJ47: 4 | BK47: 4 | BL47: 0 | BM47: 1 | BN47: 1 | BO47: 1 | BP47: 1 | BQ47: 1 | BR47: 1 | BS47: 2 | BT47: 2144 | BU47: 4027 | BV47: 11 | BW47: 13 | BX47: 12 | BY47: 15 | BZ47: 11 | CA47: 9 | CB47: 14 | CC47: 4 | CD47: 5 | CE47: 7 | CF47: 13 | CG47: 12 | CH47: 2 | CI47: 0 | CJ47: 0 | CK47: 1 | CL47: 1 | CO47: 2 | CP47: 8 | CQ47: 9
C48: 2ème | D48: A | E48: 80 | F48: 15 | G48: 8 | H48: 12 | I48: 3 | J48: 7 | K48: 4 | L48: 8 | M48: 12 | N48: 3 | O48: 14 | P48: 6 | Q48: 13 | R48: 2 | S48: 15 | T48: 10 | W48: 2 | X48: 3 | Y48: 4 | AA48: 0 | AB48: 1 | AC48: 1 | AD48: 1 | AE48: 0 | AF48: 0 | AG48: 0 | AH48: 0 | AI48: 0 | AJ48: 0 | AK48: 0 | AL48: 0 | AM48: 0 | AN48: 1 | AO48: 1 | AP48: 1 | AQ48: 0 | AR48: 0 | AS48: 0 | AT48: 0 | AU48: 2142 | AV48: 1883 | AW48: 1721 | AY48: 15 | AZ48: 3 | BA48: 5749 | BB48: 0 | BC48: 1 | BD48: 2 | BE48: 3 | BF48: 3 | BG48: 3 | BH48: 3 | BI48: 3 | BJ48: 3 | BK48: 3 | BL48: 0 | BM48: 1 | BN48: 2 | BO48: 3 | BP48: 3 | BQ48: 3 | BR48: 3 | BS48: 3 | BT48: 2145 | BU48: 4028 | BV48: 8 | BW48: 12 | BX48: 3 | BY48: 4 | BZ48: 8 | CA48: 12 | CB48: 3 | CC48: 14 | CD48: 6 | CE48: 13 | CF48: 2 | CG48: 15 | CH48: 10 | CI48: 0 | CJ48: 0 | CK48: 1 | CL48: 1 | CO48: 2 | CP48: 3 | CQ48: 4
C49: 4ème | D49: A | E49: 64 | F49: 11 | G49: 4 | H49: 9 | I49: 5 | J49: 7 | K49: 1 | L49: 9 | M49: 4 | N49: 8 | O49: 5 | P49: 7 | Q49: 2 | R49: 10 | S49: 3 | T49: 6 | W49: 2 | X49: 3 | Y49: 5 | Z49: 6 | AA49: 0 | AB49: 1 | AC49: 1 | AD49: 0 | AE49: 1 | AF49: 1 | AG49: 0 | AH49: 0 | AI49: 0 | AJ49: 0 | AK49: 0 | AL49: 0 | AM49: 0 | AN49: 1 | AO49: 1 | AP49: 0 | AQ49: 1 | AR49: 0 | AS49: 0 | AT49: 0 | AU49: 2142 | AV49: 1883 | AW49: 1510 | AX49: 1294 | AY49: 11 | AZ49: 4 | BA49: 6832 | BB49: 0 | BC49: 1 | BD49: 2 | BE49: 2 | BF49: 3 | BG49: 4 | BH49: 4 | BI49: 4 | BJ49: 4 | BK49: 4 | BL49: 0 | BM49: 1 | BN49: 2 | BO49: 2 | BP49: 3 | BQ49: 3 | BR49: 3 | BS49: 3 | BT49: 2145 | BU49: 4028 | BV49: 4 | BW49: 9 | BX49: 5 | BY49: 1 | BZ49: 9 | CA49: 4 | CB49: 8 | CC49: 5 | CD49: 7 | CE49: 2 | CF49: 10 | CG49: 3 | CH49: 6 | CI49: 0 | CJ49: 0 | CK49: 1 | CL49: 1 | CO49: 2 | CP49: 3 | CQ49: 5
C50: 6ème | D50: A | E50: 50 | F50: 14 | G50: 3 | H50: 2 | I50: 5 | J50: 10 | K50: 7 | L50: 13 | M50: 5 | N50: 6 | O50: 10 | P50: 9 | Q50: 3 | R50: 2 | S50: 8 | T50: 12 | W50: 3 | X50: 5 | Y50: 7 | Z50: 8 | AA50: 0 | AB50: 0 | AC50: 1 | AD50: 0 | AE50: 1 | AF50: 0 | AG50: 1 | AH50: 1 | AI50: 0 | AJ50: 0 | AK50: 0 | AL50: 0 | AM50: 0 | AN50: 0 | AO50: 1 | AP50: 0 | AQ50: 0 | AR50: 0 | AS50: 1 | AT50: 1 | AU50: 1883 | AV50: 1510 | AW50: 1182 | AX50: 950 | AY50: 14 | AZ50: 4 | BA50: 5528 | BB50: 0 | BC50: 0 | BD50: 1 | BE50: 1 | BF50: 2 | BG50: 2 | BH50: 3 | BI50: 4 | BJ50: 4 | BK50: 4 | BL50: 0 | BM50: 0 | BN50: 1 | BO50: 1 | BP50: 1 | BQ50: 1 | BR50: 2 | BS50: 3 | BT50: 1886 | BU50: 3396 | BV50: 3 | BW50: 2 | BX50: 5 | BY50: 7 | BZ50: 13 | CA50: 5 | CB50: 6 | CC50: 10 | CD50: 9 | CE50: 3 | CF50: 2 | CG50: 8 | CH50: 12 | CI50: 0 | CJ50: 0 | CK50: 2 | CL50: 2 | CO50: 3 | CP50: 7 | CQ50: 8
C51: 7ème | D51: A | E51: 30 | F51: 10 | G51: 5 | H51: 10 | I51: 2 | J51: 3 | K51: 10 | L51: 5 | M51: 3 | N51: 8 | O51: 2 | P51: 6 | Q51: 1 | R51: 7 | S51: 9 | T51: 4 | W51: 1 | X51: 2 | Y51: 3 | Z51: 5 | AA51: 1 | AB51: 1 | AC51: 1 | AD51: 0 | AE51: 1 | AF51: 0 | AG51: 0 | AH51: 0 | AI51: 0 | AJ51: 0 | AK51: 0 | AL51: 0 | AM51: 1 | AN51: 1 | AO51: 0 | AP51: 0 | AQ51: 1 | AR51: 0 | AS51: 0 | AT51: 0 | AU51: 2545 | AV51: 2142 | AW51: 1883 | AX51: 1510 | AY51: 10 | AZ51: 4 | BA51: 8083 | BB51: 1 | BC51: 2 | BD51: 3 | BE51: 3 | BF51: 4 | BG51: 4 | BH51: 4 | BI51: 4 | BJ51: 4 | BK51: 4 | BL51: 1 | BM51: 2 | BN51: 2 | BO51: 2 | BP51: 3 | BQ51: 3 | BR51: 3 | BS51: 3 | BT51: 2548 | BU51: 4690 | BV51: 5 | BW51: 10 | BX51: 2 | BY51: 10 | BZ51: 5 | CA51: 3 | CB51: 8 | CC51: 2 | CD51: 6 | CE51: 1 | CF51: 7 | CG51: 9 | CH51: 4 | CI51: 0 | CJ51: 0 | CK51: 0 | CL51: 0 | CO51: 1 | CP51: 2 | CQ51: 5
A52: 2022-02-18 | B52: Cagnes | C52: 3ème | D52: A | E52: 30 | F52: 10 | G52: 9 | H52: 5 | I52: 1 | J52: 4 | K52: 5 | L52: 9 | M52: 10 | N52: 4 | O52: 1 | P52: 2 | Q52: 8 | R52: 3 | S52: 7 | T52: 6 | W52: 1 | X52: 2 | Y52: 4 | Z52: 5 | AA52: 1 | AB52: 1 | AC52: 0 | AD52: 1 | AE52: 1 | AF52: 0 | AG52: 0 | AH52: 0 | AI52: 0 | AJ52: 0 | AK52: 0 | AL52: 0 | AM52: 1 | AN52: 1 | AO52: 0 | AP52: 0 | AQ52: 1 | AR52: 0 | AS52: 0 | AT52: 0 | AU52: 2545 | AV52: 2142 | AW52: 1721 | AX52: 1510 | AY52: 10 | AZ52: 4 | BA52: 7921 | BB52: 1 | BC52: 2 | BD52: 2 | BE52: 3 | BF52: 4 | BG52: 4 | BH52: 4 | BI52: 4 | BJ52: 4 | BK52: 4 | BL52: 1 | BM52: 2 | BN52: 2 | BO52: 2 | BP52: 3 | BQ52: 3 | BR52: 3 | BS52: 3 | BT52: 2548 | BU52: 4690 | BV52: 9 | BW52: 5 | BX52: 1 | BY52: 5 | BZ52: 9 | CA52: 10 | CB52: 4 | CC52: 1 | CD52: 2 | CE52: 8 | CF52: 3 | CG52: 7 | CH52: 6 | CI52: 0 | CJ52: 0 | CK52: 0 | CL52: 0 | CO52: 1 | CP52: 2 | CQ52: 5
C53: 4ème | D53: A | E53: 56 | F53: 16 | G53: 5 | H53: 4 | I53: 9 | J53: 12 | K53: 4 | L53: 8 | M53: 9 | N53: 10 | O53: 7 | P53: 16 | Q53: 12 | R53: 5 | S53: 1 | T53: 11 | W53: 1 | X53: 3 | Y53: 7 | Z53: 8 | AA53: 1 | AB53: 0 | AC53: 1 | AD53: 0 | AE53: 0 | AF53: 0 | AG53: 1 | AH53: 1 | AI53: 0 | AJ53: 0 | AK53: 0 | AL53: 0 | AM53: 1 | AN53: 0 | AO53: 1 | AP53: 0 | AQ53: 0 | AR53: 0 | AS53: 0 | AT53: 1 | AU53: 2545 | AV53: 1883 | AW53: 1182 | AX53: 950 | AY53: 16 | AZ53: 4 | BA53: 6563 | BB53: 1 | BC53: 1 | BD53: 2 | BE53: 2 | BF53: 2 | BG53: 2 | BH53: 3 | BI53: 4 | BJ53: 4 | BK53: 4 | BL53: 1 | BM53: 1 | BN53: 2 | BO53: 2 | BP53: 2 | BQ53: 2 | BR53: 2 | BS53: 3 | BT53: 2548 | BU53: 4431 | BV53: 5 | BW53: 4 | BX53: 9 | BY53: 4 | BZ53: 8 | CA53: 9 | CB53: 10 | CC53: 7 | CD53: 16 | CE53: 12 | CF53: 5 | CG53: 1 | CH53: 11 | CI53: 0 | CJ53: 0 | CK53: 0 | CL53: 0 | CO53: 1 | CP53: 3 | CQ53: 8
C54: 6ème | D54: A | E54: 50 | F54: 16 | G54: 6 | H54: 4 | I54: 10 | J54: 3 | K54: 4 | L54: 6 | M54: 15 | N54: 10 | O54: 16 | P54: 3 | Q54: 7 | R54: 11 | S54: 1 | T54: 2 | W54: 1 | X54: 2 | Y54: 4 | Z54: 6 | AA54: 1 | AB54: 1 | AC54: 0 | AD54: 1 | AE54: 0 | AF54: 1 | AG54: 0 | AH54: 0 | AI54: 0 | AJ54: 0 | AK54: 0 | AL54: 0 | AM54: 1 | AN54: 1 | AO54: 0 | AP54: 1 | AQ54: 0 | AR54: 0 | AS54: 0 | AT54: 0 | AU54: 2545 | AV54: 2142 | AW54: 1721 | AX54: 1294 | AY54: 16 | AZ54: 4 | BA54: 7705 | BB54: 1 | BC54: 2 | BD54: 2 | BE54: 3 | BF54: 3 | BG54: 4 | BH54: 4 | BI54: 4 | BJ54: 4 | BK54: 4 | BL54: 1 | BM54: 2 | BN54: 2 | BO54: 3 | BP54: 3 | BQ54: 3 | BR54: 3 | BS54: 3 | BT54: 2548 | BU54: 4690 | BV54: 6 | BW54: 4 | BX54: 10 | BY54: 4 | BZ54: 6 | CA54: 15 | CB54: 10 | CC54: 16 | CD54: 3 | CE54: 7 | CF54: 11 | CG54: 1 | CH54: 2 | CI54: 0 | CJ54: 0 | CK54: 0 | CL54: 0 | CO54: 1 | CP54: 2 | CQ54: 4
C55: 7ème | D55: A | E55: 57 | F55: 14 | G55: 5 | H55: 8 | I55: 13 | J55: 7 | K55: 5 | L55: 8 | M55: 7 | N55: 2 | O55: 14 | P55: 9 | Q55: 10 | R55: 1 | S55: 12 | T55: 13 | W55: 1 | X55: 2 | Y55: 3 | Z55: 10 | AA55: 1 | AB55: 1 | AC55: 1 | AD55: 0 | AE55: 0 | AF55: 0 | AG55: 0 | AH55: 0 | AI55: 0 | AJ55: 1 | AK55: 0 | AL55: 0 | AM55: 1 | AN55: 1 | AO55: 0 | AP55: 0 | AQ55: 0 | AR55: 0 | AS55: 0 | AT55: 0 | AU55: 2545 | AV55: 2142 | AW55: 1883 | AX55: 627 | AY55: 14 | AZ55: 4 | BA55: 7199 | BB55: 1 | BC55: 2 | BD55: 3 | BE55: 3 | BF55: 3 | BG55: 3 | BH55: 3 | BI55: 3 | BJ55: 3 | BK55: 4 | BL55: 1 | BM55: 2 | BN55: 2 | BO55: 2 | BP55: 2 | BQ55: 2 | BR55: 2 | BS55: 2 | BT55: 2547 | BU55: 4689 | BV55: 5 | BW55: 8 | BX55: 13 | BY55: 5 | BZ55: 8 | CA55: 7 | CB55: 2 | CC55: 14 | CD55: 9 | CE55: 10 | CF55: 1 | CG55: 12 | CH55: 13 | CI55: 0 | CJ55: 0 | CK55: 0 | CL55: 0 | CO55: 1 | CP55: 2 | CQ55: 10
C56: 8ème | D56: A | E56: 42 | F56: 11 | G56: 10 | H56: 9 | I56: 5 | J56: 12 | K56: 10 | L56: 12 | M56: 7 | N56: 9 | O56: 2 | P56: 8 | Q56: 5 | R56: 4 | S56: 6 | T56: 3 | W56: 1 | X56: 2 | Y56: 4 | Z56: 7 | AA56: 1 | AB56: 1 | AC56: 0 | AD56: 1 | AE56: 0 | AF56: 0 | AG56: 1 | AH56: 0 | AI56: 0 | AJ56: 0 | AK56: 0 | AL56: 0 | AM56: 1 | AN56: 0 | AO56: 0 | AP56: 1 | AQ56: 0 | AR56: 0 | AS56: 1 | AT56: 0 | AU56: 2545 | AV56: 2142 | AW56: 1721 | AX56: 1182 | AY56: 11 | AZ56: 4 | BA56: 7593 | BB56: 1 | BC56: 2 | BD56: 2 | BE56: 3 | BF56: 3 | BG56: 3 | BH56: 4 | BI56: 4 | BJ56: 4 | BK56: 4 | BL56: 1 | BM56: 1 | BN56: 1 | BO56: 2 | BP56: 2 | BQ56: 2 | BR56: 3 | BS56: 3 | BT56: 2548 | BU56: 4690 | BV56: 10 | BW56: 9 | BX56: 5 | BY56: 10 | BZ56: 12 | CA56: 7 | CB56: 9 | CC56: 2 | CD56: 8 | CE56: 5 | CF56: 4 | CG56: 6 | CH56: 3 | CI56: 0 | CJ56: 0 | CK56: 0 | CL56: 0 | CO56: 1 | CP56: 4 | CQ56: 7
B57: Graignes | C57: 1ère | D57: A | E57: 67 | F57: 12 | G57: 7 | H57: 6 | I57: 5 | J57: 8 | K57: 7 | L57: 2 | M57: 6 | N57: 12 | O57: 5 | P57: 11 | Q57: 4 | R57: 9 | S57: 3 | T57: 8 | W57: 1 | X57: 3 | Y57: 5 | Z57: 10 | AA57: 1 | AB57: 0 | AC57: 1 | AD57: 0 | AE57: 1 | AF57: 0 | AG57: 0 | AH57: 0 | AI57: 0 | AJ57: 1 | AK57: 0 | AL57: 0 | AM57: 1 | AN57: 0 | AO57: 1 | AP57: 0 | AQ57: 1 | AR57: 0 | AS57: 0 | AT57: 0 | AU57: 2545 | AV57: 1883 | AW57: 1510 | AX57: 627 | AY57: 12 | AZ57: 4 | BA57: 6568 | BB57: 1 | BC57: 1 | BD57: 2 | BE57: 2 | BF57: 3 | BG57: 3 | BH57: 3 | BI57: 3 | BJ57: 3 | BK57: 4 | BL57: 1 | BM57: 1 | BN57: 2 | BO57: 2 | BP57: 3 | BQ57: 3 | BR57: 3 | BS57: 3 | BT57: 2548 | BU57: 4431 | BV57: 7 | BW57: 6 | BX57: 5 | BY57: 7 | BZ57: 2 | CA57: 6 | CB57: 12 | CC57: 5 | CD57: 11 | CE57: 4 | CF57: 9 | CG57: 3 | CH57: 8 | CI57: 0 | CJ57: 0 | CK57: 0 | CL57: 0 | CO57: 1 | CP57: 3 | CQ57: 5
C58: 2ème | D58: A | E58: 43 | F58: 13 | G58: 2 | H58: 6 | I58: 3 | J58: 1 | K58: 2 | L58: 4 | M58: 6 | N58: 1 | O58: 3 | P58: 7 | Q58: 5 | R58: 11 | S58: 12 | T58: 13 | W58: 1 | X58: 3 | Y58: 4 | Z58: 5 | AA58: 1 | AB58: 0 | AC58: 1 | AD58: 1 | AE58: 1 | AF58: 0 | AG58: 0 | AH58: 0 | AI58: 0 | AJ58: 0 | AK58: 0 | AL58: 0 | AM58: 1 | AN58: 0 | AO58: 1 | AP58: 0 | AQ58: 1 | AR58: 0 | AS58: 0 | AT58: 0 | AU58: 2545 | AV58: 1883 | AW58: 1721 | AX58: 1510 | AY58: 13 | AZ58: 4 | BA58: 7662 | BB58: 1 | BC58: 1 | BD58: 2 | BE58: 3 | BF58: 4 | BG58: 4 | BH58: 4 | BI58: 4 | BJ58: 4 | BK58: 4 | BL58: 1 | BM58: 1 | BN58: 2 | BO58: 2 | BP58: 3 | BQ58: 3 | BR58: 3 | BS58: 3 | BT58: 2548 | BU58: 4431 | BV58: 2 | BW58: 6 | BX58: 3 | BY58: 2 | BZ58: 4 | CA58: 6 | CB58: 1 | CC58: 3 | CD58: 7 | CE58: 5 | CF58: 11 | CG58: 12 | CH58: 13 | CI58: 0 | CJ58: 0 | CK58: 0 | CL58: 0 | CO58: 1 | CP58: 3 | CQ58: 5
C59: 3ème | D59: A | E59: 43 | F59: 14 | G59: 12 | H59: 5 | I59: 2 | J59: 14 | K59: 7 | L59: 3 | M59: 2 | N59: 12 | O59: 5 | P59: 14 | Q59: 4 | R59: 1 | S59: 10 | T59: 9 | W59: 3 | X59: 4 | Y59: 5 | Z59: 6 | AA59: 0 | AB59: 0 | AC59: 1 | AD59: 1 | AE59: 1 | AF59: 1 | AG59: 0 | AH59: 0 | AI59: 0 | AJ59: 0 | AK59: 0 | AL59: 0 | AM59: 0 | AN59: 0 | AO59: 1 | AP59: 1 | AQ59: 1 | AR59: 0 | AS59: 0 | AT59: 0 | AU59: 1883 | AV59: 1721 | AW59: 1510 | AX59: 1294 | AY59: 14 | AZ59: 4 | BA59: 6411 | BB59: 0 | BC59: 0 | BD59: 1 | BE59: 2 | BF59: 3 | BG59: 4 | BH59: 4 | BI59: 4 | BJ59: 4 | BK59: 4 | BL59: 0 | BM59: 0 | BN59: 1 | BO59: 2 | BP59: 3 | BQ59: 3 | BR59: 3 | BS59: 3 | BT59: 1886 | BU59: 3607 | BV59: 12 | BW59: 5 | BX59: 2 | BY59: 7 | BZ59: 3 | CA59: 2 | CB59: 12 | CC59: 5 | CD59: 14 | CE59: 4 | CF59: 1 | CG59: 10 | CH59: 9 | CI59: 0 | CJ59: 0 | CK59: 2 | CL59: 2 | CO59: 3 | CP59: 4 | CQ59: 5
C60: 4ème | D60: A | E60: 33 | F60: 12 | G60: 9 | H60: 7 | I60: 11 | J60: 4 | K60: 11 | L60: 9 | M60: 10 | N60: 3 | O60: 4 | P60: 8 | Q60: 5 | R60: 7 | S60: 6 | T60: 12 | W60: 1 | X60: 2 | Y60: 5 | Z60: 8 | AA60: 1 | AB60: 1 | AC60: 0 | AD60: 0 | AE60: 1 | AF60: 0 | AG60: 0 | AH60: 1 | AI60: 0 | AJ60: 0 | AK60: 0 | AL60: 0 | AM60: 1 | AN60: 1 | AO60: 0 | AP60: 0 | AQ60: 0 | AR60: 0 | AS60: 0 | AT60: 1 | AU60: 2545 | AV60: 2142 | AW60: 1510 | AX60: 950 | AY60: 12 | AZ60: 4 | BA60: 7150 | BB60: 1 | BC60: 2 | BD60: 2 | BE60: 2 | BF60: 3 | BG60: 3 | BH60: 3 | BI60: 4 | BJ60: 4 | BK60: 4 | BL60: 1 | BM60: 2 | BN60: 2 | BO60: 2 | BP60: 2 | BQ60: 2 | BR60: 2 | BS60: 3 | BT60: 2548 | BU60: 4690 | BV60: 9 | BW60: 7 | BX60: 11 | BY60: 11 | BZ60: 9 | CA60: 10 | CB60: 3 | CC60: 4 | CD60: 8 | CE60: 5 | CF60: 7 | CG60: 6 | CH60: 12 | CI60: 0 | CJ60: 0 | CK60: 0 | CL60: 0 | CO60: 1 | CP60: 2 | CQ60: 8
C61: 5ème | D61: A | E61: 50 | F61: 12 | G61: 8 | H61: 7 | I61: 6 | J61: 12 | K61: 4 | L61: 6 | M61: 8 | N61: 12 | O61: 7 | P61: 5 | Q61: 3 | R61: 11 | S61: 2 | T61: 10 | W61: 2 | X61: 3 | Y61: 4 | Z61: 5 | AA61: 0 | AB61: 1 | AC61: 1 | AD61: 1 | AE61: 1 | AF61: 0 | AG61: 0 | AH61: 0 | AI61: 0 | AJ61: 0 | AK61: 0 | AL61: 0 | AM61: 0 | AN61: 1 | AO61: 1 | AP61: 0 | AQ61: 1 | AR61: 0 | AS61: 0 | AT61: 0 | AU61: 2142 | AV61: 1883 | AW61: 1721 | AX61: 1510 | AY61: 12 | AZ61: 4 | BA61: 7259 | BB61: 0 | BC61: 1 | BD61: 2 | BE61: 3 | BF61: 4 | BG61: 4 | BH61: 4 | BI61: 4 | BJ61: 4 | BK61: 4 | BL61: 0 | BM61: 1 | BN61: 2 | BO61: 2 | BP61: 3 | BQ61: 3 | BR61: 3 | BS61: 3 | BT61: 2145 | BU61: 4028 | BV61: 8 | BW61: 7 | BX61: 6 | BY61: 4 | BZ61: 6 | CA61: 8 | CB61: 12 | CC61: 7 | CD61: 5 | CE61: 3 | CF61: 11 | CG61: 2 | CH61: 10 | CI61: 0 | CJ61: 0 | CK61: 1 | CL61: 1 | CO61: 2 | CP61: 3 | CQ61: 5
C62: 7ème | D62: A | E62: 100 | F62: 10 | G62: 6 | H62: 7 | I62: 5 | J62: 8 | K62: 7 | L62: 4 | M62: 1 | N62: 2 | O62: 5 | P62: 6 | Q62: 3 | R62: 9 | S62: 8 | T62: 10 | W62: 1 | X62: 5 | Y62: 6 | Z62: 9 | AA62: 1 | AB62: 0 | AC62: 0 | AD62: 0 | AE62: 1 | AF62: 1 | AG62: 0 | AH62: 0 | AI62: 1 | AJ62: 0 | AK62: 0 | AL62: 0 | AM62: 1 | AN62: 0 | AO62: 0 | AP62: 0 | AQ62: 1 | AR62: 1 | AS62: 0 | AT62: 0 | AU62: 2545 | AV62: 1510 | AW62: 1294 | AX62: 802 | AY62: 10 | AZ62: 4 | BA62: 6154 | BB62: 1 | BC62: 1 | BD62: 1 | BE62: 1 | BF62: 2 | BG62: 3 | BH62: 3 | BI62: 3 | BJ62: 4 | BK62: 4 | BL62: 1 | BM62: 1 | BN62: 1 | BO62: 1 | BP62: 2 | BQ62: 3 | BR62: 3 | BS62: 3 | BT62: 2548 | BU62: 4058 | BV62: 6 | BW62: 7 | BX62: 5 | BY62: 7 | BZ62: 4 | CA62: 1 | CB62: 2 | CC62: 5 | CD62: 6 | CE62: 3 | CF62: 9 | CG62: 8 | CH62: 10 | CI62: 0 | CJ62: 0 | CK62: 0 | CL62: 0 | CO62: 1 | CP62: 5 | CQ62: 6
B63: Agen | C63: 1ère | D63: A | E63: 64 | F63: 14 | G63: 6 | H63: 5 | I63: 1 | J63: 7 | K63: 6 | L63: 11 | M63: 8 | N63: 1 | O63: 12 | P63: 7 | Q63: 5 | R63: 2 | S63: 14 | T63: 3 | W63: 1 | X63: 4 | Y63: 6 | Z63: 7 | AA63: 1 | AB63: 0 | AC63: 0 | AD63: 1 | AE63: 0 | AF63: 1 | AG63: 1 | AH63: 0 | AI63: 0 | AJ63: 0 | AK63: 0 | AL63: 0 | AM63: 1 | AN63: 0 | AO63: 0 | AP63: 1 | AQ63: 0 | AR63: 0 | AS63: 1 | AT63: 0 | AU63: 2545 | AV63: 1721 | AW63: 1294 | AX63: 1182 | AY63: 14 | AZ63: 4 | BA63: 6745 | BB63: 1 | BC63: 1 | BD63: 1 | BE63: 2 | BF63: 2 | BG63: 3 | BH63: 4 | BI63: 4 | BJ63: 4 | BK63: 4 | BL63: 1 | BM63: 1 | BN63: 1 | BO63: 2 | BP63: 2 | BQ63: 2 | BR63: 3 | BS63: 3 | BT63: 2548 | BU63: 4269 | BV63: 6 | BW63: 5 | BX63: 1 | BY63: 6 | BZ63: 11 | CA63: 8 | CB63: 1 | CC63: 12 | CD63: 7 | CE63: 5 | CF63: 2 | CG63: 14 | CH63: 3 | CI63: 0 | CJ63: 0 | CK63: 0 | CL63: 0 | CO63: 1 | CP63: 4 | CQ63: 7
C64: 3ème | D64: A | E64: 77 | F64: 12 | G64: 4 | H64: 13 | I64: 3 | J64: 1 | K64: 1 | L64: 3 | M64: 13 | N64: 4 | O64: 7 | P64: 2 | Q64: 6 | R64: 10 | S64: 9 | T64: 5 | W64: 1 | X64: 2 | Y64: 3 | Z64: 4 | AA64: 1 | AB64: 1 | AC64: 1 | AD64: 1 | AE64: 0 | AF64: 0 | AG64: 0 | AH64: 0 | AI64: 0 | AJ64: 0 | AK64: 0 | AL64: 0 | AM64: 0 | AN64: 1 | AO64: 1 | AP64: 1 | AQ64: 0 | AR64: 0 | AS64: 0 | AT64: 0 | AU64: 2545 | AV64: 2142 | AW64: 1883 | AX64: 1721 | AY64: 12 | AZ64: 4 | BA64: 8294 | BB64: 1 | BC64: 2 | BD64: 3 | BE64: 4 | BF64: 4 | BG64: 4 | BH64: 4 | BI64: 4 | BJ64: 4 | BK64: 4 | BL64: 0 | BM64: 1 | BN64: 2 | BO64: 3 | BP64: 3 | BQ64: 3 | BR64: 3 | BS64: 3 | BT64: 2548 | BU64: 4690 | BV64: 4 | BW64: 13 | BX64: 3 | BY64: 1 | BZ64: 3 | CA64: 13 | CB64: 4 | CC64: 7 | CD64: 2 | CE64: 6 | CF64: 10 | CG64: 9 | CH64: 5 | CI64: 0 | CJ64: 0 | CK64: 1 | CL64: 0 | CO64: 2 | CP64: 3 | CQ64: 4
C65: 4ème | D65: A | E65: 100 | F65: 11 | G65: 4 | H65: 2 | I65: 5 | J65: 6 | K65: 4 | L65: 9 | M65: 3 | N65: 2 | O65: 5 | P65: 7 | Q65: 6 | R65: 1 | S65: 8 | T65: 11 | W65: 1 | X65: 4 | Y65: 5 | Z65: 7 | AA65: 1 | AB65: 0 | AC65: 0 | AD65: 1 | AE65: 1 | AF65: 0 | AG65: 1 | AH65: 0 | AI65: 0 | AJ65: 0 | AK65: 0 | AL65: 0 | AM65: 1 | AN65: 0 | AO65: 0 | AP65: 1 | AQ65: 1 | AR65: 0 | AS65: 0 | AT65: 0 | AU65: 2545 | AV65: 1721 | AW65: 1510 | AX65: 1182 | AY65: 11 | AZ65: 4 | BA65: 6961 | BB65: 1 | BC65: 1 | BD65: 1 | BE65: 2 | BF65: 3 | BG65: 3 | BH65: 4 | BI65: 4 | BJ65: 4 | BK65: 4 | BL65: 1 | BM65: 1 | BN65: 1 | BO65: 2 | BP65: 3 | BQ65: 3 | BR65: 3 | BS65: 3 | BT65: 2548 | BU65: 4269 | BV65: 4 | BW65: 2 | BX65: 5 | BY65: 4 | BZ65: 9 | CA65: 3 | CB65: 2 | CC65: 5 | CD65: 7 | CE65: 6 | CF65: 1 | CG65: 8 | CH65: 11 | CI65: 0 | CJ65: 0 | CK65: 0 | CL65: 0 | CO65: 1 | CP65: 4 | CQ65: 5
C66: 5ème | D66: A | E66: 27 | F66: 11 | G66: 6 | H66: 10 | I66: 9 | J66: 7 | K66: 6 | L66: 2 | M66: 7 | N66: 11 | O66: 9 | P66: 4 | Q66: 10 | R66: 8 | S66: 3 | T66: 1 | W66: 1 | X66: 3 | Y66: 5 | Z66: 7 | AA66: 1 | AB66: 0 | AC66: 1 | AD66: 0 | AE66: 1 | AF66: 0 | AG66: 1 | AH66: 0 | AI66: 0 | AJ66: 0 | AK66: 0 | AL66: 0 | AM66: 1 | AN66: 0 | AO66: 0 | AP66: 0 | AQ66: 1 | AR66: 0 | AS66: 1 | AT66: 0 | AU66: 2545 | AV66: 1883 | AW66: 1510 | AX66: 1182 | AY66: 11 | AZ66: 4 | BA66: 7123 | BB66: 1 | BC66: 1 | BD66: 2 | BE66: 2 | BF66: 3 | BG66: 3 | BH66: 4 | BI66: 4 | BJ66: 4 | BK66: 4 | BL66: 1 | BM66: 1 | BN66: 1 | BO66: 1 | BP66: 2 | BQ66: 2 | BR66: 3 | BS66: 3 | BT66: 2548 | BU66: 4431 | BV66: 6 | BW66: 10 | BX66: 9 | BY66: 6 | BZ66: 2 | CA66: 7 | CB66: 11 | CC66: 9 | CD66: 4 | CE66: 10 | CF66: 8 | CG66: 3 | CH66: 1 | CI66: 0 | CJ66: 0 | CK66: 0 | CL66: 0 | CO66: 1 | CP66: 5 | CQ66: 7
C67: 6ème | D67: A | E67: 38 | F67: 15 | G67: 15 | H67: 3 | I67: 4 | J67: 11 | K67: 15 | L67: 4 | M67: 3 | N67: 5 | O67: 6 | P67: 2 | Q67: 14 | R67: 1 | S67: 8 | T67: 12 | W67: 1 | X67: 2 | Y67: 3 | AA67: 1 | AB67: 1 | AC67: 1 | AD67: 0 | AE67: 0 | AF67: 0 | AG67: 0 | AH67: 0 | AI67: 0 | AJ67: 0 | AK67: 0 | AL67: 0 | AM67: 1 | AN67: 1 | AO67: 1 | AP67: 0 | AQ67: 0 | AR67: 0 | AS67: 0 | AT67: 0 | AU67: 2545 | AV67: 2142 | AW67: 1883 | AY67: 15 | AZ67: 3 | BA67: 6573 | BB67: 1 | BC67: 2 | BD67: 3 | BE67: 3 | BF67: 3 | BG67: 3 | BH67: 3 | BI67: 3 | BJ67: 3 | BK67: 3 | BL67: 1 | BM67: 2 | BN67: 3 | BO67: 3 | BP67: 3 | BQ67: 3 | BR67: 3 | BS67: 3 | BT67: 2548 | BU67: 4690 | BV67: 15 | BW67: 3 | BX67: 4 | BY67: 15 | BZ67: 4 | CA67: 3 | CB67: 5 | CC67: 6 | CD67: 2 | CE67: 14 | CF67: 1 | CG67: 8 | CH67: 12 | CI67: 0 | CJ67: 0 | CK67: 0 | CL67: 0 | CO67: 1 | CP67: 2 | CQ67: 3
C68: 7ème | D68: A | E68: 75 | F68: 12 | G68: 3 | H68: 4 | I68: 8 | J68: 12 | K68: 3 | L68: 4 | M68: 9 | N68: 2 | O68: 7 | P68: 6 | Q68: 5 | R68: 8 | S68: 10 | T68: 12 | W68: 1 | X68: 2 | Y68: 8 | Z68: 10 | AA68: 1 | AB68: 1 | AC68: 0 | AD68: 0 | AE68: 0 | AF68: 0 | AG68: 0 | AH68: 1 | AI68: 0 | AJ68: 1 | AK68: 0 | AL68: 0 | AM68: 1 | AN68: 1 | AO68: 0 | AP68: 0 | AQ68: 0 | AR68: 0 | AS68: 0 | AT68: 1 | AU68: 2545 | AV68: 2142 | AW68: 950 | AX68: 627 | AY68: 12 | AZ68: 4 | BA68: 6267 | BB68: 1 | BC68: 2 | BD68: 2 | BE68: 2 | BF68: 2 | BG68: 2 | BH68: 2 | BI68: 3 | BJ68: 3 | BK68: 4 | BL68: 1 | BM68: 2 | BN68: 2 | BO68: 2 | BP68: 2 | BQ68: 2 | BR68: 2 | BS68: 3 | BT68: 2548 | BU68: 4690 | BV68: 3 | BW68: 4 | BX68: 8 | BY68: 3 | BZ68: 4 | CA68: 9 | CB68: 2 | CC68: 7 | CD68: 6 | CE68: 5 | CF68: 8 | CG68: 10 | CH68: 12 | CI68: 0 | CJ68: 0 | CK68: 0 | CL68: 0 | CO68: 1 | CP68: 2 | CQ68: 8
B69: Laval | C69: 1ère | D69: A | E69: 50 | F69: 11 | G69: 8 | H69: 6 | I69: 4 | J69: 11 | K69: 4 | L69: 12 | M69: 5 | N69: 6 | O69: 10 | P69: 8 | Q69: 7 | R69: 11 | S69: 2 | T69: 1 | W69: 1 | X69: 4 | Y69: 6 | Z69: 8 | AA69: 1 | AB69: 0 | AC69: 0 | AD69: 1 | AE69: 0 | AF69: 1 | AG69: 0 | AH69: 1 | AI69: 0 | AJ69: 0 | AK69: 0 | AL69: 0 | AM69: 1 | AN69: 0 | AO69: 0 | AP69: 1 | AQ69: 0 | AR69: 1 | AS69: 0 | AT69: 0 | AU69: 2545 | AV69: 1721 | AW69: 1294 | AX69: 950 | AY69: 11 | AZ69: 4 | BA69: 6513 | BB69: 1 | BC69: 1 | BD69: 1 | BE69: 2 | BF69: 2 | BG69: 3 | BH69: 3 | BI69: 4 | BJ69: 4 | BK69: 4 | BL69: 1 | BM69: 1 | BN69: 1 | BO69: 2 | BP69: 2 | BQ69: 3 | BR69: 3 | BS69: 3 | BT69: 2548 | BU69: 4269 | BV69: 8 | BW69: 6 | BX69: 4 | BY69: 4 | BZ69: 12 | CA69: 5 | CB69: 6 | CC69: 10 | CD69: 8 | CE69: 7 | CF69: 11 | CG69: 2 | CH69: 1 | CI69: 0 | CJ69: 0 | CK69: 0 | CL69: 0 | CO69: 1 | CP69: 4 | CQ69: 6
C70: 2ème | D70: A | E70: 62 | F70: 13 | G70: 5 | H70: 12 | I70: 2 | J70: 7 | K70: 5 | L70: 12 | M70: 13 | N70: 7 | O70: 2 | P70: 6 | Q70: 11 | R70: 8 | S70: 1 | T70: 3 | W70: 1 | X70: 2 | Y70: 4 | Z70: 5 | AA70: 1 | AB70: 1 | AC70: 0 | AD70: 1 | AE70: 1 | AF70: 0 | AG70: 0 | AH70: 0 | AI70: 0 | AJ70: 0 | AK70: 0 | AL70: 0 | AM70: 1 | AN70: 1 | AO70: 0 | AP70: 0 | AQ70: 1 | AR70: 0 | AS70: 0 | AT70: 0 | AU70: 2545 | AV70: 2142 | AW70: 1721 | AX70: 1510 | AY70: 13 | AZ70: 4 | BA70: 7921 | BB70: 1 | BC70: 2 | BD70: 2 | BE70: 3 | BF70: 4 | BG70: 4 | BH70: 4 | BI70: 4 | BJ70: 4 | BK70: 4 | BL70: 1 | BM70: 2 | BN70: 2 | BO70: 2 | BP70: 3 | BQ70: 3 | BR70: 3 | BS70: 3 | BT70: 2548 | BU70: 4690 | BV70: 5 | BW70: 12 | BX70: 2 | BY70: 5 | BZ70: 12 | CA70: 13 | CB70: 7 | CC70: 2 | CD70: 6 | CE70: 11 | CF70: 8 | CG70: 1 | CH70: 3 | CI70: 0 | CJ70: 0 | CK70: 0 | CL70: 0 | CO70: 1 | CP70: 2 | CQ70: 5
C71: 3ème | D71: A | E71: 38 | F71: 15 | G71: 13 | H71: 4 | I71: 5 | J71: 8 | K71: 13 | L71: 4 | M71: 14 | N71: 8 | O71: 3 | P71: 9 | Q71: 5 | R71: 12 | S71: 7 | T71: 11 | W71: 1 | X71: 2 | Y71: 4 | Z71: 7 | AA71: 1 | AB71: 1 | AC71: 0 | AD71: 1 | AE71: 0 | AF71: 0 | AG71: 1 | AH71: 0 | AI71: 0 | AJ71: 0 | AK71: 0 | AL71: 0 | AM71: 1 | AN71: 1 | AO71: 0 | AP71: 0 | AQ71: 0 | AR71: 0 | AS71: 1 | AT71: 0 | AU71: 2545 | AV71: 2142 | AW71: 1721 | AX71: 1182 | AY71: 15 | AZ71: 4 | BA71: 7593 | BB71: 1 | BC71: 2 | BD71: 2 | BE71: 3 | BF71: 3 | BG71: 3 | BH71: 4 | BI71: 4 | BJ71: 4 | BK71: 4 | BL71: 1 | BM71: 2 | BN71: 2 | BO71: 2 | BP71: 2 | BQ71: 2 | BR71: 3 | BS71: 3 | BT71: 2548 | BU71: 4690 | BV71: 13 | BW71: 4 | BX71: 5 | BY71: 13 | BZ71: 4 | CA71: 14 | CB71: 8 | CC71: 3 | CD71: 9 | CE71: 5 | CF71: 12 | CG71: 7 | CH71: 11 | CI71: 0 | CJ71: 0 | CK71: 0 | CL71: 0 | CO71: 1 | CP71: 2 | CQ71: 7
C72: 6ème | D72: A | E72: 73 | F72: 11 | G72: 7 | H72: 9 | I72: 1 | J72: 5 | K72: 8 | L72: 10 | M72: 9 | N72: 5 | O72: 4 | P72: 7 | Q72: 2 | R72: 3 | S72: 11 | T72: 6 | W72: 3 | X72: 4 | Y72: 6 | AA72: 0 | AB72: 0 | AC72: 1 | AD72: 1 | AE72: 0 | AF72: 1 | AG72: 0 | AH72: 0 | AI72: 0 | AJ72: 0 | AK72: 0 | AL72: 0 | AM72: 0 | AN72: 0 | AO72: 1 | AP72: 0 | AQ72: 0 | AR72: 1 | AS72: 0 | AT72: 0 | AU72: 1883 | AV72: 1721 | AW72: 1294 | AY72: 11 | AZ72: 3 | BA72: 4900 | BB72: 0 | BC72: 0 | BD72: 1 | BE72: 2 | BF72: 2 | BG72: 3 | BH72: 3 | BI72: 3 | BJ72: 3 | BK72: 3 | BL72: 0 | BM72: 0 | BN72: 1 | BO72: 1 | BP72: 1 | BQ72: 2 | BR72: 2 | BS72: 2 | BT72: 1885 | BU72: 3606 | BV72: 7 | BW72: 9 | BX72: 1 | BY72: 8 | BZ72: 10 | CA72: 9 | CB72: 5 | CC72: 4 | CD72: 7 | CE72: 2 | CF72: 3 | CG72: 11 | CH72: 6 | CI72: 0 | CJ72: 0 | CK72: 2 | CL72: 2 | CO72: 3 | CP72: 6
C73: 7ème | D73: A | E73: 57 | F73: 14 | G73: 7 | H73: 11 | I73: 14 | J73: 10 | K73: 8 | L73: 9 | M73: 13 | N73: 6 | O73: 11 | P73: 3 | Q73: 14 | R73: 7 | S73: 5 | T73: 2 | W73: 5 | X73: 7 | Y73: 8 | AA73: =COUNTIF(K73:K73,G73)+COUNTIF(K73:K73,H73)+COUNTIF(K73:K73,I73)+COUNTIF(K73:K73,J73) -> 0 | AB73: =COUNTIF(L73:L73,H73)+COUNTIF(L73:L73,I73)+COUNTIF(L73:L73,J73)+COUNTIF(L73:L73,G73) -> 0 | AC73: =COUNTIF(M73:M73,I73)+COUNTIF(M73:M73,J73)+COUNTIF(M73:M73,G73)+COUNTIF(M73:M73,H73) -> 0 | AD73: =COUNTIF(N73:N73,J73)+COUNTIF(N73:N73,G73)+COUNTIF(N73:N73,H73)+COUNTIF(N73:N73,I73) -> 0 | AE73: =COUNTIF(O73:O73,G73)+COUNTIF(O73:O73,H73)+COUNTIF(O73:O73,I73)+COUNTIF(O73:O73,J73) -> 1 | AF73: =COUNTIF(P73:P73,H73)+COUNTIF(P73:P73,I73)+COUNTIF(P73:P73,J73)+COUNTIF(P73:P73,G73) -> 0 | AG73: =COUNTIF(Q73:Q73,I73)+COUNTIF(Q73:Q73,J73)+COUNTIF(Q73:Q73,G73)+COUNTIF(Q73:Q73,H73) -> 1 | AH73: =COUNTIF(R73:R73,J73)+COUNTIF(R73:R73,G73)+COUNTIF(R73:R73,H73)+COUNTIF(R73:R73,I73) -> 1 | AI73: =COUNTIF(S73:S73,G73)+COUNTIF(S73:S73,H73)+COUNTIF(S73:S73,I73)+COUNTIF(S73:S73,J73) -> 0 | AJ73: =COUNTIF(T73:T73,H73)+COUNTIF(T73:T73,I73)+COUNTIF(T73:T73,J73)+COUNTIF(T73:T73,G73) -> 0 | AK73: =COUNTIF(U73:U73,G73)+COUNTIF(U73:U73,H73)+COUNTIF(U73:U73,I73)+COUNTIF(U73:U73,J73) -> 0 | AL73: =COUNTIF(V73:V73,G73)+COUNTIF(V73:V73,H73)+COUNTIF(V73:V73,I73)+COUNTIF(V73:V73,J73) -> 0 | AM73: =COUNTIF(K73:K73,G73)+COUNTIF(K73:K73,H73)+COUNTIF(K73:K73,I73) -> 0 | AN73: =COUNTIF(L73:L73,H73)+COUNTIF(L73:L73,I73)+COUNTIF(L73:L73,G73) -> 0 | AO73: =COUNTIF(M73:M73,I73)+COUNTIF(M73:M73,G73)+COUNTIF(M73:M73,H73) -> 0 | AP73: =COUNTIF(N73:N73,G73)+COUNTIF(N73:N73,H73)+COUNTIF(N73:N73,I73) -> 0 | AQ73: =COUNTIF(O73:O73,H73)+COUNTIF(O73:O73,I73)+COUNTIF(O73:O73,G73) -> 1 | AR73: =COUNTIF(P73:P73,I73)+COUNTIF(P73:P73,G73)+COUNTIF(P73:P73,H73) -> 0 | AS73: =COUNTIF(Q73:Q73,G73)+COUNTIF(Q73:Q73,H73)+COUNTIF(Q73:Q73,I73) -> 1 | AT73: =COUNTIF(R73:R73,H73)+COUNTIF(R73:R73,I73)+COUNTIF(R73:R73,G73) -> 1 | AU73: 1510 | AV73: 1182 | AW73: 950 | AY73: =F73 -> 14 | AZ73: =SUM(AA73:AL73) -> 3 | BA73: =SUM(AM73:AX73) -> 3645 | BB73: =AA73 -> 0 | BC73: =SUM(AA73:AB73) -> 0 | BD73: =SUM(AA73:AC73) -> 0 | BE73: =SUM(AA73:AD73) -> 0 | BF73: =SUM(AA73:AE73) -> 1 | BG73: =SUM(AA73:AF73) -> 1 | BH73: =SUM(AA73:AG73) -> 2 | BI73: =SUM(AA73:AH73) -> 3 | BJ73: =SUM(AA73:AI73) -> 3 | BK73: =SUM(AA73:AJ73) -> 3 | BL73: =AM73 -> 0 | BM73: =SUM(AM73:AN73) -> 0 | BN73: =SUM(AM73:AO73) -> 0 | BO73: =SUM(AM73:AP73) -> 0 | BP73: =SUM(AM73:AQ73) -> 1 | BQ73: =SUM(AM73:AR73) -> 1 | BR73: =SUM(AM73:AS73) -> 2 | BS73: =SUM(AM73:AT73) -> 3 | BT73: =SUM(AM73:AU73) -> 1513 | BU73: =SUM(AM73:AV73) -> 2695 | BV73: 7 | BW73: 11 | BX73: 14 | BY73: 8 | BZ73: 9 | CA73: 13 | CB73: 6 | CC73: 11 | CD73: 3 | CE73: 14 | CF73: 7 | CG73: 5 | CH73: 2 | CI73: =U73 -> 0 | CJ73: 0 | CK73: =COUNTIF(BL73:BU73,0) -> 4 | CL73: =COUNTIF(BB73:BK73,0) -> 4 | CO73: 5 | CP73: 7 | CQ73: 8
C74: 8ème | D74: A | E74: 100 | F74: 14 | G74: 6 | H74: 11 | I74: 10 | J74: 1 | K74: 2 | L74: 4 | M74: 9 | N74: 13 | O74: 3 | P74: 10 | Q74: 5 | R74: 12 | S74: 1 | T74: 7 | W74: 6 | X74: 9 | AA74: 0 | AB74: 0 | AC74: 0 | AD74: 0 | AE74: 0 | AF74: 1 | AG74: 0 | AH74: 0 | AI74: 1 | AJ74: 0 | AK74: 0 | AL74: 0 | AM74: 0 | AN74: 0 | AO74: 0 | AP74: 0 | AQ74: 0 | AR74: 1 | AS74: 0 | AT74: 0 | AU74: 1294 | AV74: 802 | AY74: 14 | AZ74: 2 | BA74: 2097 | BB74: 0 | BC74: 0 | BD74: 0 | BE74: 0 | BF74: 0 | BG74: 1 | BH74: 1 | BI74: 1 | BJ74: 2 | BK74: 2 | BL74: 0 | BM74: 0 | BN74: 0 | BO74: 0 | BP74: 0 | BQ74: 1 | BR74: 1 | BS74: 1 | BT74: 1295 | BU74: 2097 | BV74: 6 | BW74: 11 | BX74: 10 | BY74: 2 | BZ74: 4 | CA74: 9 | CB74: 13 | CC74: 3 | CD74: 10 | CE74: 5 | CF74: 12 | CG74: 1 | CH74: 7 | CI74: 0 | CJ74: 0 | CK74: 5 | CL74: 5 | CO74: 6
A75: 2022-02-20 | B75: Vincennes | C75: 1ère | D75: A | E75: 80 | F75: 10 | G75: 2 | H75: 3 | I75: 7 | J75: 9 | K75: 8 | L75: 4 | M75: 5 | N75: 3 | O75: 6 | P75: 9 | Q75: 2 | R75: 1 | S75: 7 | T75: 10 | W75: 4 | X75: 6 | Y75: 7 | Z75: 9 | AA75: 0 | AB75: 0 | AC75: 0 | AD75: 1 | AE75: 0 | AF75: 1 | AG75: 1 | AH75: 0 | AI75: 1 | AJ75: 0 | AK75: 0 | AL75: 0 | AM75: 0 | AN75: 0 | AO75: 0 | AP75: 1 | AQ75: 0 | AR75: 0 | AS75: 1 | AT75: 0 | AU75: 1721 | AV75: 1294 | AW75: 1182 | AX75: 802 | AY75: 10 | AZ75: 4 | BA75: 5001 | BB75: 0 | BC75: 0 | BD75: 0 | BE75: 1 | BF75: 1 | BG75: 2 | BH75: 3 | BI75: 3 | BJ75: 4 | BK75: 4 | BL75: 0 | BM75: 0 | BN75: 0 | BO75: 1 | BP75: 1 | BQ75: 1 | BR75: 2 | BS75: 2 | BT75: 1723 | BU75: 3017 | BV75: 2 | BW75: 3 | BX75: 7 | BY75: 8 | BZ75: 4 | CA75: 5 | CB75: 3 | CC75: 6 | CD75: 9 | CE75: 2 | CF75: 1 | CG75: 7 | CH75: 10 | CI75: 0 | CJ75: 0 | CK75: 3 | CL75: 3 | CO75: 4 | CP75: 7 | CQ75: 9
C76: 2ème | D76: A | E76: 70 | F76: 10 | G76: 4 | H76: 8 | I76: 5 | J76: 1 | K76: 6 | L76: 8 | M76: 7 | N76: 5 | O76: 10 | P76: 9 | Q76: 4 | R76: 2 | S76: 3 | T76: 1 | W76: 2 | X76: 4 | Y76: 7 | Z76: 10 | AA76: 0 | AB76: 1 | AC76: 0 | AD76: 1 | AE76: 0 | AF76: 0 | AG76: 1 | AH76: 0 | AI76: 0 | AJ76: 1 | AK76: 0 | AL76: 0 | AM76: 0 | AN76: 1 | AO76: 0 | AP76: 1 | AQ76: 0 | AR76: 0 | AS76: 1 | AT76: 0 | AU76: 2142 | AV76: 1721 | AW76: 1182 | AX76: 627 | AY76: 10 | AZ76: 4 | BA76: 5675 | BB76: 0 | BC76: 1 | BD76: 1 | BE76: 2 | BF76: 2 | BG76: 2 | BH76: 3 | BI76: 3 | BJ76: 3 | BK76: 4 | BL76: 0 | BM76: 1 | BN76: 1 | BO76: 2 | BP76: 2 | BQ76: 2 | BR76: 3 | BS76: 3 | BT76: 2145 | BU76: 3866 | BV76: 4 | BW76: 8 | BX76: 5 | BY76: 6 | BZ76: 8 | CA76: 7 | CB76: 5 | CC76: 10 | CD76: 9 | CE76: 4 | CF76: 2 | CG76: 3 | CH76: 1 | CI76: 0 | CJ76: 0 | CK76: 1 | CL76: 1 | CO76: 2 | CP76: 4 | CQ76: 7
C77: 4ème | D77: A | E77: 33 | F77: 15 | G77: 3 | H77: 13 | I77: 14 | J77: 12 | K77: 3 | L77: 13 | M77: 11 | N77: 12 | O77: 14 | P77: 8 | Q77: 1 | R77: 15 | S77: 6 | T77: 4 | W77: 1 | X77: 2 | Y77: 4 | Z77: 5 | AA77: 1 | AB77: 1 | AC77: 0 | AD77: 1 | AE77: 1 | AF77: 0 | AG77: 0 | AH77: 0 | AI77: 0 | AJ77: 0 | AK77: 0 | AL77: 0 | AM77: 1 | AN77: 1 | AO77: 0 | AP77: 0 | AQ77: 1 | AR77: 0 | AS77: 0 | AT77: 0 | AU77: 2545 | AV77: 2142 | AW77: 1721 | AX77: 1510 | AY77: 15 | AZ77: 4 | BA77: 7921 | BB77: 1 | BC77: 2 | BD77: 2 | BE77: 3 | BF77: 4 | BG77: 4 | BH77: 4 | BI77: 4 | BJ77: 4 | BK77: 4 | BL77: 1 | BM77: 2 | BN77: 2 | BO77: 2 | BP77: 3 | BQ77: 3 | BR77: 3 | BS77: 3 | BT77: 2548 | BU77: 4690 | BV77: 3 | BW77: 13 | BX77: 14 | BY77: 3 | BZ77: 13 | CA77: 11 | CB77: 12 | CC77: 14 | CD77: 8 | CE77: 1 | CF77: 15 | CG77: 6 | CH77: 4 | CI77: 0 | CJ77: 0 | CK77: 0 | CL77: 0 | CO77: 1 | CP77: 2 | CQ77: 5
C78: 5ème | D78: A | E78: 56 | F78: 16 | G78: 5 | H78: 3 | I78: 12 | J78: 7 | K78: 3 | L78: 13 | M78: 16 | N78: 4 | O78: 7 | P78: 8 | Q78: 5 | R78: 2 | S78: 12 | T78: 6 | W78: 1 | X78: 5 | Y78: 7 | Z78: 9 | AA78: 1 | AB78: 0 | AC78: 0 | AD78: 0 | AE78: 1 | AF78: 0 | AG78: 1 | AH78: 0 | AI78: 1 | AJ78: 0 | AK78: 0 | AL78: 0 | AM78: 1 | AN78: 0 | AO78: 0 | AP78: 0 | AQ78: 0 | AR78: 0 | AS78: 1 | AT78: 0 | AU78: 2545 | AV78: 1510 | AW78: 1182 | AX78: 802 | AY78: 16 | AZ78: 4 | BA78: 6041 | BB78: 1 | BC78: 1 | BD78: 1 | BE78: 1 | BF78: 2 | BG78: 2 | BH78: 3 | BI78: 3 | BJ78: 4 | BK78: 4 | BL78: 1 | BM78: 1 | BN78: 1 | BO78: 1 | BP78: 1 | BQ78: 1 | BR78: 2 | BS78: 2 | BT78: 2547 | BU78: 4057 | BV78: 5 | BW78: 3 | BX78: 12 | BY78: 3 | BZ78: 13 | CA78: 16 | CB78: 4 | CC78: 7 | CD78: 8 | CE78: 5 | CF78: 2 | CG78: 12 | CH78: 6 | CI78: 0 | CJ78: 0 | CK78: 0 | CL78: 0 | CO78: 1 | CP78: 7 | CQ78: 9
C79: 6ème | D79: A | E79: 20 | F79: 15 | G79: 6 | H79: 14 | I79: 4 | J79: 2 | K79: 12 | L79: 4 | M79: 14 | N79: 7 | O79: 6 | P79: 9 | Q79: 1 | R79: 3 | S79: 10 | T79: 8 | W79: 2 | X79: 3 | Y79: 5 | AA79: 0 | AB79: 1 | AC79: 1 | AD79: 0 | AE79: 1 | AF79: 0 | AG79: 0 | AH79: 0 | AI79: 0 | AJ79: 0 | AK79: 0 | AL79: 0 | AM79: 0 | AN79: 1 | AO79: 1 | AP79: 0 | AQ79: 1 | AR79: 0 | AS79: 0 | AT79: 0 | AU79: 2142 | AV79: 1883 | AW79: 1510 | AY79: 15 | AZ79: 3 | BA79: 5538 | BB79: 0 | BC79: 1 | BD79: 2 | BE79: 2 | BF79: 3 | BG79: 3 | BH79: 3 | BI79: 3 | BJ79: 3 | BK79: 3 | BL79: 0 | BM79: 1 | BN79: 2 | BO79: 2 | BP79: 3 | BQ79: 3 | BR79: 3 | BS79: 3 | BT79: 2145 | BU79: 4028 | BV79: 6 | BW79: 14 | BX79: 4 | BY79: 12 | BZ79: 4 | CA79: 14 | CB79: 7 | CC79: 6 | CD79: 9 | CE79: 1 | CF79: 3 | CG79: 10 | CH79: 8 | CI79: 0 | CJ79: 0 | CK79: 1 | CL79: 1 | CO79: 2 | CP79: 3 | CQ79: 5
C80: 7ème | D80: A | E80: 50 | F80: 14 | G80: 13 | H80: 14 | I80: 3 | J80: 12 | K80: 13 | L80: 14 | M80: 8 | N80: 6 | O80: 12 | P80: 10 | Q80: 11 | R80: 9 | S80: 7 | T80: 5 | W80: 1 | X80: 2 | Y80: 5 | AA80: 1 | AB80: 1 | AC80: 0 | AD80: 0 | AE80: 1 | AF80: 0 | AG80: 0 | AH80: 0 | AI80: 0 | AJ80: 0 | AK80: 0 | AL80: 0 | AM80: 1 | AN80: 1 | AO80: 0 | AP80: 0 | AQ80: 0 | AR80: 0 | AS80: 0 | AT80: 0 | AU80: 2545 | AV80: 2142 | AW80: 1510 | AY80: 14 | AZ80: 3 | BA80: 6199 | BB80: 1 | BC80: 2 | BD80: 2 | BE80: 2 | BF80: 3 | BG80: 3 | BH80: 3 | BI80: 3 | BJ80: 3 | BK80: 3 | BL80: 1 | BM80: 2 | BN80: 2 | BO80: 2 | BP80: 2 | BQ80: 2 | BR80: 2 | BS80: 2 | BT80: 2547 | BU80: 4689 | BV80: 13 | BW80: 14 | BX80: 3 | BY80: 13 | BZ80: 14 | CA80: 8 | CB80: 6 | CC80: 12 | CD80: 10 | CE80: 11 | CF80: 9 | CG80: 7 | CH80: 5 | CI80: 0 | CJ80: 0 | CK80: 0 | CL80: 0 | CO80: 1 | CP80: 2
C81: 9ème | D81: A | E81: 73 | F81: 11 | G81: 4 | H81: 7 | I81: 3 | J81: 6 | K81: 4 | L81: 7 | M81: 1 | N81: 9 | O81: 11 | P81: 2 | Q81: 5 | R81: 3 | S81: 6 | T81: 8 | W81: 1 | X81: 2 | Y81: 8 | Z81: 9 | AA81: 1 | AB81: 1 | AC81: 0 | AD81: 0 | AE81: 0 | AF81: 0 | AG81: 0 | AH81: 1 | AI81: 1 | AJ81: 0 | AK81: 0 | AL81: 0 | AM81: 1 | AN81: 1 | AO81: 0 | AP81: 0 | AQ81: 0 | AR81: 0 | AS81: 0 | AT81: 1 | AU81: 2545 | AV81: 2142 | AW81: 950 | AX81: 802 | AY81: 11 | AZ81: 4 | BA81: 6442 | BB81: 1 | BC81: 2 | BD81: 2 | BE81: 2 | BF81: 2 | BG81: 2 | BH81: 2 | BI81: 3 | BJ81: 4 | BK81: 4 | BL81: 1 | BM81: 2 | BN81: 2 | BO81: 2 | BP81: 2 | BQ81: 2 | BR81: 2 | BS81: 3 | BT81: 2548 | BU81: 4690 | BV81: 4 | BW81: 7 | BX81: 3 | BY81: 4 | BZ81: 7 | CA81: 1 | CB81: 9 | CC81: 11 | CD81: 2 | CE81: 5 | CF81: 3 | CG81: 6 | CH81: 8 | CI81: 0 | CJ81: 0 | CK81: 0 | CL81: 0 | CO81: 1 | CP81: 2 | CQ81: 8
B82: St Galmier | C82: 1ère | D82: A | E82: 100 | F82: 16 | G82: 12 | H82: 5 | I82: 7 | J82: 16 | K82: 12 | L82: 4 | M82: 1 | N82: 6 | O82: 8 | P82: 2 | Q82: 5 | R82: 7 | S82: 10 | T82: 3 | W82: 1 | X82: 7 | Y82: 8 | AA82: 1 | AB82: 0 | AC82: 0 | AD82: 0 | AE82: 0 | AF82: 0 | AG82: 1 | AH82: 1 | AI82: 0 | AJ82: 0 | AK82: 0 | AL82: 0 | AM82: 1 | AN82: 0 | AO82: 0 | AP82: 0 | AQ82: 0 | AR82: 0 | AS82: 1 | AT82: 1 | AU82: 2545 | AV82: 1182 | AW82: 950 | AY82: 16 | AZ82: 3 | BA82: 4680 | BB82: 1 | BC82: 1 | BD82: 1 | BE82: 1 | BF82: 1 | BG82: 1 | BH82: 2 | BI82: 3 | BJ82: 3 | BK82: 3 | BL82: 1 | BM82: 1 | BN82: 1 | BO82: 1 | BP82: 1 | BQ82: 1 | BR82: 2 | BS82: 3 | BT82: 2548 | BU82: 3730 | BV82: 12 | BW82: 5 | BX82: 7 | BY82: 12 | BZ82: 4 | CA82: 1 | CB82: 6 | CC82: 8 | CD82: 2 | CE82: 5 | CF82: 7 | CG82: 10 | CH82: 3 | CI82: 0 | CJ82: 0 | CK82: 0 | CL82: 0 | CO82: 1 | CP82: 7 | CQ82: 8
C83: 2ème | D83: A | E83: 60 | F83: 15 | G83: 4 | H83: 7 | I83: 2 | J83: 8 | K83: 6 | L83: 4 | M83: 3 | N83: 7 | O83: 8 | P83: 13 | Q83: 5 | R83: 1 | S83: 2 | T83: 14 | W83: 2 | X83: 4 | Y83: 5 | Z83: 9 | AA83: 0 | AB83: 1 | AC83: 0 | AD83: 1 | AE83: 1 | AF83: 0 | AG83: 0 | AH83: 0 | AI83: 1 | AJ83: 0 | AK83: 0 | AL83: 0 | AM83: 0 | AN83: 1 | AO83: 0 | AP83: 1 | AQ83: 0 | AR83: 0 | AS83: 0 | AT83: 0 | AU83: 2142 | AV83: 1721 | AW83: 1510 | AX83: 802 | AY83: 15 | AZ83: 4 | BA83: 6177 | BB83: 0 | BC83: 1 | BD83: 1 | BE83: 2 | BF83: 3 | BG83: 3 | BH83: 3 | BI83: 3 | BJ83: 4 | BK83: 4 | BL83: 0 | BM83: 1 | BN83: 1 | BO83: 2 | BP83: 2 | BQ83: 2 | BR83: 2 | BS83: 2 | BT83: 2144 | BU83: 3865 | BV83: 4 | BW83: 7 | BX83: 2 | BY83: 6 | BZ83: 4 | CA83: 3 | CB83: 7 | CC83: 8 | CD83: 13 | CE83: 5 | CF83: 1 | CG83: 2 | CH83: 14 | CI83: 0 | CJ83: 0 | CK83: 1 | CL83: 1 | CO83: 2 | CP83: 4 | CQ83: 9
C84: 3ème | D84: A | E84: 75 | F84: 16 | G84: 5 | H84: 3 | I84: 4 | J84: 6 | K84: 6 | L84: 5 | M84: 7 | N84: 9 | O84: 8 | P84: 3 | Q84: 4 | R84: 16 | S84: 12 | T84: 1 | W84: 1 | X84: 2 | Y84: 6 | Z84: 7 | AA84: 1 | AB84: 1 | AC84: 0 | AD84: 0 | AE84: 0 | AF84: 1 | AG84: 1 | AH84: 0 | AI84: 0 | AJ84: 0 | AK84: 0 | AL84: 0 | AM84: 0 | AN84: 1 | AO84: 0 | AP84: 0 | AQ84: 0 | AR84: 1 | AS84: 1 | AT84: 0 | AU84: 2545 | AV84: 2142 | AW84: 1294 | AX84: 1182 | AY84: 16 | AZ84: 4 | BA84: 7166 | BB84: 1 | BC84: 2 | BD84: 2 | BE84: 2 | BF84: 2 | BG84: 3 | BH84: 4 | BI84: 4 | BJ84: 4 | BK84: 4 | BL84: 0 | BM84: 1 | BN84: 1 | BO84: 1 | BP84: 1 | BQ84: 2 | BR84: 3 | BS84: 3 | BT84: 2548 | BU84: 4690 | BV84: 5 | BW84: 3 | BX84: 4 | BY84: 6 | BZ84: 5 | CA84: 7 | CB84: 9 | CC84: 8 | CD84: 3 | CE84: 4 | CF84: 16 | CG84: 12 | CH84: 1 | CI84: 0 | CJ84: 0 | CK84: 1 | CL84: 0 | CO84: 2 | CP84: 6 | CQ84: 7
C85: 4ème | D85: A | E85: 79 | F85: 14 | G85: 5 | H85: 4 | I85: 11 | J85: 14 | K85: 5 | L85: 6 | M85: 14 | N85: 7 | O85: 8 | P85: 13 | Q85: 11 | R85: 4 | S85: 3 | T85: 1 | W85: 1 | X85: 3 | Y85: 7 | Z85: 8 | AA85: 1 | AB85: 0 | AC85: 1 | AD85: 0 | AE85: 0 | AF85: 0 | AG85: 1 | AH85: 1 | AI85: 0 | AJ85: 0 | AK85: 0 | AL85: 0 | AM85: 1 | AN85: 0 | AO85: 0 | AP85: 0 | AQ85: 0 | AR85: 0 | AS85: 1 | AT85: 1 | AU85: 2545 | AV85: 1883 | AW85: 1182 | AX85: 950 | AY85: 14 | AZ85: 4 | BA85: 6563 | BB85: 1 | BC85: 1 | BD85: 2 | BE85: 2 | BF85: 2 | BG85: 2 | BH85: 3 | BI85: 4 | BJ85: 4 | BK85: 4 | BL85: 1 | BM85: 1 | BN85: 1 | BO85: 1 | BP85: 1 | BQ85: 1 | BR85: 2 | BS85: 3 | BT85: 2548 | BU85: 4431 | BV85: 5 | BW85: 4 | BX85: 11 | BY85: 5 | BZ85: 6 | CA85: 14 | CB85: 7 | CC85: 8 | CD85: 13 | CE85: 11 | CF85: 4 | CG85: 3 | CH85: 1 | CI85: 0 | CJ85: 0 | CK85: 0 | CL85: 0 | CO85: 1 | CP85: 7 | CQ85: 8
C86: 5ème | D86: A | E86: 44 | F86: 18 | G86: 9 | H86: 11 | I86: 8 | J86: 10 | K86: 10 | L86: 14 | M86: 9 | N86: 12 | O86: 17 | P86: 18 | Q86: 8 | R86: 11 | S86: 3 | T86: 6 | W86: 1 | X86: 3 | Y86: 7 | Z86: 8 | AA86: 1 | AB86: 0 | AC86: 1 | AD86: 0 | AE86: 0 | AF86: 0 | AG86: 1 | AH86: 1 | AI86: 0 | AJ86: 0 | AK86: 0 | AL86: 0 | AM86: 0 | AN86: 0 | AO86: 1 | AP86: 0 | AQ86: 0 | AR86: 0 | AS86: 1 | AT86: 1 | AU86: 2545 | AV86: 1883 | AW86: 1182 | AX86: 950 | AY86: 18 | AZ86: 4 | BA86: 6563 | BB86: 1 | BC86: 1 | BD86: 2 | BE86: 2 | BF86: 2 | BG86: 2 | BH86: 3 | BI86: 4 | BJ86: 4 | BK86: 4 | BL86: 0 | BM86: 0 | BN86: 1 | BO86: 1 | BP86: 1 | BQ86: 1 | BR86: 2 | BS86: 3 | BT86: 2548 | BU86: 4431 | BV86: 9 | BW86: 11 | BX86: 8 | BY86: 10 | BZ86: 14 | CA86: 9 | CB86: 12 | CC86: 17 | CD86: 18 | CE86: 8 | CF86: 11 | CG86: 3 | CH86: 6 | CI86: 0 | CJ86: 0 | CK86: 2 | CL86: 0 | CO86: 3 | CP86: 7 | CQ86: 8
C87: 6ème | D87: A | E87: 73 | F87: 15 | G87: 7 | H87: 9 | I87: 12 | J87: 14 | K87: 15 | L87: 14 | M87: 12 | N87: 9 | O87: 13 | P87: 11 | Q87: 7 | R87: 8 | S87: 1 | T87: 6 | W87: 2 | X87: 3 | Y87: 4 | Z87: 7 | AA87: 0 | AB87: 1 | AC87: 1 | AD87: 1 | AE87: 0 | AF87: 0 | AG87: 1 | AH87: 0 | AI87: 0 | AJ87: 0 | AK87: 0 | AL87: 0 | AM87: 0 | AN87: 0 | AO87: 1 | AP87: 1 | AQ87: 0 | AR87: 0 | AS87: 1 | AT87: 0 | AU87: 2142 | AV87: 1883 | AW87: 1721 | AX87: 1182 | AY87: 15 | AZ87: 4 | BA87: 6931 | BB87: 0 | BC87: 1 | BD87: 2 | BE87: 3 | BF87: 3 | BG87: 3 | BH87: 4 | BI87: 4 | BJ87: 4 | BK87: 4 | BL87: 0 | BM87: 0 | BN87: 1 | BO87: 2 | BP87: 2 | BQ87: 2 | BR87: 3 | BS87: 3 | BT87: 2145 | BU87: 4028 | BV87: 7 | BW87: 9 | BX87: 12 | BY87: 15 | BZ87: 14 | CA87: 12 | CB87: 9 | CC87: 13 | CD87: 11 | CE87: 7 | CF87: 8 | CG87: 1 | CH87: 6 | CI87: 0 | CJ87: 0 | CK87: 2 | CL87: 1 | CO87: 3 | CP87: 4 | CQ87: 7
C88: 7ème | D88: A | E88: 76 | F88: 15 | G88: 15 | H88: 10 | I88: 7 | J88: 12 | K88: 8 | L88: 15 | M88: 3 | N88: 2 | O88: 16 | P88: 7 | Q88: 6 | R88: 1 | S88: 13 | T88: 4 | W88: 2 | X88: 6 | AA88: 0 | AB88: 1 | AC88: 0 | AD88: 0 | AE88: 0 | AF88: 1 | AG88: 0 | AH88: 0 | AI88: 0 | AJ88: 0 | AK88: 0 | AL88: 0 | AM88: 0 | AN88: 1 | AO88: 0 | AP88: 0 | AQ88: 0 | AR88: 1 | AS88: 0 | AT88: 0 | AU88: 2142 | AV88: 1294 | AY88: 15 | AZ88: 2 | BA88: 3438 | BB88: 0 | BC88: 1 | BD88: 1 | BE88: 1 | BF88: 1 | BG88: 2 | BH88: 2 | BI88: 2 | BJ88: 2 | BK88: 2 | BL88: 0 | BM88: 1 | BN88: 1 | BO88: 1 | BP88: 1 | BQ88: 2 | BR88: 2 | BS88: 2 | BT88: 2144 | BU88: 3438 | BV88: 15 | BW88: 10 | BX88: 7 | BY88: 8 | BZ88: 15 | CA88: 3 | CB88: 2 | CC88: 16 | CD88: 7 | CE88: 6 | CF88: 1 | CG88: 13 | CH88: 4 | CI88: 0 | CJ88: 0 | CK88: 1 | CL88: 1 | CO88: 2 | CP88: 6
A89: 2022-02-21 | B89: Vincennes | C89: 1ère | D89: A | E89: 50 | F89: 16 | G89: 3 | H89: 2 | I89: 1 | J89: 6 | K89: 14 | L89: 8 | M89: 3 | N89: 1 | O89: 10 | P89: 11 | Q89: 5 | R89: 2 | S89: 16 | T89: 7 | W89: 3 | X89: 4 | Y89: 8 | AA89: 0 | AB89: 0 | AC89: 1 | AD89: 1 | AE89: 0 | AF89: 0 | AG89: 0 | AH89: 1 | AI89: 0 | AJ89: 0 | AK89: 0 | AL89: 0 | AM89: 0 | AN89: 0 | AO89: 1 | AP89: 1 | AQ89: 0 | AR89: 0 | AS89: 0 | AT89: 1 | AU89: 1883 | AV89: 1721 | AW89: 950 | AY89: 16 | AZ89: 3 | BA89: 4557 | BB89: 0 | BC89: 0 | BD89: 1 | BE89: 2 | BF89: 2 | BG89: 2 | BH89: 2 | BI89: 3 | BJ89: 3 | BK89: 3 | BL89: 0 | BM89: 0 | BN89: 1 | BO89: 2 | BP89: 2 | BQ89: 2 | BR89: 2 | BS89: 3 | BT89: 1886 | BU89: 3607 | BV89: 3 | BW89: 2 | BX89: 1 | BY89: 14 | BZ89: 8 | CA89: 3 | CB89: 1 | CC89: 10 | CD89: 11 | CE89: 5 | CF89: 2 | CG89: 16 | CH89: 7 | CI89: 0 | CJ89: 0 | CK89: 2 | CL89: 2 | CO89: 3 | CP89: 4 | CQ89: 8
C90: 3ème | D90: A | E90: 36 | F90: 11 | G90: 8 | H90: 7 | I90: 9 | J90: 5 | K90: 10 | L90: 3 | M90: 6 | N90: 7 | O90: 11 | P90: 2 | Q90: 4 | R90: 9 | S90: 8 | T90: 5 | W90: 4 | X90: 8 | Y90: 9 | Z90: 10 | AA90: 0 | AB90: 0 | AC90: 0 | AD90: 1 | AE90: 0 | AF90: 0 | AG90: 0 | AH90: 1 | AI90: 1 | AJ90: 1 | AK90: 0 | AL90: 0 | AM90: 0 | AN90: 0 | AO90: 0 | AP90: 1 | AQ90: 0 | AR90: 0 | AS90: 0 | AT90: 1 | AU90: 1721 | AV90: 950 | AW90: 802 | AX90: 627 | AY90: 11 | AZ90: 4 | BA90: 4102 | BB90: 0 | BC90: 0 | BD90: 0 | BE90: 1 | BF90: 1 | BG90: 1 | BH90: 1 | BI90: 2 | BJ90: 3 | BK90: 4 | BL90: 0 | BM90: 0 | BN90: 0 | BO90: 1 | BP90: 1 | BQ90: 1 | BR90: 1 | BS90: 2 | BT90: 1723 | BU90: 2673 | BV90: 8 | BW90: 7 | BX90: 9 | BY90: 10 | BZ90: 3 | CA90: 6 | CB90: 7 | CC90: 11 | CD90: 2 | CE90: 4 | CF90: 9 | CG90: 8 | CH90: 5 | CI90: 0 | CJ90: 0 | CK90: 3 | CL90: 3 | CO90: 4 | CP90: 8 | CQ90: 9
C91: 5ème | D91: A | E91: 45 | F91: 11 | G91: 5 | H91: 6 | I91: 11 | J91: 8 | K91: 5 | L91: 11 | M91: 9 | N91: 6 | O91: 3 | P91: 4 | Q91: 8 | R91: 2 | S91: 1 | T91: 10 | W91: 1 | X91: 2 | Y91: 4 | Z91: 7 | AA91: 1 | AB91: 1 | AC91: 0 | AD91: 1 | AE91: 0 | AF91: 0 | AG91: 1 | AH91: 0 | AI91: 0 | AJ91: 0 | AK91: 0 | AL91: 0 | AM91: 1 | AN91: 1 | AO91: 0 | AP91: 1 | AQ91: 0 | AR91: 0 | AS91: 0 | AT91: 0 | AU91: 2545 | AV91: 2142 | AW91: 1721 | AX91: 1182 | AY91: 11 | AZ91: 4 | BA91: 7593 | BB91: 1 | BC91: 2 | BD91: 2 | BE91: 3 | BF91: 3 | BG91: 3 | BH91: 4 | BI91: 4 | BJ91: 4 | BK91: 4 | BL91: 1 | BM91: 2 | BN91: 2 | BO91: 3 | BP91: 3 | BQ91: 3 | BR91: 3 | BS91: 3 | BT91: 2548 | BU91: 4690 | BV91: 5 | BW91: 6 | BX91: 11 | BY91: 5 | BZ91: 11 | CA91: 9 | CB91: 6 | CC91: 3 | CD91: 4 | CE91: 8 | CF91: 2 | CG91: 1 | CH91: 10 | CI91: 0 | CJ91: 0 | CK91: 0 | CL91: 0 | CO91: 1 | CP91: 2 | CQ91: 4
C92: 6ème | D92: A | E92: 67 | F92: 12 | G92: 7 | H92: 4 | I92: 6 | J92: 8 | K92: 11 | L92: 4 | M92: 10 | N92: 3 | O92: 7 | P92: 5 | Q92: 6 | R92: 1 | S92: 8 | T92: 9 | W92: 2 | X92: 5 | Y92: 7 | Z92: 9 | AA92: 0 | AB92: 1 | AC92: 0 | AD92: 0 | AE92: 1 | AF92: 0 | AG92: 1 | AH92: 0 | AI92: 1 | AJ92: 0 | AK92: 0 | AL92: 0 | AM92: 0 | AN92: 1 | AO92: 0 | AP92: 0 | AQ92: 1 | AR92: 0 | AS92: 1 | AT92: 0 | AU92: 2142 | AV92: 1510 | AW92: 1182 | AX92: 802 | AY92: 12 | AZ92: 4 | BA92: 5639 | BB92: 0 | BC92: 1 | BD92: 1 | BE92: 1 | BF92: 2 | BG92: 2 | BH92: 3 | BI92: 3 | BJ92: 4 | BK92: 4 | BL92: 0 | BM92: 1 | BN92: 1 | BO92: 1 | BP92: 2 | BQ92: 2 | BR92: 3 | BS92: 3 | BT92: 2145 | BU92: 3655 | BV92: 7 | BW92: 4 | BX92: 6 | BY92: 11 | BZ92: 4 | CA92: 10 | CB92: 3 | CC92: 7 | CD92: 5 | CE92: 6 | CF92: 1 | CG92: 8 | CH92: 9 | CI92: 0 | CJ92: 0 | CK92: 1 | CL92: 1 | CO92: 2 | CP92: 5 | CQ92: 7
C93: 7ème | D93: A | E93: 46 | F93: 12 | G93: 5 | H93: 7 | I93: 13 | J93: 11 | K93: 5 | L93: 13 | M93: 7 | N93: 9 | O93: 6 | P93: 8 | Q93: 11 | R93: 10 | S93: 1 | T93: 3 | W93: 1 | X93: 2 | Y93: 3 | Z93: 7 | AA93: 1 | AB93: 1 | AC93: 1 | AD93: 0 | AE93: 0 | AF93: 0 | AG93: 1 | AH93: 0 | AI93: 0 | AJ93: 0 | AK93: 0 | AL93: 0 | AM93: 1 | AN93: 1 | AO93: 1 | AP93: 0 | AQ93: 0 | AR93: 0 | AS93: 0 | AT93: 0 | AU93: 2545 | AV93: 2142 | AW93: 1883 | AX93: 1182 | AY93: 12 | AZ93: 4 | BA93: 7755 | BB93: 1 | BC93: 2 | BD93: 3 | BE93: 3 | BF93: 3 | BG93: 3 | BH93: 4 | BI93: 4 | BJ93: 4 | BK93: 4 | BL93: 1 | BM93: 2 | BN93: 3 | BO93: 3 | BP93: 3 | BQ93: 3 | BR93: 3 | BS93: 3 | BT93: 2548 | BU93: 4690 | BV93: 5 | BW93: 7 | BX93: 13 | BY93: 5 | BZ93: 13 | CA93: 7 | CB93: 9 | CC93: 6 | CD93: 8 | CE93: 11 | CF93: 10 | CG93: 1 | CH93: 3 | CI93: 0 | CJ93: 0 | CK93: 0 | CL93: 0 | CO93: 1 | CP93: 2 | CQ93: 3
A94: 2022-02-22 | B94: Vincennes | C94: 1ère | D94: A | E94: 50 | F94: 15 | G94: 16 | H94: 3 | I94: 13 | J94: 8 | K94: 10 | L94: 16 | M94: 1 | N94: 14 | O94: 3 | P94: 8 | Q94: 7 | R94: 4 | S94: 2 | T94: 9 | W94: 2 | X94: 5 | Y94: 6 | AA94: 0 | AB94: 1 | AC94: 0 | AD94: 0 | AE94: 1 | AF94: 1 | AG94: 0 | AH94: 0 | AI94: 0 | AJ94: 0 | AK94: 0 | AL94: 0 | AM94: 0 | AN94: 1 | AO94: 0 | AP94: 0 | AQ94: 1 | AR94: 0 | AS94: 0 | AT94: 0 | AU94: 2142 | AV94: 1510 | AW94: 1294 | AY94: 15 | AZ94: 3 | BA94: 4948 | BB94: 0 | BC94: 1 | BD94: 1 | BE94: 1 | BF94: 2 | BG94: 3 | BH94: 3 | BI94: 3 | BJ94: 3 | BK94: 3 | BL94: 0 | BM94: 1 | BN94: 1 | BO94: 1 | BP94: 2 | BQ94: 2 | BR94: 2 | BS94: 2 | BT94: 2144 | BU94: 3654 | BV94: 16 | BW94: 3 | BX94: 13 | BY94: 10 | BZ94: 16 | CA94: 1 | CB94: 14 | CC94: 3 | CD94: 8 | CE94: 7 | CF94: 4 | CG94: 2 | CH94: 9 | CI94: 0 | CJ94: 0 | CK94: 1 | CL94: 1 | CO94: 2 | CP94: 5
C95: 3ème | D95: A | E95: 58 | F95: 12 | G95: 10 | H95: 8 | I95: 12 | J95: 1 | K95: 10 | L95: 6 | M95: 7 | N95: 12 | O95: 8 | P95: 9 | Q95: 3 | R95: 11 | S95: 2 | T95: 5 | W95: 1 | X95: 4 | Y95: 5 | AA95: 1 | AB95: 0 | AC95: 0 | AD95: 1 | AE95: 1 | AF95: 0 | AG95: 0 | AH95: 0 | AI95: 0 | AJ95: 0 | AK95: 0 | AL95: 0 | AM95: 1 | AN95: 0 | AO95: 0 | AP95: 1 | AQ95: 1 | AR95: 0 | AS95: 0 | AT95: 0 | AU95: 2545 | AV95: 1721 | AW95: 1510 | AY95: 12 | AZ95: 3 | BA95: 5779 | BB95: 1 | BC95: 1 | BD95: 1 | BE95: 2 | BF95: 3 | BG95: 3 | BH95: 3 | BI95: 3 | BJ95: 3 | BK95: 3 | BL95: 1 | BM95: 1 | BN95: 1 | BO95: 2 | BP95: 3 | BQ95: 3 | BR95: 3 | BS95: 3 | BT95: 2548 | BU95: 4269 | BV95: 10 | BW95: 8 | BX95: 12 | BY95: 10 | BZ95: 6 | CA95: 7 | CB95: 12 | CC95: 8 | CD95: 9 | CE95: 3 | CF95: 11 | CG95: 2 | CH95: 5 | CI95: 0 | CJ95: 0 | CK95: 0 | CL95: 0 | CO95: 1 | CP95: 4 | CQ95: 5
C96: 5ème | D96: A | E96: 67 | F96: 15 | G96: 10 | H96: 3 | I96: 9 | J96: 15 | K96: 8 | L96: 2 | M96: 11 | N96: 6 | O96: 10 | P96: 5 | Q96: 15 | R96: 9 | S96: 14 | T96: 3 | W96: 5 | X96: 7 | Y96: 8 | Z96: 10 | AA96: 0 | AB96: 0 | AC96: 0 | AD96: 0 | AE96: 1 | AF96: 0 | AG96: 1 | AH96: 1 | AI96: 0 | AJ96: 1 | AK96: 0 | AL96: 0 | AM96: 0 | AN96: 0 | AO96: 0 | AP96: 0 | AQ96: 1 | AR96: 0 | AS96: 0 | AT96: 1 | AU96: 1510 | AV96: 1182 | AW96: 950 | AX96: 627 | AY96: 15 | AZ96: 4 | BA96: 4271 | BB96: 0 | BC96: 0 | BD96: 0 | BE96: 0 | BF96: 1 | BG96: 1 | BH96: 2 | BI96: 3 | BJ96: 3 | BK96: 4 | BL96: 0 | BM96: 0 | BN96: 0 | BO96: 0 | BP96: 1 | BQ96: 1 | BR96: 1 | BS96: 2 | BT96: 1512 | BU96: 2694 | BV96: 10 | BW96: 3 | BX96: 9 | BY96: 8 | BZ96: 2 | CA96: 11 | CB96: 6 | CC96: 10 | CD96: 5 | CE96: 15 | CF96: 9 | CG96: 14 | CH96: 3 | CI96: 0 | CJ96: 0 | CK96: 4 | CL96: 4 | CO96: 5 | CP96: 8 | CQ96: 10
C97: 6ème | D97: A | E97: 60 | F97: 10 | G97: 7 | H97: 10 | I97: 8 | J97: 2 | K97: 7 | L97: 8 | M97: 10 | N97: 1 | O97: 9 | P97: 5 | Q97: 6 | R97: 4 | S97: 3 | T97: 2 | W97: 1 | X97: 2 | Y97: 3 | Z97: 10 | AA97: 1 | AB97: 1 | AC97: 1 | AD97: 0 | AE97: 0 | AF97: 0 | AG97: 0 | AH97: 0 | AI97: 0 | AJ97: 1 | AK97: 0 | AL97: 0 | AM97: 1 | AN97: 1 | AO97: 1 | AP97: 0 | AQ97: 0 | AR97: 0 | AS97: 0 | AT97: 0 | AU97: 2545 | AV97: 2142 | AW97: 1883 | AX97: 627 | AY97: 10 | AZ97: 4 | BA97: 7200 | BB97: 1 | BC97: 2 | BD97: 3 | BE97: 3 | BF97: 3 | BG97: 3 | BH97: 3 | BI97: 3 | BJ97: 3 | BK97: 4 | BL97: 1 | BM97: 2 | BN97: 3 | BO97: 3 | BP97: 3 | BQ97: 3 | BR97: 3 | BS97: 3 | BT97: 2548 | BU97: 4690 | BV97: 7 | BW97: 10 | BX97: 8 | BY97: 7 | BZ97: 8 | CA97: 10 | CB97: 1 | CC97: 9 | CD97: 5 | CE97: 6 | CF97: 4 | CG97: 3 | CH97: 2 | CI97: 0 | CJ97: 0 | CK97: 0 | CL97: 0 | CO97: 1 | CP97: 2 | CQ97: 3
C98: 7ème | D98: A | E98: 7 | F98: 13 | G98: 3 | H98: 2 | I98: 5 | J98: 6 | K98: 3 | L98: 2 | M98: 4 | N98: 6 | O98: 1 | P98: 11 | Q98: 7 | R98: 9 | S98: 12 | T98: 5 | W98: 1 | X98: 2 | Y98: 4 | Z98: 10 | AA98: 1 | AB98: 1 | AC98: 0 | AD98: 1 | AE98: 0 | AF98: 0 | AG98: 0 | AH98: 0 | AI98: 0 | AJ98: 1 | AK98: 0 | AL98: 0 | AM98: 1 | AN98: 1 | AO98: 0 | AP98: 0 | AQ98: 0 | AR98: 0 | AS98: 0 | AT98: 0 | AU98: 2545 | AV98: 2142 | AW98: 1721 | AX98: 627 | AY98: 13 | AZ98: 4 | BA98: 7037 | BB98: 1 | BC98: 2 | BD98: 2 | BE98: 3 | BF98: 3 | BG98: 3 | BH98: 3 | BI98: 3 | BJ98: 3 | BK98: 4 | BL98: 1 | BM98: 2 | BN98: 2 | BO98: 2 | BP98: 2 | BQ98: 2 | BR98: 2 | BS98: 2 | BT98: 2547 | BU98: 4689 | BV98: 3 | BW98: 2 | BX98: 5 | BY98: 3 | BZ98: 2 | CA98: 4 | CB98: 6 | CC98: 1 | CD98: 11 | CE98: 7 | CF98: 9 | CG98: 12 | CH98: 5 | CI98: 0 | CJ98: 0 | CK98: 0 | CL98: 0 | CO98: 1 | CP98: 2 | CQ98: 10
C99: 8ème | D99: A | E99: 47 | F99: 14 | G99: 5 | H99: 12 | I99: 14 | J99: 9 | K99: 5 | L99: 14 | M99: 11 | N99: 12 | O99: 9 | P99: 6 | Q99: 4 | R99: 7 | W99: 1 | X99: 2 | Y99: 4 | Z99: 5 | AA99: 1 | AB99: 1 | AC99: 0 | AD99: 1 | AE99: 1 | AF99: 0 | AG99: 0 | AH99: 0 | AI99: 0 | AJ99: 0 | AK99: 0 | AL99: 0 | AM99: 1 | AN99: 1 | AO99: 0 | AP99: 1 | AQ99: 0 | AR99: 0 | AS99: 0 | AT99: 0 | AU99: 2545 | AV99: 2142 | AW99: 1721 | AX99: 1510 | AY99: 14 | AZ99: 4 | BA99: 7921 | BB99: 1 | BC99: 2 | BD99: 2 | BE99: 3 | BF99: 4 | BG99: 4 | BH99: 4 | BI99: 4 | BJ99: 4 | BK99: 4 | BL99: 1 | BM99: 2 | BN99: 2 | BO99: 3 | BP99: 3 | BQ99: 3 | BR99: 3 | BS99: 3 | BT99: 2548 | BU99: 4690 | BV99: 5 | BW99: 12 | BX99: 14 | BY99: 5 | BZ99: 14 | CA99: 11 | CB99: 12 | CC99: 9 | CD99: 6 | CE99: 4 | CF99: 7 | CI99: 0 | CJ99: 0 | CK99: 0 | CL99: 0 | CO99: 1 | CP99: 2 | CQ99: 4
B100: Cagnes | C100: 1ère | D100: A | E100: 63 | F100: 15 | G100: 12 | H100: 14 | I100: 16 | J100: 7 | K100: 7 | L100: 1 | M100: 4 | N100: 8 | O100: 6 | P100: 2 | Q100: 5 | R100: 11 | S100: 14 | T100: 16 | W100: 1 | X100: 9 | Y100: 10 | AA100: 1 | AB100: 0 | AC100: 0 | AD100: 0 | AE100: 0 | AF100: 0 | AG100: 0 | AH100: 0 | AI100: 1 | AJ100: 1 | AK100: 0 | AL100: 0 | AM100: 0 | AN100: 0 | AO100: 0 | AP100: 0 | AQ100: 0 | AR100: 0 | AS100: 0 | AT100: 0 | AU100: 2545 | AV100: 802 | AW100: 627 | AY100: 15 | AZ100: 3 | BA100: 3974 | BB100: 1 | BC100: 1 | BD100: 1 | BE100: 1 | BF100: 1 | BG100: 1 | BH100: 1 | BI100: 1 | BJ100: 2 | BK100: 3 | BL100: 0 | BM100: 0 | BN100: 0 | BO100: 0 | BP100: 0 | BQ100: 0 | BR100: 0 | BS100: 0 | BT100: 2545 | BU100: 3347 | BV100: 12 | BW100: 14 | BX100: 16 | BY100: 7 | BZ100: 1 | CA100: 4 | CB100: 8 | CC100: 6 | CD100: 2 | CE100: 5 | CF100: 11 | CG100: 14 | CH100: 16 | CI100: 0 | CJ100: 0 | CK100: 8 | CL100: 0 | CO100: 9 | CP100: 10
C101: 2ème | D101: A | E101: 62 | F101: 13 | G101: 1 | H101: 7 | I101: 11 | J101: 3 | K101: 7 | L101: 4 | M101: 5 | N101: 3 | O101: 11 | P101: 1 | Q101: 12 | R101: 9 | W101: 1 | X101: 4 | Y101: 5 | Z101: 6 | AA101: 1 | AB101: 0 | AC101: 0 | AD101: 1 | AE101: 1 | AF101: 1 | AG101: 0 | AH101: 0 | AI101: 0 | AJ101: 0 | AK101: 0 | AL101: 0 | AM101: 1 | AN101: 0 | AO101: 0 | AP101: 0 | AQ101: 1 | AR101: 1 | AS101: 0 | AT101: 0 | AU101: 2545 | AV101: 1721 | AW101: 1510 | AX101: 1294 | AY101: 13 | AZ101: 4 | BA101: 7073 | BB101: 1 | BC101: 1 | BD101: 1 | BE101: 2 | BF101: 3 | BG101: 4 | BH101: 4 | BI101: 4 | BJ101: 4 | BK101: 4 | BL101: 1 | BM101: 1 | BN101: 1 | BO101: 1 | BP101: 2 | BQ101: 3 | BR101: 3 | BS101: 3 | BT101: 2548 | BU101: 4269 | BV101: 1 | BW101: 7 | BX101: 11 | BY101: 7 | BZ101: 4 | CA101: 5 | CB101: 3 | CC101: 11 | CD101: 1 | CE101: 12 | CF101: 9 | CI101: 0 | CJ101: 0 | CK101: 0 | CL101: 0 | CO101: 1 | CP101: 5 | CQ101: 6
C102: 3ème | D102: A | E102: 69 | F102: 14 | G102: 3 | H102: 1 | I102: 6 | J102: 13 | K102: 1 | L102: 6 | M102: 10 | N102: 3 | O102: 2 | P102: 7 | Q102: 11 | R102: 12 | S102: 4 | T102: 15 | W102: 1 | X102: 2 | Y102: 4 | AA102: 1 | AB102: 1 | AC102: 0 | AD102: 1 | AE102: 0 | AF102: 0 | AG102: 0 | AH102: 0 | AI102: 0 | AJ102: 0 | AK102: 0 | AL102: 0 | AM102: 1 | AN102: 1 | AO102: 0 | AP102: 1 | AQ102: 0 | AR102: 0 | AS102: 0 | AT102: 0 | AU102: 2545 | AV102: 2142 | AW102: 1721 | AY102: 14 | AZ102: 3 | BA102: 6411 | BB102: 1 | BC102: 2 | BD102: 2 | BE102: 3 | BF102: 3 | BG102: 3 | BH102: 3 | BI102: 3 | BJ102: 3 | BK102: 3 | BL102: 1 | BM102: 2 | BN102: 2 | BO102: 3 | BP102: 3 | BQ102: 3 | BR102: 3 | BS102: 3 | BT102: 2548 | BU102: 4690 | BV102: 3 | BW102: 1 | BX102: 6 | BY102: 1 | BZ102: 6 | CA102: 10 | CB102: 3 | CC102: 2 | CD102: 7 | CE102: 11 | CF102: 12 | CG102: 4 | CH102: 15 | CI102: 0 | CJ102: 0 | CK102: 0 | CL102: 0 | CO102: 1 | CP102: 2 | CQ102: 4
C103: 4ème | D103: A | E103: 44 | F103: 15 | G103: 4 | H103: 3 | I103: 5 | J103: 6 | K103: 4 | L103: 6 | M103: 3 | N103: 8 | O103: 5 | P103: 13 | Q103: 16 | R103: 9 | W103: 1 | X103: 2 | Y103: 3 | Z103: 5 | AA103: 1 | AB103: 1 | AC103: 1 | AD103: 0 | AE103: 1 | AF103: 0 | AG103: 0 | AH103: 0 | AI103: 0 | AJ103: 0 | AK103: 0 | AL103: 0 | AM103: 1 | AN103: 0 | AO103: 1 | AP103: 0 | AQ103: 1 | AR103: 0 | AS103: 0 | AT103: 0 | AU103: 2545 | AV103: 2142 | AW103: 1883 | AX103: 1510 | AY103: 15 | AZ103: 4 | BA103: 8083 | BB103: 1 | BC103: 2 | BD103: 3 | BE103: 3 | BF103: 4 | BG103: 4 | BH103: 4 | BI103: 4 | BJ103: 4 | BK103: 4 | BL103: 1 | BM103: 1 | BN103: 2 | BO103: 2 | BP103: 3 | BQ103: 3 | BR103: 3 | BS103: 3 | BT103: 2548 | BU103: 4690 | BV103: 4 | BW103: 3 | BX103: 5 | BY103: 4 | BZ103: 6 | CA103: 3 | CB103: 8 | CC103: 5 | CD103: 13 | CE103: 16 | CF103: 9 | CI103: 0 | CJ103: 0 | CK103: 0 | CL103: 0 | CO103: 1 | CP103: 3 | CQ103: 5
C104: 5ème | D104: A | E104: 67 | F104: 15 | G104: 5 | H104: 14 | I104: 7 | J104: 1 | K104: 5 | L104: 7 | M104: 4 | N104: 15 | O104: 8 | P104: 3 | Q104: 6 | R104: 11 | S104: 2 | T104: 14 | W104: 1 | X104: 2 | Y104: 10 | AA104: 1 | AB104: 1 | AC104: 0 | AD104: 0 | AE104: 0 | AF104: 0 | AG104: 0 | AH104: 0 | AI104: 0 | AJ104: 1 | AK104: 0 | AL104: 0 | AM104: 1 | AN104: 1 | AO104: 0 | AP104: 0 | AQ104: 0 | AR104: 0 | AS104: 0 | AT104: 0 | AU104: 2545 | AV104: 2142 | AW104: 627 | AY104: 15 | AZ104: 3 | BA104: 5316 | BB104: 1 | BC104: 2 | BD104: 2 | BE104: 2 | BF104: 2 | BG104: 2 | BH104: 2 | BI104: 2 | BJ104: 2 | BK104: 3 | BL104: 1 | BM104: 2 | BN104: 2 | BO104: 2 | BP104: 2 | BQ104: 2 | BR104: 2 | BS104: 2 | BT104: 2547 | BU104: 4689 | BV104: 5 | BW104: 14 | BX104: 7 | BY104: 5 | BZ104: 7 | CA104: 4 | CB104: 15 | CC104: 8 | CD104: 3 | CE104: 6 | CF104: 11 | CG104: 2 | CH104: 14 | CI104: 0 | CJ104: 0 | CK104: 0 | CL104: 0 | CO104: 1 | CP104: 2 | CQ104: 10
C105: 6ème | D105: A | E105: 64 | F105: 14 | G105: 4 | H105: 11 | I105: 10 | J105: 9 | K105: 4 | L105: 6 | M105: 9 | N105: 14 | O105: 1 | P105: 7 | Q105: 11 | R105: 8 | S105: 13 | T105: 10 | W105: 1 | X105: 3 | Y105: 7 | Z105: 10 | AA105: 1 | AB105: 0 | AC105: 1 | AD105: 0 | AE105: 0 | AF105: 0 | AG105: 1 | AH105: 0 | AI105: 0 | AJ105: 1 | AK105: 0 | AL105: 0 | AM105: 1 | AN105: 0 | AO105: 0 | AP105: 0 | AQ105: 0 | AR105: 0 | AS105: 1 | AT105: 0 | AU105: 2545 | AV105: 1883 | AW105: 1182 | AX105: 627 | AY105: 14 | AZ105: 4 | BA105: 6239 | BB105: 1 | BC105: 1 | BD105: 2 | BE105: 2 | BF105: 2 | BG105: 2 | BH105: 3 | BI105: 3 | BJ105: 3 | BK105: 4 | BL105: 1 | BM105: 1 | BN105: 1 | BO105: 1 | BP105: 1 | BQ105: 1 | BR105: 2 | BS105: 2 | BT105: 2547 | BU105: 4430 | BV105: 4 | BW105: 11 | BX105: 10 | BY105: 4 | BZ105: 6 | CA105: 9 | CB105: 14 | CC105: 1 | CD105: 7 | CE105: 11 | CF105: 8 | CG105: 13 | CH105: 10 | CI105: 0 | CJ105: 0 | CK105: 0 | CL105: 0 | CO105: 1 | CP105: 7 | CQ105: 10
B106: Vire | C106: 1ère | D106: A | E106: 90 | F106: 10 | G106: 3 | H106: 4 | I106: 6 | J106: 5 | K106: 3 | L106: 6 | M106: 1 | N106: 2 | O106: 4 | P106: 8 | Q106: 7 | R106: 10 | S106: 9 | T106: 5 | W106: 1 | X106: 2 | Y106: 5 | Z106: 10 | AA106: 1 | AB106: 1 | AC106: 0 | AD106: 0 | AE106: 1 | AF106: 0 | AG106: 0 | AH106: 0 | AI106: 0 | AJ106: 1 | AK106: 0 | AL106: 0 | AM106: 1 | AN106: 1 | AO106: 0 | AP106: 0 | AQ106: 1 | AR106: 0 | AS106: 0 | AT106: 0 | AU106: 2545 | AV106: 2142 | AW106: 1510 | AX106: 627 | AY106: 10 | AZ106: 4 | BA106: 6827 | BB106: 1 | BC106: 2 | BD106: 2 | BE106: 2 | BF106: 3 | BG106: 3 | BH106: 3 | BI106: 3 | BJ106: 3 | BK106: 4 | BL106: 1 | BM106: 2 | BN106: 2 | BO106: 2 | BP106: 3 | BQ106: 3 | BR106: 3 | BS106: 3 | BT106: 2548 | BU106: 4690 | BV106: 3 | BW106: 4 | BX106: 6 | BY106: 3 | BZ106: 6 | CA106: 1 | CB106: 2 | CC106: 4 | CD106: 8 | CE106: 7 | CF106: 10 | CG106: 9 | CH106: 5 | CI106: 0 | CJ106: 0 | CK106: 0 | CL106: 0 | CO106: 1 | CP106: 2 | CQ106: 5
C107: 2ème | D107: A | E107: 50 | F107: 15 | G107: 16 | H107: 7 | I107: 6 | J107: 2 | K107: 6 | L107: 7 | M107: 3 | N107: 10 | O107: 16 | P107: 1 | Q107: 4 | R107: 9 | S107: 2 | T107: 11 | W107: 1 | X107: 2 | Y107: 5 | Z107: 9 | AA107: 1 | AB107: 1 | AC107: 0 | AD107: 0 | AE107: 1 | AF107: 0 | AG107: 0 | AH107: 0 | AI107: 1 | AJ107: 0 | AK107: 0 | AL107: 0 | AM107: 1 | AN107: 1 | AO107: 0 | AP107: 0 | AQ107: 1 | AR107: 0 | AS107: 0 | AT107: 0 | AU107: 2545 | AV107: 2142 | AW107: 1510 | AX107: 802 | AY107: 15 | AZ107: 4 | BA107: 7002 | BB107: 1 | BC107: 2 | BD107: 2 | BE107: 2 | BF107: 3 | BG107: 3 | BH107: 3 | BI107: 3 | BJ107: 4 | BK107: 4 | BL107: 1 | BM107: 2 | BN107: 2 | BO107: 2 | BP107: 3 | BQ107: 3 | BR107: 3 | BS107: 3 | BT107: 2548 | BU107: 4690 | BV107: 16 | BW107: 7 | BX107: 6 | BY107: 6 | BZ107: 7 | CA107: 3 | CB107: 10 | CC107: 16 | CD107: 1 | CE107: 4 | CF107: 9 | CG107: 2 | CH107: 11 | CI107: 0 | CJ107: 0 | CK107: 0 | CL107: 0 | CO107: 1 | CP107: 2 | CQ107: 5
C108: 3ème | D108: A | E108: 60 | F108: 10 | G108: 2 | H108: 5 | I108: 1 | J108: 4 | K108: 5 | L108: 6 | M108: 2 | N108: 1 | O108: 7 | P108: 4 | Q108: 3 | R108: 10 | S108: 8 | T108: 9 | W108: 1 | X108: 3 | Y108: 4 | Z108: 6 | AA108: 1 | AB108: 0 | AC108: 1 | AD108: 1 | AE108: 0 | AF108: 1 | AG108: 0 | AH108: 0 | AI108: 0 | AJ108: 0 | AK108: 0 | AL108: 0 | AM108: 1 | AN108: 0 | AO108: 1 | AP108: 1 | AQ108: 0 | AR108: 0 | AS108: 0 | AT108: 0 | AU108: 2545 | AV108: 1883 | AW108: 1721 | AX108: 1294 | AY108: 10 | AZ108: 4 | BA108: 7446 | BB108: 1 | BC108: 1 | BD108: 2 | BE108: 3 | BF108: 3 | BG108: 4 | BH108: 4 | BI108: 4 | BJ108: 4 | BK108: 4 | BL108: 1 | BM108: 1 | BN108: 2 | BO108: 3 | BP108: 3 | BQ108: 3 | BR108: 3 | BS108: 3 | BT108: 2548 | BU108: 4431 | BV108: 2 | BW108: 5 | BX108: 1 | BY108: 5 | BZ108: 6 | CA108: 2 | CB108: 1 | CC108: 7 | CD108: 4 | CE108: 3 | CF108: 10 | CG108: 8 | CH108: 9 | CI108: 0 | CJ108: 0 | CK108: 0 | CL108: 0 | CO108: 1 | CP108: 3 | CQ108: 4
C109: 4ème | D109: A | E109: 50 | F109: 16 | G109: 7 | H109: 3 | I109: 8 | J109: 5 | K109: 4 | L109: 3 | M109: 8 | N109: 5 | O109: 7 | P109: 6 | Q109: 2 | R109: 16 | W109: 2 | X109: 3 | Y109: 4 | Z109: 5 | AA109: 0 | AB109: 1 | AC109: 1 | AD109: 1 | AE109: 1 | AF109: 0 | AG109: 0 | AH109: 0 | AI109: 0 | AJ109: 0 | AK109: 0 | AL109: 0 | AM109: 0 | AN109: 1 | AO109: 1 | AP109: 0 | AQ109: 1 | AR109: 0 | AS109: 0 | AT109: 0 | AU109: 2142 | AV109: 1883 | AW109: 1721 | AX109: 1510 | AY109: 16 | AZ109: 4 | BA109: 7259 | BB109: 0 | BC109: 1 | BD109: 2 | BE109: 3 | BF109: 4 | BG109: 4 | BH109: 4 | BI109: 4 | BJ109: 4 | BK109: 4 | BL109: 0 | BM109: 1 | BN109: 2 | BO109: 2 | BP109: 3 | BQ109: 3 | BR109: 3 | BS109: 3 | BT109: 2145 | BU109: 4028 | BV109: 7 | BW109: 3 | BX109: 8 | BY109: 4 | BZ109: 3 | CA109: 8 | CB109: 5 | CC109: 7 | CD109: 6 | CE109: 2 | CF109: 16 | CI109: 0 | CJ109: 0 | CK109: 1 | CL109: 1 | CO109: 2 | CP109: 3 | CQ109: 5
C110: 5ème | D110: A | E110: 33 | F110: 18 | G110: 17 | H110: 18 | I110: 9 | J110: 14 | K110: 17 | L110: 9 | M110: 14 | N110: 2 | O110: 8 | P110: 13 | Q110: 7 | R110: 18 | W110: 1 | X110: 2 | Y110: 3 | Z110: 8 | AA110: 1 | AB110: 1 | AC110: 1 | AD110: 0 | AE110: 0 | AF110: 0 | AG110: 0 | AH110: 1 | AI110: 0 | AJ110: 0 | AK110: 0 | AL110: 0 | AM110: 1 | AN110: 1 | AO110: 0 | AP110: 0 | AQ110: 0 | AR110: 0 | AS110: 0 | AT110: 1 | AU110: 2545 | AV110: 2142 | AW110: 1883 | AX110: 950 | AY110: 18 | AZ110: 4 | BA110: 7523 | BB110: 1 | BC110: 2 | BD110: 3 | BE110: 3 | BF110: 3 | BG110: 3 | BH110: 3 | BI110: 4 | BJ110: 4 | BK110: 4 | BL110: 1 | BM110: 2 | BN110: 2 | BO110: 2 | BP110: 2 | BQ110: 2 | BR110: 2 | BS110: 3 | BT110: 2548 | BU110: 4690 | BV110: 17 | BW110: 18 | BX110: 9 | BY110: 17 | BZ110: 9 | CA110: 14 | CB110: 2 | CC110: 8 | CD110: 13 | CE110: 7 | CF110: 18 | CI110: 0 | CJ110: 0 | CK110: 0 | CL110: 0 | CO110: 1 | CP110: 2 | CQ110: 8
C111: 7ème | D111: A | E111: 44 | F111: 16 | G111: 13 | H111: 14 | I111: 12 | J111: 1 | K111: 13 | L111: 5 | M111: 14 | N111: 12 | O111: 4 | P111: 16 | Q111: 7 | R111: 3 | S111: 1 | T111: 2 | W111: 1 | X111: 3 | Y111: 4 | Z111: 9 | AA111: 1 | AB111: 0 | AC111: 1 | AD111: 1 | AE111: 0 | AF111: 0 | AG111: 0 | AH111: 0 | AI111: 1 | AJ111: 0 | AK111: 0 | AL111: 0 | AM111: 1 | AN111: 0 | AO111: 1 | AP111: 1 | AQ111: 0 | AR111: 0 | AS111: 0 | AT111: 0 | AU111: 2545 | AV111: 1883 | AW111: 1721 | AX111: 802 | AY111: 16 | AZ111: 4 | BA111: 6954 | BB111: 1 | BC111: 1 | BD111: 2 | BE111: 3 | BF111: 3 | BG111: 3 | BH111: 3 | BI111: 3 | BJ111: 4 | BK111: 4 | BL111: 1 | BM111: 1 | BN111: 2 | BO111: 3 | BP111: 3 | BQ111: 3 | BR111: 3 | BS111: 3 | BT111: 2548 | BU111: 4431 | BV111: 13 | BW111: 14 | BX111: 12 | BY111: 13 | BZ111: 5 | CA111: 14 | CB111: 12 | CC111: 4 | CD111: 16 | CE111: 7 | CF111: 3 | CG111: 1 | CH111: 2 | CI111: 0 | CJ111: 0 | CK111: 0 | CL111: 0 | CO111: 1 | CP111: 3 | CQ111: 4
C112: 8ème | D112: A | E112: 44 | F112: 18 | G112: 3 | H112: 8 | I112: 17 | J112: 5 | K112: 17 | L112: 16 | M112: 12 | N112: 9 | O112: 2 | P112: 8 | Q112: 1 | R112: 15 | S112: 4 | T112: 7 | W112: 1 | X112: 6 | AA112: 1 | AB112: 0 | AC112: 0 | AD112: 0 | AE112: 0 | AF112: 1 | AG112: 0 | AH112: 0 | AI112: 0 | AJ112: 0 | AK112: 0 | AL112: 0 | AM112: 1 | AN112: 0 | AO112: 0 | AP112: 0 | AQ112: 0 | AR112: 1 | AS112: 0 | AT112: 0 | AU112: 2545 | AV112: 1294 | AY112: 18 | AZ112: 2 | BA112: 3841 | BB112: 1 | BC112: 1 | BD112: 1 | BE112: 1 | BF112: 1 | BG112: 2 | BH112: 2 | BI112: 2 | BJ112: 2 | BK112: 2 | BL112: 1 | BM112: 1 | BN112: 1 | BO112: 1 | BP112: 1 | BQ112: 2 | BR112: 2 | BS112: 2 | BT112: 2547 | BU112: 3841 | BV112: 3 | BW112: 8 | BX112: 17 | BY112: 17 | BZ112: 16 | CA112: 12 | CB112: 9 | CC112: 2 | CD112: 8 | CE112: 1 | CF112: 15 | CG112: 4 | CH112: 7 | CI112: 0 | CJ112: 0 | CK112: 0 | CL112: 0 | CO112: 1 | CP112: 6
B113: Toulouse | C113: 1ère | D113: A | E113: 60 | F113: 10 | G113: 1 | H113: 8 | I113: 5 | J113: 6 | K113: 3 | L113: 1 | M113: 5 | N113: 6 | O113: 8 | P113: 9 | Q113: 4 | R113: 2 | W113: 2 | X113: 3 | Y113: 4 | Z113: 5 | AA113: 0 | AB113: 1 | AC113: 1 | AD113: 1 | AE113: 1 | AF113: 0 | AG113: 0 | AH113: 0 | AI113: 0 | AJ113: 0 | AK113: 0 | AL113: 0 | AM113: 0 | AN113: 1 | AO113: 1 | AP113: 0 | AQ113: 1 | AR113: 0 | AS113: 0 | AT113: 0 | AU113: 2142 | AV113: 1883 | AW113: 1721 | AX113: 1510 | AY113: 10 | AZ113: 4 | BA113: 7259 | BB113: 0 | BC113: 1 | BD113: 2 | BE113: 3 | BF113: 4 | BG113: 4 | BH113: 4 | BI113: 4 | BJ113: 4 | BK113: 4 | BL113: 0 | BM113: 1 | BN113: 2 | BO113: 2 | BP113: 3 | BQ113: 3 | BR113: 3 | BS113: 3 | BT113: 2145 | BU113: 4028 | BV113: 1 | BW113: 8 | BX113: 5 | BY113: 3 | BZ113: 1 | CA113: 5 | CB113: 6 | CC113: 8 | CD113: 9 | CE113: 4 | CF113: 2 | CI113: 0 | CJ113: 0 | CK113: 1 | CL113: 1 | CO113: 2 | CP113: 3 | CQ113: 5
C114: 2ème | D114: A | E114: 43 | F114: 14 | G114: 7 | H114: 4 | I114: 2 | J114: 8 | K114: 7 | L114: 5 | M114: 3 | N114: 1 | O114: 6 | P114: 4 | Q114: 11 | R114: 2 | S114: 10 | T114: 9 | W114: 1 | X114: 6 | Y114: 8 | AA114: 1 | AB114: 0 | AC114: 0 | AD114: 0 | AE114: 0 | AF114: 1 | AG114: 0 | AH114: 1 | AI114: 0 | AJ114: 0 | AK114: 0 | AL114: 0 | AM114: 1 | AN114: 0 | AO114: 0 | AP114: 0 | AQ114: 0 | AR114: 1 | AS114: 0 | AT114: 1 | AU114: 2545 | AV114: 1294 | AW114: 950 | AY114: 14 | AZ114: 3 | BA114: 4792 | BB114: 1 | BC114: 1 | BD114: 1 | BE114: 1 | BF114: 1 | BG114: 2 | BH114: 2 | BI114: 3 | BJ114: 3 | BK114: 3 | BL114: 1 | BM114: 1 | BN114: 1 | BO114: 1 | BP114: 1 | BQ114: 2 | BR114: 2 | BS114: 3 | BT114: 2548 | BU114: 3842 | BV114: 7 | BW114: 4 | BX114: 2 | BY114: 7 | BZ114: 5 | CA114: 3 | CB114: 1 | CC114: 6 | CD114: 4 | CE114: 11 | CF114: 2 | CG114: 10 | CH114: 9 | CI114: 0 | CJ114: 0 | CK114: 0 | CL114: 0 | CO114: 1 | CP114: 6 | CQ114: 8
C115: 3ème | D115: A | E115: 60 | F115: 15 | G115: 5 | H115: 4 | I115: 12 | J115: 14 | K115: 13 | L115: 5 | M115: 14 | N115: 9 | O115: 4 | P115: 11 | Q115: 10 | R115: 3 | S115: 2 | T115: 1 | W115: 2 | X115: 3 | Y115: 5 | AA115: 0 | AB115: 1 | AC115: 1 | AD115: 0 | AE115: 1 | AF115: 0 | AG115: 0 | AH115: 0 | AI115: 0 | AJ115: 0 | AK115: 0 | AL115: 0 | AM115: 0 | AN115: 1 | AO115: 0 | AP115: 0 | AQ115: 1 | AR115: 0 | AS115: 0 | AT115: 0 | AU115: 2142 | AV115: 1883 | AW115: 1510 | AY115: 15 | AZ115: 3 | BA115: 5537 | BB115: 0 | BC115: 1 | BD115: 2 | BE115: 2 | BF115: 3 | BG115: 3 | BH115: 3 | BI115: 3 | BJ115: 3 | BK115: 3 | BL115: 0 | BM115: 1 | BN115: 1 | BO115: 1 | BP115: 2 | BQ115: 2 | BR115: 2 | BS115: 2 | BT115: 2144 | BU115: 4027 | BV115: 5 | BW115: 4 | BX115: 12 | BY115: 13 | BZ115: 5 | CA115: 14 | CB115: 9 | CC115: 4 | CD115: 11 | CE115: 10 | CF115: 3 | CG115: 2 | CH115: 1 | CI115: 0 | CJ115: 0 | CK115: 1 | CL115: 1 | CO115: 2 | CP115: 5
C116: 4ème | D116: A | E116: 77 | F116: 12 | G116: 1 | H116: 2 | I116: 8 | J116: 6 | K116: 1 | L116: 2 | M116: 6 | N116: 7 | O116: 8 | P116: 11 | Q116: 9 | R116: 3 | W116: 1 | X116: 2 | Y116: 3 | Z116: 5 | AA116: 1 | AB116: 1 | AC116: 1 | AD116: 0 | AE116: 1 | AF116: 0 | AG116: 0 | AH116: 0 | AI116: 0 | AJ116: 0 | AK116: 0 | AL116: 0 | AM116: 1 | AN116: 1 | AO116: 0 | AP116: 0 | AQ116: 1 | AR116: 0 | AS116: 0 | AT116: 0 | AU116: 2545 | AV116: 2142 | AW116: 1883 | AX116: 1510 | AY116: 12 | AZ116: 4 | BA116: 8083 | BB116: 1 | BC116: 2 | BD116: 3 | BE116: 3 | BF116: 4 | BG116: 4 | BH116: 4 | BI116: 4 | BJ116: 4 | BK116: 4 | BL116: 1 | BM116: 2 | BN116: 2 | BO116: 2 | BP116: 3 | BQ116: 3 | BR116: 3 | BS116: 3 | BT116: 2548 | BU116: 4690 | BV116: 1 | BW116: 2 | BX116: 8 | BY116: 1 | BZ116: 2 | CA116: 6 | CB116: 7 | CC116: 8 | CD116: 11 | CE116: 9 | CF116: 3 | CI116: 0 | CJ116: 0 | CK116: 0 | CL116: 0 | CO116: 1 | CP116: 2 | CQ116: 5
C117: 5ème | D117: A | E117: 67 | F117: 15 | G117: 15 | H117: 6 | I117: 4 | J117: 2 | K117: 9 | L117: 6 | M117: 10 | N117: 7 | O117: 2 | P117: 12 | Q117: 5 | R117: 15 | S117: 8 | T117: 14 | W117: 2 | X117: 5 | Y117: 8 | AA117: 0 | AB117: 1 | AC117: 0 | AD117: 0 | AE117: 1 | AF117: 0 | AG117: 0 | AH117: 1 | AI117: 0 | AJ117: 0 | AK117: 0 | AL117: 0 | AM117: 0 | AN117: 1 | AO117: 0 | AP117: 0 | AQ117: 0 | AR117: 0 | AS117: 0 | AT117: 1 | AU117: 2142 | AV117: 1510 | AW117: 950 | AY117: 15 | AZ117: 3 | BA117: 4604 | BB117: 0 | BC117: 1 | BD117: 1 | BE117: 1 | BF117: 2 | BG117: 2 | BH117: 2 | BI117: 3 | BJ117: 3 | BK117: 3 | BL117: 0 | BM117: 1 | BN117: 1 | BO117: 1 | BP117: 1 | BQ117: 1 | BR117: 1 | BS117: 2 | BT117: 2144 | BU117: 3654 | BV117: 15 | BW117: 6 | BX117: 4 | BY117: 9 | BZ117: 6 | CA117: 10 | CB117: 7 | CC117: 2 | CD117: 12 | CE117: 5 | CF117: 15 | CG117: 8 | CH117: 14 | CI117: 0 | CJ117: 0 | CK117: 1 | CL117: 1 | CO117: 2 | CP117: 8
C118: 6ème | D118: A | E118: 42 | F118: 12 | G118: 10 | H118: 2 | I118: 4 | J118: 11 | K118: 10 | L118: 7 | M118: 8 | N118: 6 | O118: 9 | P118: 12 | Q118: 2 | R118: 4 | S118: 11 | T118: 5 | W118: 1 | X118: 7 | Y118: 8 | Z118: 9 | AA118: 1 | AB118: 0 | AC118: 0 | AD118: 0 | AE118: 0 | AF118: 0 | AG118: 1 | AH118: 1 | AI118: 1 | AJ118: 0 | AK118: 0 | AL118: 0 | AM118: 1 | AN118: 0 | AO118: 0 | AP118: 0 | AQ118: 0 | AR118: 0 | AS118: 1 | AT118: 1 | AU118: 2545 | AV118: 1182 | AW118: 950 | AX118: 802 | AY118: 12 | AZ118: 4 | BA118: 5482 | BB118: 1 | BC118: 1 | BD118: 1 | BE118: 1 | BF118: 1 | BG118: 1 | BH118: 2 | BI118: 3 | BJ118: 4 | BK118: 4 | BL118: 1 | BM118: 1 | BN118: 1 | BO118: 1 | BP118: 1 | BQ118: 1 | BR118: 2 | BS118: 3 | BT118: 2548 | BU118: 3730 | BV118: 10 | BW118: 2 | BX118: 4 | BY118: 10 | BZ118: 7 | CA118: 8 | CB118: 6 | CC118: 9 | CD118: 12 | CE118: 2 | CF118: 4 | CG118: 11 | CH118: 5 | CI118: 0 | CJ118: 0 | CK118: 0 | CL118: 0 | CO118: 1 | CP118: 7 | CQ118: 8
A119: 1900-02-24 | B119: Vincennes | C119: 1ère | D119: A | E119: 40 | F119: 15 | G119: 12 | H119: 8 | I119: 7 | J119: 6 | K119: 15 | L119: 8 | M119: 14 | N119: 7 | O119: 12 | P119: 5 | Q119: 10 | R119: 13 | S119: 9 | T119: 6 | W119: 2 | X119: 4 | Y119: 5 | Z119: 10 | AA119: 0 | AB119: 1 | AC119: 0 | AD119: 1 | AE119: 1 | AF119: 0 | AG119: 0 | AH119: 0 | AI119: 0 | AJ119: 1 | AK119: 0 | AL119: 0 | AM119: 0 | AN119: 1 | AO119: 0 | AP119: 1 | AQ119: 1 | AR119: 0 | AS119: 0 | AT119: 0 | AU119: 2142 | AV119: 1721 | AW119: 1510 | AX119: 627 | AY119: 15 | AZ119: 4 | BA119: 6003 | BB119: 0 | BC119: 1 | BD119: 1 | BE119: 2 | BF119: 3 | BG119: 3 | BH119: 3 | BI119: 3 | BJ119: 3 | BK119: 4 | BL119: 0 | BM119: 1 | BN119: 1 | BO119: 2 | BP119: 3 | BQ119: 3 | BR119: 3 | BS119: 3 | BT119: 2145 | BU119: 3866 | BV119: 12 | BW119: 8 | BX119: 7 | BY119: 15 | BZ119: 8 | CA119: 14 | CB119: 7 | CC119: 12 | CD119: 5 | CE119: 10 | CF119: 13 | CG119: 9 | CH119: 6 | CI119: 0 | CJ119: 0 | CK119: 1 | CL119: 1 | CO119: 2 | CP119: 4 | CQ119: 5
C120: 4ème | D120: A | E120: 42 | F120: 12 | G120: 12 | H120: 10 | I120: 4 | J120: 2 | K120: 12 | L120: 5 | M120: 4 | N120: 6 | O120: 8 | P120: 2 | Q120: 11 | R120: 10 | W120: 1 | X120: 3 | Y120: 6 | Z120: 8 | AA120: 1 | AB120: 0 | AC120: 1 | AD120: 0 | AE120: 0 | AF120: 1 | AG120: 0 | AH120: 1 | AI120: 0 | AJ120: 0 | AK120: 0 | AL120: 0 | AM120: 1 | AN120: 0 | AO120: 1 | AP120: 0 | AQ120: 0 | AR120: 0 | AS120: 0 | AT120: 1 | AU120: 2545 | AV120: 1883 | AW120: 1294 | AX120: 950 | AY120: 12 | AZ120: 4 | BA120: 6675 | BB120: 1 | BC120: 1 | BD120: 2 | BE120: 2 | BF120: 2 | BG120: 3 | BH120: 3 | BI120: 4 | BJ120: 4 | BK120: 4 | BL120: 1 | BM120: 1 | BN120: 2 | BO120: 2 | BP120: 2 | BQ120: 2 | BR120: 2 | BS120: 3 | BT120: 2548 | BU120: 4431 | BV120: 12 | BW120: 10 | BX120: 4 | BY120: 12 | BZ120: 5 | CA120: 4 | CB120: 6 | CC120: 8 | CD120: 2 | CE120: 11 | CF120: 10 | CI120: 0 | CJ120: 0 | CK120: 0 | CL120: 0 | CO120: 1 | CP120: 3 | CQ120: 8
C121: 5ème | D121: A | E121: 58 | F121: 11 | G121: 4 | H121: 10 | I121: 8 | J121: 2 | K121: 12 | L121: 10 | M121: 4 | N121: 7 | O121: 9 | P121: 8 | Q121: 5 | R121: 11 | S121: 1 | T121: 2 | W121: 2 | X121: 3 | Y121: 6 | Z121: 10 | AA121: 0 | AB121: 1 | AC121: 1 | AD121: 0 | AE121: 0 | AF121: 1 | AG121: 0 | AH121: 0 | AI121: 0 | AJ121: 1 | AK121: 0 | AL121: 0 | AM121: 0 | AN121: 1 | AO121: 1 | AP121: 0 | AQ121: 0 | AR121: 1 | AS121: 0 | AT121: 0 | AU121: 2142 | AV121: 1883 | AW121: 1294 | AX121: 627 | AY121: 11 | AZ121: 4 | BA121: 5949 | BB121: 0 | BC121: 1 | BD121: 2 | BE121: 2 | BF121: 2 | BG121: 3 | BH121: 3 | BI121: 3 | BJ121: 3 | BK121: 4 | BL121: 0 | BM121: 1 | BN121: 2 | BO121: 2 | BP121: 2 | BQ121: 3 | BR121: 3 | BS121: 3 | BT121: 2145 | BU121: 4028 | BV121: 4 | BW121: 10 | BX121: 8 | BY121: 12 | BZ121: 10 | CA121: 4 | CB121: 7 | CC121: 9 | CD121: 8 | CE121: 5 | CF121: 11 | CG121: 1 | CH121: 2 | CI121: 0 | CJ121: 0 | CK121: 1 | CL121: 1 | CO121: 2 | CP121: 3 | CQ121: 6
C122: 7ème | D122: A | E122: 73 | F122: 11 | G122: 2 | H122: 5 | I122: 3 | J122: 11 | K122: 6 | L122: 2 | M122: 4 | N122: 11 | O122: 5 | P122: 3 | Q122: 1 | R122: 10 | W122: 2 | X122: 4 | Y122: 5 | Z122: 6 | AA122: 0 | AB122: 1 | AC122: 0 | AD122: 1 | AE122: 1 | AF122: 1 | AG122: 0 | AH122: 0 | AI122: 0 | AJ122: 0 | AK122: 0 | AL122: 0 | AM122: 0 | AN122: 1 | AO122: 0 | AP122: 0 | AQ122: 1 | AR122: 1 | AS122: 0 | AT122: 0 | AU122: 2142 | AV122: 1721 | AW122: 1510 | AX122: 1294 | AY122: 11 | AZ122: 4 | BA122: 6670 | BB122: 0 | BC122: 1 | BD122: 1 | BE122: 2 | BF122: 3 | BG122: 4 | BH122: 4 | BI122: 4 | BJ122: 4 | BK122: 4 | BL122: 0 | BM122: 1 | BN122: 1 | BO122: 1 | BP122: 2 | BQ122: 3 | BR122: 3 | BS122: 3 | BT122: 2145 | BU122: 3866 | BV122: 2 | BW122: 5 | BX122: 3 | BY122: 6 | BZ122: 2 | CA122: 4 | CB122: 11 | CC122: 5 | CD122: 3 | CE122: 1 | CF122: 10 | CI122: 0 | CJ122: 0 | CK122: 1 | CL122: 1 | CO122: 2 | CP122: 5 | CQ122: 6
C123: 8ème | D123: A | E123: 63 | F123: 16 | G123: 7 | H123: 6 | I123: 14 | J123: 11 | K123: 6 | L123: 3 | M123: 7 | N123: 8 | O123: 1 | P123: 13 | Q123: 14 | R123: 10 | S123: 15 | T123: 2 | W123: 1 | X123: 3 | Y123: 7 | AA123: 1 | AB123: 0 | AC123: 1 | AD123: 0 | AE123: 0 | AF123: 0 | AG123: 1 | AH123: 0 | AI123: 0 | AJ123: 0 | AK123: 0 | AL123: 0 | AM123: 1 | AN123: 0 | AO123: 1 | AP123: 0 | AQ123: 0 | AR123: 0 | AS123: 1 | AT123: 0 | AU123: 2545 | AV123: 1883 | AW123: 1182 | AY123: 16 | AZ123: 3 | BA123: 5613 | BB123: 1 | BC123: 1 | BD123: 2 | BE123: 2 | BF123: 2 | BG123: 2 | BH123: 3 | BI123: 3 | BJ123: 3 | BK123: 3 | BL123: 1 | BM123: 1 | BN123: 2 | BO123: 2 | BP123: 2 | BQ123: 2 | BR123: 3 | BS123: 3 | BT123: 2548 | BU123: 4431 | BV123: 7 | BW123: 6 | BX123: 14 | BY123: 6 | BZ123: 3 | CA123: 7 | CB123: 8 | CC123: 1 | CD123: 13 | CE123: 14 | CF123: 10 | CG123: 15 | CH123: 2 | CI123: 0 | CJ123: 0 | CK123: 0 | CL123: 0 | CO123: 1 | CP123: 3 | CQ123: 7
B124: Lyon | C124: 1ère | D124: A | E124: 100 | F124: 12 | G124: 11 | H124: 9 | I124: 10 | J124: 1 | K124: 11 | L124: 1 | M124: 7 | N124: 9 | O124: 10 | P124: 12 | Q124: 6 | R124: 4 | S124: 5 | T124: 8 | W124: 1 | X124: 2 | Y124: 4 | Z124: 5 | AA124: 1 | AB124: 1 | AC124: 0 | AD124: 1 | AE124: 1 | AF124: 0 | AG124: 0 | AH124: 0 | AI124: 0 | AJ124: 0 | AK124: 0 | AL124: 0 | AM124: 1 | AN124: 0 | AO124: 0 | AP124: 1 | AQ124: 1 | AR124: 0 | AS124: 0 | AT124: 0 | AU124: 2545 | AV124: 2142 | AW124: 1721 | AX124: 1510 | AY124: 12 | AZ124: 4 | BA124: 7921 | BB124: 1 | BC124: 2 | BD124: 2 | BE124: 3 | BF124: 4 | BG124: 4 | BH124: 4 | BI124: 4 | BJ124: 4 | BK124: 4 | BL124: 1 | BM124: 1 | BN124: 1 | BO124: 2 | BP124: 3 | BQ124: 3 | BR124: 3 | BS124: 3 | BT124: 2548 | BU124: 4690 | BV124: 11 | BW124: 9 | BX124: 10 | BY124: 11 | BZ124: 1 | CA124: 7 | CB124: 9 | CC124: 10 | CD124: 12 | CE124: 6 | CF124: 4 | CG124: 5 | CH124: 8 | CI124: 0 | CJ124: 0 | CK124: 0 | CL124: 0 | CO124: 1 | CP124: 4 | CQ124: 5
C125: 4ème | D125: A | E125: 71 | F125: 14 | G125: 8 | H125: 5 | I125: 10 | J125: 2 | K125: 8 | L125: 11 | M125: 10 | N125: 5 | O125: 9 | P125: 1 | Q125: 13 | R125: 6 | S125: 14 | T125: 2 | W125: 1 | X125: 3 | Y125: 4 | Z125: 10 | AA125: 1 | AB125: 0 | AC125: 1 | AD125: 1 | AE125: 0 | AF125: 0 | AG125: 0 | AH125: 0 | AI125: 0 | AJ125: 1 | AK125: 0 | AL125: 0 | AM125: 1 | AN125: 0 | AO125: 1 | AP125: 1 | AQ125: 0 | AR125: 0 | AS125: 0 | AT125: 0 | AU125: 2545 | AV125: 1883 | AW125: 1721 | AX125: 627 | AY125: 14 | AZ125: 4 | BA125: 6779 | BB125: 1 | BC125: 1 | BD125: 2 | BE125: 3 | BF125: 3 | BG125: 3 | BH125: 3 | BI125: 3 | BJ125: 3 | BK125: 4 | BL125: 1 | BM125: 1 | BN125: 2 | BO125: 3 | BP125: 3 | BQ125: 3 | BR125: 3 | BS125: 3 | BT125: 2548 | BU125: 4431 | BV125: 8 | BW125: 5 | BX125: 10 | BY125: 8 | BZ125: 11 | CA125: 10 | CB125: 5 | CC125: 9 | CD125: 1 | CE125: 13 | CF125: 6 | CG125: 14 | CH125: 2 | CI125: 0 | CJ125: 0 | CK125: 0 | CL125: 0 | CO125: 1 | CP125: 3 | CQ125: 4
C126: 5ème | D126: A | E126: 77 | F126: 13 | G126: 5 | H126: 8 | I126: 6 | J126: 7 | K126: 7 | L126: 12 | M126: 8 | N126: 1 | O126: 6 | P126: 11 | Q126: 2 | R126: 3 | S126: 5 | T126: 9 | W126: 1 | X126: 3 | Y126: 5 | Z126: 9 | AA126: 1 | AB126: 0 | AC126: 1 | AD126: 0 | AE126: 1 | AF126: 0 | AG126: 0 | AH126: 0 | AI126: 1 | AJ126: 0 | AK126: 0 | AL126: 0 | AM126: 0 | AN126: 0 | AO126: 1 | AP126: 0 | AQ126: 1 | AR126: 0 | AS126: 0 | AT126: 0 | AU126: 2545 | AV126: 1883 | AW126: 1510 | AX126: 802 | AY126: 13 | AZ126: 4 | BA126: 6742 | BB126: 1 | BC126: 1 | BD126: 2 | BE126: 2 | BF126: 3 | BG126: 3 | BH126: 3 | BI126: 3 | BJ126: 4 | BK126: 4 | BL126: 0 | BM126: 0 | BN126: 1 | BO126: 1 | BP126: 2 | BQ126: 2 | BR126: 2 | BS126: 2 | BT126: 2547 | BU126: 4430 | BV126: 5 | BW126: 8 | BX126: 6 | BY126: 7 | BZ126: 12 | CA126: 8 | CB126: 1 | CC126: 6 | CD126: 11 | CE126: 2 | CF126: 3 | CG126: 5 | CH126: 9 | CI126: 0 | CJ126: 0 | CK126: 2 | CL126: 0 | CO126: 3 | CP126: 5 | CQ126: 9
C127: 6ème | D127: A | E127: 56 | F127: 18 | G127: 17 | H127: 5 | I127: 6 | J127: 14 | K127: 14 | L127: 5 | M127: 17 | N127: 3 | O127: 7 | P127: 8 | Q127: 6 | R127: 4 | W127: 1 | X127: 2 | Y127: 3 | Z127: 7 | AA127: 1 | AB127: 1 | AC127: 1 | AD127: 0 | AE127: 0 | AF127: 0 | AG127: 1 | AH127: 0 | AI127: 0 | AJ127: 0 | AK127: 0 | AL127: 0 | AM127: 0 | AN127: 1 | AO127: 1 | AP127: 0 | AQ127: 0 | AR127: 0 | AS127: 1 | AT127: 0 | AU127: 2545 | AV127: 2142 | AW127: 1883 | AX127: 1182 | AY127: 18 | AZ127: 4 | BA127: 7755 | BB127: 1 | BC127: 2 | BD127: 3 | BE127: 3 | BF127: 3 | BG127: 3 | BH127: 4 | BI127: 4 | BJ127: 4 | BK127: 4 | BL127: 0 | BM127: 1 | BN127: 2 | BO127: 2 | BP127: 2 | BQ127: 2 | BR127: 3 | BS127: 3 | BT127: 2548 | BU127: 4690 | BV127: 17 | BW127: 5 | BX127: 6 | BY127: 14 | BZ127: 5 | CA127: 17 | CB127: 3 | CC127: 7 | CD127: 8 | CE127: 6 | CF127: 4 | CI127: 0 | CJ127: 0 | CK127: 1 | CL127: 0 | CO127: 2 | CP127: 3 | CQ127: 7
C128: 7ème | D128: A | E128: 64 | F128: 14 | G128: 12 | H128: 4 | I128: 13 | J128: 9 | K128: 12 | L128: 14 | M128: 9 | N128: 13 | O128: 11 | P128: 6 | Q128: 1 | R128: 4 | W128: 1 | X128: 3 | Y128: 4 | Z128: 8 | AA128: 1 | AB128: 0 | AC128: 1 | AD128: 1 | AE128: 0 | AF128: 0 | AG128: 0 | AH128: 1 | AI128: 0 | AJ128: 0 | AK128: 0 | AL128: 0 | AM128: 1 | AN128: 0 | AO128: 0 | AP128: 1 | AQ128: 0 | AR128: 0 | AS128: 0 | AT128: 1 | AU128: 2545 | AV128: 1883 | AW128: 1721 | AX128: 950 | AY128: 14 | AZ128: 4 | BA128: 7102 | BB128: 1 | BC128: 1 | BD128: 2 | BE128: 3 | BF128: 3 | BG128: 3 | BH128: 3 | BI128: 4 | BJ128: 4 | BK128: 4 | BL128: 1 | BM128: 1 | BN128: 1 | BO128: 2 | BP128: 2 | BQ128: 2 | BR128: 2 | BS128: 3 | BT128: 2548 | BU128: 4431 | BV128: 12 | BW128: 4 | BX128: 13 | BY128: 12 | BZ128: 14 | CA128: 9 | CB128: 13 | CC128: 11 | CD128: 6 | CE128: 1 | CF128: 4 | CI128: 0 | CJ128: 0 | CK128: 0 | CL128: 0 | CO128: 1 | CP128: 4 | CQ128: 8
C129: 8ème | D129: A | E129: 93 | F129: 14 | G129: 12 | H129: 14 | I129: 1 | J129: 4 | K129: 14 | L129: 9 | M129: 7 | N129: 10 | O129: 1 | P129: 12 | Q129: 11 | R129: 4 | W129: 1 | X129: 5 | Y129: 6 | Z129: 8 | AA129: 1 | AB129: 0 | AC129: 0 | AD129: 0 | AE129: 1 | AF129: 1 | AG129: 0 | AH129: 1 | AI129: 0 | AJ129: 0 | AK129: 0 | AL129: 0 | AM129: 1 | AN129: 0 | AO129: 0 | AP129: 0 | AQ129: 1 | AR129: 1 | AS129: 0 | AT129: 0 | AU129: 2545 | AV129: 1510 | AW129: 1294 | AX129: 950 | AY129: 14 | AZ129: 4 | BA129: 6302 | BB129: 1 | BC129: 1 | BD129: 1 | BE129: 1 | BF129: 2 | BG129: 3 | BH129: 3 | BI129: 4 | BJ129: 4 | BK129: 4 | BL129: 1 | BM129: 1 | BN129: 1 | BO129: 1 | BP129: 2 | BQ129: 3 | BR129: 3 | BS129: 3 | BT129: 2548 | BU129: 4058 | BV129: 12 | BW129: 14 | BX129: 1 | BY129: 14 | BZ129: 9 | CA129: 7 | CB129: 10 | CC129: 1 | CD129: 12 | CE129: 11 | CF129: 4 | CI129: 0 | CJ129: 0 | CK129: 0 | CL129: 0 | CO129: 1 | CP129: 5 | CQ129: 6
A130: 2022-02-25 | B130: Vincennes | C130: 1ère | D130: A | E130: 50 | F130: 16 | G130: 9 | H130: 6 | I130: 11 | J130: 12 | K130: 9 | L130: 13 | M130: 14 | N130: 15 | O130: 5 | P130: 8 | Q130: 10 | R130: 12 | S130: 16 | T130: 7 | W130: 1 | X130: 8 | AA130: 1 | AB130: 0 | AC130: 0 | AD130: 0 | AE130: 0 | AF130: 0 | AG130: 0 | AH130: 1 | AI130: 0 | AJ130: 0 | AK130: 0 | AL130: 0 | AM130: 1 | AN130: 0 | AO130: 0 | AP130: 0 | AQ130: 0 | AR130: 0 | AS130: 0 | AT130: 0 | AU130: 2545 | AV130: 950 | AY130: 16 | AZ130: 2 | BA130: 3496 | BB130: 1 | BC130: 1 | BD130: 1 | BE130: 1 | BF130: 1 | BG130: 1 | BH130: 1 | BI130: 2 | BJ130: 2 | BK130: 2 | BL130: 1 | BM130: 1 | BN130: 1 | BO130: 1 | BP130: 1 | BQ130: 1 | BR130: 1 | BS130: 1 | BT130: 2546 | BU130: 3496 | BV130: 9 | BW130: 6 | BX130: 11 | BY130: 9 | BZ130: 13 | CA130: 14 | CB130: 15 | CC130: 5 | CD130: 8 | CE130: 10 | CF130: 12 | CG130: 16 | CH130: 7 | CI130: 0 | CJ130: 0 | CK130: 0 | CL130: 0 | CO130: 1
C131: 3ème | D131: A | E131: 56 | F131: 16 | G131: 3 | H131: 9 | I131: 2 | J131: 6 | K131: 3 | L131: 6 | M131: 4 | N131: 10 | O131: 14 | P131: 5 | Q131: 11 | R131: 2 | S131: 7 | T131: 8 | W131: 1 | X131: 2 | Y131: 8 | AA131: 1 | AB131: 1 | AC131: 0 | AD131: 0 | AE131: 0 | AF131: 0 | AG131: 0 | AH131: 1 | AI131: 0 | AJ131: 0 | AK131: 0 | AL131: 0 | AM131: 1 | AN131: 0 | AO131: 0 | AP131: 0 | AQ131: 0 | AR131: 0 | AS131: 0 | AT131: 1 | AU131: 2545 | AV131: 2142 | AW131: 950 | AY131: 16 | AZ131: 3 | BA131: 5639 | BB131: 1 | BC131: 2 | BD131: 2 | BE131: 2 | BF131: 2 | BG131: 2 | BH131: 2 | BI131: 3 | BJ131: 3 | BK131: 3 | BL131: 1 | BM131: 1 | BN131: 1 | BO131: 1 | BP131: 1 | BQ131: 1 | BR131: 1 | BS131: 2 | BT131: 2547 | BU131: 4689 | BV131: 3 | BW131: 9 | BX131: 2 | BY131: 3 | BZ131: 6 | CA131: 4 | CB131: 10 | CC131: 14 | CD131: 5 | CE131: 11 | CF131: 2 | CG131: 7 | CH131: 8 | CI131: 0 | CJ131: 0 | CK131: 0 | CL131: 0 | CO131: 1 | CP131: 8
C132: 4ème | D132: A | E132: 58 | F132: 12 | G132: 5 | H132: 10 | I132: 8 | J132: 7 | K132: 5 | L132: 7 | M132: 1 | N132: 10 | O132: 4 | P132: 6 | Q132: 8 | R132: 2 | W132: 1 | X132: 2 | Y132: 4 | Z132: 7 | AA132: 1 | AB132: 1 | AC132: 0 | AD132: 1 | AE132: 0 | AF132: 0 | AG132: 1 | AH132: 0 | AI132: 0 | AJ132: 0 | AK132: 0 | AL132: 0 | AM132: 1 | AN132: 0 | AO132: 0 | AP132: 1 | AQ132: 0 | AR132: 0 | AS132: 1 | AT132: 0 | AU132: 2545 | AV132: 2142 | AW132: 1721 | AX132: 1182 | AY132: 12 | AZ132: 4 | BA132: 7593 | BB132: 1 | BC132: 2 | BD132: 2 | BE132: 3 | BF132: 3 | BG132: 3 | BH132: 4 | BI132: 4 | BJ132: 4 | BK132: 4 | BL132: 1 | BM132: 1 | BN132: 1 | BO132: 2 | BP132: 2 | BQ132: 2 | BR132: 3 | BS132: 3 | BT132: 2548 | BU132: 4690 | BV132: 5 | BW132: 10 | BX132: 8 | BY132: 5 | BZ132: 7 | CA132: 1 | CB132: 10 | CC132: 4 | CD132: 6 | CE132: 8 | CF132: 2 | CI132: 0 | CJ132: 0 | CK132: 0 | CL132: 0 | CO132: 1 | CP132: 4 | CQ132: 7
C133: 6ème | D133: A | E133: 38 | F133: 13 | G133: 3 | H133: 9 | I133: 4 | J133: 5 | K133: 3 | L133: 5 | M133: 12 | N133: 6 | O133: 7 | P133: 4 | Q133: 1 | R133: 9 | W133: 1 | X133: 2 | Y133: 6 | Z133: 8 | AA133: 1 | AB133: 1 | AC133: 0 | AD133: 0 | AE133: 0 | AF133: 1 | AG133: 0 | AH133: 1 | AI133: 0 | AJ133: 0 | AK133: 0 | AL133: 0 | AM133: 1 | AN133: 0 | AO133: 0 | AP133: 0 | AQ133: 0 | AR133: 1 | AS133: 0 | AT133: 1 | AU133: 2545 | AV133: 2142 | AW133: 1294 | AX133: 950 | AY133: 13 | AZ133: 4 | BA133: 6934 | BB133: 1 | BC133: 2 | BD133: 2 | BE133: 2 | BF133: 2 | BG133: 3 | BH133: 3 | BI133: 4 | BJ133: 4 | BK133: 4 | BL133: 1 | BM133: 1 | BN133: 1 | BO133: 1 | BP133: 1 | BQ133: 2 | BR133: 2 | BS133: 3 | BT133: 2548 | BU133: 4690 | BV133: 3 | BW133: 9 | BX133: 4 | BY133: 3 | BZ133: 5 | CA133: 12 | CB133: 6 | CC133: 7 | CD133: 4 | CE133: 1 | CF133: 9 | CI133: 0 | CJ133: 0 | CK133: 0 | CL133: 0 | CO133: 1 | CP133: 6 | CQ133: 8
C134: 7ème | D134: A | E134: 46 | F134: 13 | G134: 9 | H134: 12 | I134: 11 | J134: 2 | K134: 3 | L134: 11 | M134: 1 | N134: 9 | O134: 12 | P134: 6 | Q134: 2 | R134: 5 | W134: 2 | X134: 4 | Y134: 5 | Z134: 7 | AA134: 0 | AB134: 1 | AC134: 0 | AD134: 1 | AE134: 1 | AF134: 0 | AG134: 1 | AH134: 0 | AI134: 0 | AJ134: 0 | AK134: 0 | AL134: 0 | AM134: 0 | AN134: 1 | AO134: 0 | AP134: 1 | AQ134: 1 | AR134: 0 | AS134: 0 | AT134: 0 | AU134: 2142 | AV134: 1721 | AW134: 1510 | AX134: 1182 | AY134: 13 | AZ134: 4 | BA134: 6558 | BB134: 0 | BC134: 1 | BD134: 1 | BE134: 2 | BF134: 3 | BG134: 3 | BH134: 4 | BI134: 4 | BJ134: 4 | BK134: 4 | BL134: 0 | BM134: 1 | BN134: 1 | BO134: 2 | BP134: 3 | BQ134: 3 | BR134: 3 | BS134: 3 | BT134: 2145 | BU134: 3866 | BV134: 9 | BW134: 12 | BX134: 11 | BY134: 3 | BZ134: 11 | CA134: 1 | CB134: 9 | CC134: 12 | CD134: 6 | CE134: 2 | CF134: 5 | CI134: 0 | CJ134: 0 | CK134: 1 | CL134: 1 | CO134: 2 | CP134: 4 | CQ134: 5
C135: 8ème | D135: A | E135: 54 | F135: 13 | G135: 9 | H135: 10 | I135: 2 | J135: 7 | K135: 1 | L135: 12 | M135: 9 | N135: 8 | O135: 3 | P135: 5 | Q135: 10 | R135: 11 | S135: 7 | T135: 2 | W135: 3 | X135: 7 | Y135: 9 | Z135: 10 | AA135: 0 | AB135: 0 | AC135: 1 | AD135: 0 | AE135: 0 | AF135: 0 | AG135: 1 | AH135: 0 | AI135: 1 | AJ135: 1 | AK135: 0 | AL135: 0 | AM135: 0 | AN135: 0 | AO135: 1 | AP135: 0 | AQ135: 0 | AR135: 0 | AS135: 1 | AT135: 0 | AU135: 1883 | AV135: 1182 | AW135: 802 | AX135: 627 | AY135: 13 | AZ135: 4 | BA135: 4496 | BB135: 0 | BC135: 0 | BD135: 1 | BE135: 1 | BF135: 1 | BG135: 1 | BH135: 2 | BI135: 2 | BJ135: 3 | BK135: 4 | BL135: 0 | BM135: 0 | BN135: 1 | BO135: 1 | BP135: 1 | BQ135: 1 | BR135: 2 | BS135: 2 | BT135: 1885 | BU135: 3067 | BV135: 9 | BW135: 10 | BX135: 2 | BY135: 1 | BZ135: 12 | CA135: 9 | CB135: 8 | CC135: 3 | CD135: 5 | CE135: 10 | CF135: 11 | CG135: 7 | CH135: 2 | CI135: 0 | CJ135: 0 | CK135: 2 | CL135: 2 | CO135: 3 | CP135: 7 | CQ135: 10
B136: Cagnes | C136: 1ère | D136: A | E136: 57 | F136: 14 | G136: 5 | H136: 2 | I136: 13 | J136: 3 | K136: 5 | L136: 11 | M136: 9 | N136: 2 | O136: 13 | P136: 3 | Q136: 10 | R136: 4 | W136: 1 | X136: 4 | Y136: 5 | Z136: 6 | AA136: 1 | AB136: 0 | AC136: 0 | AD136: 1 | AE136: 1 | AF136: 1 | AG136: 0 | AH136: 0 | AI136: 0 | AJ136: 0 | AK136: 0 | AL136: 0 | AM136: 1 | AN136: 0 | AO136: 0 | AP136: 1 | AQ136: 1 | AR136: 0 | AS136: 0 | AT136: 0 | AU136: 2545 | AV136: 1721 | AW136: 1510 | AX136: 1294 | AY136: 14 | AZ136: 4 | BA136: 7073 | BB136: 1 | BC136: 1 | BD136: 1 | BE136: 2 | BF136: 3 | BG136: 4 | BH136: 4 | BI136: 4 | BJ136: 4 | BK136: 4 | BL136: 1 | BM136: 1 | BN136: 1 | BO136: 2 | BP136: 3 | BQ136: 3 | BR136: 3 | BS136: 3 | BT136: 2548 | BU136: 4269 | BV136: 5 | BW136: 2 | BX136: 13 | BY136: 5 | BZ136: 11 | CA136: 9 | CB136: 2 | CC136: 13 | CD136: 3 | CE136: 10 | CF136: 4 | CI136: 0 | CJ136: 0 | CK136: 0 | CL136: 0 | CO136: 1 | CP136: 4 | CQ136: 5
C137: 3ème | D137: A | E137: 55 | F137: 11 | G137: 6 | H137: 2 | I137: 4 | J137: 7 | K137: 6 | L137: 3 | M137: 8 | N137: 2 | O137: 4 | P137: 5 | Q137: 10 | R137: 9 | S137: 1 | T137: 7 | W137: 1 | X137: 4 | Y137: 5 | Z137: 10 | AA137: =COUNTIF(K137:K137,G137)+COUNTIF(K137:K137,H137)+COUNTIF(K137:K137,I137)+COUNTIF(K137:K137,J137) -> 1 | AB137: =COUNTIF(L137:L137,H137)+COUNTIF(L137:L137,I137)+COUNTIF(L137:L137,J137)+COUNTIF(L137:L137,G137) -> 0 | AC137: =COUNTIF(M137:M137,I137)+COUNTIF(M137:M137,J137)+COUNTIF(M137:M137,G137)+COUNTIF(M137:M137,H137) -> 0 | AD137: =COUNTIF(N137:N137,J137)+COUNTIF(N137:N137,G137)+COUNTIF(N137:N137,H137)+COUNTIF(N137:N137,I137) -> 1 | AE137: =COUNTIF(O137:O137,G137)+COUNTIF(O137:O137,H137)+COUNTIF(O137:O137,I137)+COUNTIF(O137:O137,J137) -> 1 | AF137: =COUNTIF(P137:P137,H137)+COUNTIF(P137:P137,I137)+COUNTIF(P137:P137,J137)+COUNTIF(P137:P137,G137) -> 0 | AG137: =COUNTIF(Q137:Q137,I137)+COUNTIF(Q137:Q137,J137)+COUNTIF(Q137:Q137,G137)+COUNTIF(Q137:Q137,H137) -> 0 | AH137: =COUNTIF(R137:R137,J137)+COUNTIF(R137:R137,G137)+COUNTIF(R137:R137,H137)+COUNTIF(R137:R137,I137) -> 0 | AI137: =COUNTIF(S137:S137,G137)+COUNTIF(S137:S137,H137)+COUNTIF(S137:S137,I137)+COUNTIF(S137:S137,J137) -> 0 | AJ137: =COUNTIF(T137:T137,H137)+COUNTIF(T137:T137,I137)+COUNTIF(T137:T137,J137)+COUNTIF(T137:T137,G137) -> 1 | AK137: =COUNTIF(U137:U137,G137)+COUNTIF(U137:U137,H137)+COUNTIF(U137:U137,I137)+COUNTIF(U137:U137,J137) -> 0 | AL137: =COUNTIF(V137:V137,G137)+COUNTIF(V137:V137,H137)+COUNTIF(V137:V137,I137)+COUNTIF(V137:V137,J137) -> 0 | AM137: =COUNTIF(K137:K137,G137)+COUNTIF(K137:K137,H137)+COUNTIF(K137:K137,I137) -> 1 | AN137: =COUNTIF(L137:L137,H137)+COUNTIF(L137:L137,I137)+COUNTIF(L137:L137,G137) -> 0 | AO137: =COUNTIF(M137:M137,I137)+COUNTIF(M137:M137,G137)+COUNTIF(M137:M137,H137) -> 0 | AP137: =COUNTIF(N137:N137,G137)+COUNTIF(N137:N137,H137)+COUNTIF(N137:N137,I137) -> 1 | AQ137: =COUNTIF(O137:O137,H137)+COUNTIF(O137:O137,I137)+COUNTIF(O137:O137,G137) -> 1 | AR137: =COUNTIF(P137:P137,I137)+COUNTIF(P137:P137,G137)+COUNTIF(P137:P137,H137) -> 0 | AS137: =COUNTIF(Q137:Q137,G137)+COUNTIF(Q137:Q137,H137)+COUNTIF(Q137:Q137,I137) -> 0 | AT137: =COUNTIF(R137:R137,H137)+COUNTIF(R137:R137,I137)+COUNTIF(R137:R137,G137) -> 0 | AU137: 2545 | AV137: 1721 | AW137: 1510 | AX137: 627 | AY137: =F137 -> 11 | AZ137: =SUM(AA137:AL137) -> 4 | BA137: =SUM(AM137:AX137) -> 6406 | BB137: =AA137 -> 1 | BC137: =SUM(AA137:AB137) -> 1 | BD137: =SUM(AA137:AC137) -> 1 | BE137: =SUM(AA137:AD137) -> 2 | BF137: =SUM(AA137:AE137) -> 3 | BG137: =SUM(AA137:AF137) -> 3 | BH137: =SUM(AA137:AG137) -> 3 | BI137: =SUM(AA137:AH137) -> 3 | BJ137: =SUM(AA137:AI137) -> 3 | BK137: =SUM(AA137:AJ137) -> 4 | BL137: =AM137 -> 1 | BM137: =SUM(AM137:AN137) -> 1 | BN137: =SUM(AM137:AO137) -> 1 | BO137: =SUM(AM137:AP137) -> 2 | BP137: =SUM(AM137:AQ137) -> 3 | BQ137: =SUM(AM137:AR137) -> 3 | BR137: =SUM(AM137:AS137) -> 3 | BS137: =SUM(AM137:AT137) -> 3 | BT137: =SUM(AM137:AU137) -> 2548 | BU137: =SUM(AM137:AV137) -> 4269 | BV137: 6 | BW137: 2 | BX137: 4 | BY137: 6 | BZ137: 3 | CA137: 8 | CB137: 2 | CC137: 4 | CD137: 5 | CE137: 10 | CF137: 9 | CG137: 1 | CH137: 7 | CI137: =U137 -> 0 | CJ137: 0 | CK137: =COUNTIF(BL137:BU137,0) -> 0 | CL137: =COUNTIF(BB137:BK137,0) -> 0 | CO137: 1 | CP137: 4 | CQ137: 5
C138: 4ème | D138: A | E138: 40 | F138: 10 | G138: 9 | H138: 6 | I138: 2 | J138: 8 | K138: 6 | L138: 9 | M138: 8 | N138: 7 | O138: 10 | P138: 2 | Q138: 3 | R138: 5 | W138: 1 | X138: 2 | Y138: 3 | Z138: 6 | AA138: 1 | AB138: 1 | AC138: 1 | AD138: 0 | AE138: 0 | AF138: 1 | AG138: 0 | AH138: 0 | AI138: 0 | AJ138: 0 | AK138: 0 | AL138: 0 | AM138: 1 | AN138: 1 | AO138: 0 | AP138: 0 | AQ138: 0 | AR138: 1 | AS138: 0 | AT138: 0 | AU138: 2545 | AV138: 2142 | AW138: 1883 | AX138: 1294 | AY138: 10 | AZ138: 4 | BA138: 7867 | BB138: 1 | BC138: 2 | BD138: 3 | BE138: 3 | BF138: 3 | BG138: 4 | BH138: 4 | BI138: 4 | BJ138: 4 | BK138: 4 | BL138: 1 | BM138: 2 | BN138: 2 | BO138: 2 | BP138: 2 | BQ138: 3 | BR138: 3 | BS138: 3 | BT138: 2548 | BU138: 4690 | BV138: 9 | BW138: 6 | BX138: 2 | BY138: 6 | BZ138: 9 | CA138: 8 | CB138: 7 | CC138: 10 | CD138: 2 | CE138: 3 | CF138: 5 | CI138: 0 | CJ138: 0 | CK138: 0 | CL138: 0 | CO138: 1 | CP138: 2 | CQ138: 6
C139: 5ème | D139: A | E139: 60 | F139: 15 | G139: 15 | H139: 5 | I139: 10 | J139: 14 | K139: 15 | L139: 5 | M139: 10 | N139: 8 | O139: 12 | P139: 4 | Q139: 14 | R139: 9 | W139: 1 | X139: 2 | Y139: 3 | Z139: 7 | AA139: 1 | AB139: 1 | AC139: 1 | AD139: 0 | AE139: 0 | AF139: 0 | AG139: 1 | AH139: 0 | AI139: 0 | AJ139: 0 | AK139: 0 | AL139: 0 | AM139: 1 | AN139: 1 | AO139: 1 | AP139: 0 | AQ139: 0 | AR139: 0 | AS139: 0 | AT139: 0 | AU139: 2545 | AV139: 2142 | AW139: 1883 | AX139: 1182 | AY139: 15 | AZ139: 4 | BA139: 7755 | BB139: 1 | BC139: 2 | BD139: 3 | BE139: 3 | BF139: 3 | BG139: 3 | BH139: 4 | BI139: 4 | BJ139: 4 | BK139: 4 | BL139: 1 | BM139: 2 | BN139: 3 | BO139: 3 | BP139: 3 | BQ139: 3 | BR139: 3 | BS139: 3 | BT139: 2548 | BU139: 4690 | BV139: 15 | BW139: 5 | BX139: 10 | BY139: 15 | BZ139: 5 | CA139: 10 | CB139: 8 | CC139: 12 | CD139: 4 | CE139: 14 | CF139: 9 | CI139: 0 | CJ139: 0 | CK139: 0 | CL139: 0 | CO139: 1 | CP139: 2 | CQ139: 3
C140: 7ème | D140: A | E140: 55 | F140: 11 | G140: 8 | H140: 10 | I140: 5 | J140: 11 | K140: 5 | L140: 8 | M140: 6 | N140: 11 | O140: 10 | P140: 2 | Q140: 4 | R140: 7 | W140: 1 | X140: 2 | Y140: 4 | Z140: 5 | AA140: 1 | AB140: 1 | AC140: 0 | AD140: 1 | AE140: 1 | AF140: 0 | AG140: 0 | AH140: 0 | AI140: 0 | AJ140: 0 | AK140: 0 | AL140: 0 | AM140: 1 | AN140: 1 | AO140: 0 | AP140: 0 | AQ140: 1 | AR140: 0 | AS140: 0 | AT140: 0 | AU140: 2545 | AV140: 2142 | AW140: 1721 | AX140: 1510 | AY140: 11 | AZ140: 4 | BA140: 7921 | BB140: 1 | BC140: 2 | BD140: 2 | BE140: 3 | BF140: 4 | BG140: 4 | BH140: 4 | BI140: 4 | BJ140: 4 | BK140: 4 | BL140: 1 | BM140: 2 | BN140: 2 | BO140: 2 | BP140: 3 | BQ140: 3 | BR140: 3 | BS140: 3 | BT140: 2548 | BU140: 4690 | BV140: 8 | BW140: 10 | BX140: 5 | BY140: 5 | BZ140: 8 | CA140: 6 | CB140: 11 | CC140: 10 | CD140: 2 | CE140: 4 | CF140: 7 | CI140: 0 | CJ140: 0 | CK140: 0 | CL140: 0 | CO140: 1 | CP140: 2 | CQ140: 5
B141: Amiens | C141: 1ère | D141: A | E141: 57 | F141: 14 | G141: 4 | H141: 1 | I141: 10 | J141: 13 | K141: 10 | L141: 12 | M141: 7 | N141: 2 | O141: 8 | P141: 9 | Q141: 3 | R141: 13 | S141: 1 | T141: 11 | W141: 1 | X141: 8 | Y141: 9 | AA141: 1 | AB141: 0 | AC141: 0 | AD141: 0 | AE141: 0 | AF141: 0 | AG141: 0 | AH141: 1 | AI141: 1 | AJ141: 0 | AK141: 0 | AL141: 0 | AM141: 1 | AN141: 0 | AO141: 0 | AP141: 0 | AQ141: 0 | AR141: 0 | AS141: 0 | AT141: 0 | AU141: 2545 | AV141: 950 | AW141: 802 | AY141: 14 | AZ141: 3 | BA141: 4298 | BB141: 1 | BC141: 1 | BD141: 1 | BE141: 1 | BF141: 1 | BG141: 1 | BH141: 1 | BI141: 2 | BJ141: 3 | BK141: 3 | BL141: 1 | BM141: 1 | BN141: 1 | BO141: 1 | BP141: 1 | BQ141: 1 | BR141: 1 | BS141: 1 | BT141: 2546 | BU141: 3496 | BV141: 4 | BW141: 1 | BX141: 10 | BY141: 10 | BZ141: 12 | CA141: 7 | CB141: 2 | CC141: 8 | CD141: 9 | CE141: 3 | CF141: 13 | CG141: 1 | CH141: 11 | CI141: 0 | CJ141: 0 | CK141: 0 | CL141: 0 | CO141: 1 | CP141: 9
C142: 2ème | D142: A | E142: 54 | F142: 13 | G142: 10 | H142: 7 | I142: 1 | J142: 6 | K142: 12 | L142: 7 | M142: 10 | N142: 1 | O142: 8 | P142: 5 | Q142: 3 | R142: 9 | S142: 13 | T142: 6 | W142: 2 | X142: 3 | Y142: 4 | Z142: 10 | AA142: 0 | AB142: 1 | AC142: 1 | AD142: 1 | AE142: 0 | AF142: 0 | AG142: 0 | AH142: 0 | AI142: 0 | AJ142: 1 | AK142: 0 | AL142: 0 | AM142: 0 | AN142: 1 | AO142: 1 | AP142: 1 | AQ142: 0 | AR142: 0 | AS142: 0 | AT142: 0 | AU142: 2142 | AV142: 1883 | AW142: 1721 | AX142: 627 | AY142: 13 | AZ142: 4 | BA142: 6376 | BB142: 0 | BC142: 1 | BD142: 2 | BE142: 3 | BF142: 3 | BG142: 3 | BH142: 3 | BI142: 3 | BJ142: 3 | BK142: 4 | BL142: 0 | BM142: 1 | BN142: 2 | BO142: 3 | BP142: 3 | BQ142: 3 | BR142: 3 | BS142: 3 | BT142: 2145 | BU142: 4028 | BV142: 10 | BW142: 7 | BX142: 1 | BY142: 12 | BZ142: 7 | CA142: 10 | CB142: 1 | CC142: 8 | CD142: 5 | CE142: 3 | CF142: 9 | CG142: 13 | CH142: 6 | CI142: 0 | CJ142: 0 | CK142: 1 | CL142: 1 | CO142: 2 | CP142: 3 | CQ142: 4
C143: 3ème | D143: A | E143: 64 | F143: 14 | G143: 4 | H143: 3 | I143: 2 | J143: 11 | K143: 2 | L143: 6 | M143: 7 | N143: 5 | O143: 4 | P143: 10 | Q143: 3 | R143: 1 | S143: 11 | T143: 13 | W143: 1 | X143: 5 | Y143: 7 | Z143: 9 | AA143: 1 | AB143: 0 | AC143: 0 | AD143: 0 | AE143: 1 | AF143: 0 | AG143: 1 | AH143: 0 | AI143: 1 | AJ143: 0 | AK143: 0 | AL143: 0 | AM143: 1 | AN143: 0 | AO143: 0 | AP143: 0 | AQ143: 1 | AR143: 0 | AS143: 1 | AT143: 0 | AU143: 2545 | AV143: 1510 | AW143: 1182 | AX143: 802 | AY143: 14 | AZ143: 4 | BA143: 6042 | BB143: 1 | BC143: 1 | BD143: 1 | BE143: 1 | BF143: 2 | BG143: 2 | BH143: 3 | BI143: 3 | BJ143: 4 | BK143: 4 | BL143: 1 | BM143: 1 | BN143: 1 | BO143: 1 | BP143: 2 | BQ143: 2 | BR143: 3 | BS143: 3 | BT143: 2548 | BU143: 4058 | BV143: 4 | BW143: 3 | BX143: 2 | BY143: 2 | BZ143: 6 | CA143: 7 | CB143: 5 | CC143: 4 | CD143: 10 | CE143: 3 | CF143: 1 | CG143: 11 | CH143: 13 | CI143: 0 | CJ143: 0 | CK143: 0 | CL143: 0 | CO143: 1 | CP143: 5 | CQ143: 7
C144: 4ème | D144: A | E144: 64 | F144: 14 | G144: 6 | H144: 5 | I144: 11 | J144: 9 | K144: 5 | L144: 6 | M144: 11 | N144: 4 | O144: 9 | P144: 14 | Q144: 1 | R144: 3 | W144: 1 | X144: 2 | Y144: 3 | Z144: 5 | AA144: 1 | AB144: 1 | AC144: 1 | AD144: 0 | AE144: 1 | AF144: 0 | AG144: 0 | AH144: 0 | AI144: 0 | AJ144: 0 | AK144: 0 | AL144: 0 | AM144: 1 | AN144: 1 | AO144: 1 | AP144: 0 | AQ144: 0 | AR144: 0 | AS144: 0 | AT144: 0 | AU144: 2545 | AV144: 2142 | AW144: 1883 | AX144: 1510 | AY144: 14 | AZ144: 4 | BA144: 8083 | BB144: 1 | BC144: 2 | BD144: 3 | BE144: 3 | BF144: 4 | BG144: 4 | BH144: 4 | BI144: 4 | BJ144: 4 | BK144: 4 | BL144: 1 | BM144: 2 | BN144: 3 | BO144: 3 | BP144: 3 | BQ144: 3 | BR144: 3 | BS144: 3 | BT144: 2548 | BU144: 4690 | BV144: 6 | BW144: 5 | BX144: 11 | BY144: 5 | BZ144: 6 | CA144: 11 | CB144: 4 | CC144: 9 | CD144: 14 | CE144: 1 | CF144: 3 | CI144: 0 | CJ144: 0 | CK144: 0 | CL144: 0 | CO144: 1 | CP144: 2 | CQ144: 3
C145: 5ème | D145: A | E145: 75 | F145: 12 | G145: 1 | H145: 5 | I145: 3 | J145: 11 | K145: 2 | L145: 3 | M145: 6 | N145: 5 | O145: 11 | P145: 1 | Q145: 9 | R145: 12 | W145: 2 | X145: 4 | Y145: 5 | Z145: 6 | AA145: 0 | AB145: 1 | AC145: 0 | AD145: 1 | AE145: 1 | AF145: 1 | AG145: 0 | AH145: 0 | AI145: 0 | AJ145: 0 | AK145: 0 | AL145: 0 | AM145: 0 | AN145: 1 | AO145: 0 | AP145: 1 | AQ145: 0 | AR145: 1 | AS145: 0 | AT145: 0 | AU145: 2142 | AV145: 1721 | AW145: 1510 | AX145: 1294 | AY145: 12 | AZ145: 4 | BA145: 6670 | BB145: 0 | BC145: 1 | BD145: 1 | BE145: 2 | BF145: 3 | BG145: 4 | BH145: 4 | BI145: 4 | BJ145: 4 | BK145: 4 | BL145: 0 | BM145: 1 | BN145: 1 | BO145: 2 | BP145: 2 | BQ145: 3 | BR145: 3 | BS145: 3 | BT145: 2145 | BU145: 3866 | BV145: 1 | BW145: 5 | BX145: 3 | BY145: 2 | BZ145: 3 | CA145: 6 | CB145: 5 | CC145: 11 | CD145: 1 | CE145: 9 | CF145: 12 | CI145: 0 | CJ145: 0 | CK145: 1 | CL145: 1 | CO145: 2 | CP145: 4 | CQ145: 6
C146: 6ème | D146: A | E146: 71 | F146: 13 | G146: 11 | H146: 14 | I146: 7 | J146: 5 | K146: 12 | L146: 4 | M146: 7 | N146: 11 | O146: 3 | P146: 5 | Q146: 9 | R146: 14 | W146: 3 | X146: 4 | Y146: 6 | Z146: 8 | AA146: 0 | AB146: 0 | AC146: 1 | AD146: 1 | AE146: 0 | AF146: 1 | AG146: 0 | AH146: 1 | AI146: 0 | AJ146: 0 | AK146: 0 | AL146: 0 | AM146: 0 | AN146: 0 | AO146: 1 | AP146: 1 | AQ146: 0 | AR146: 0 | AS146: 0 | AT146: 1 | AU146: 1883 | AV146: 1721 | AW146: 1294 | AX146: 950 | AY146: 13 | AZ146: 4 | BA146: 5851 | BB146: 0 | BC146: 0 | BD146: 1 | BE146: 2 | BF146: 2 | BG146: 3 | BH146: 3 | BI146: 4 | BJ146: 4 | BK146: 4 | BL146: 0 | BM146: 0 | BN146: 1 | BO146: 2 | BP146: 2 | BQ146: 2 | BR146: 2 | BS146: 3 | BT146: 1886 | BU146: 3607 | BV146: 11 | BW146: 14 | BX146: 7 | BY146: 12 | BZ146: 4 | CA146: 7 | CB146: 11 | CC146: 3 | CD146: 5 | CE146: 9 | CF146: 14 | CI146: 0 | CJ146: 0 | CK146: 2 | CL146: 2 | CO146: 3 | CP146: 4 | CQ146: 8
C147: 7ème | D147: A | E147: 69 | F147: 16 | G147: 3 | H147: 15 | I147: 10 | J147: 2 | K147: 3 | L147: 15 | M147: 14 | N147: 6 | O147: 10 | P147: 9 | Q147: 2 | R147: 13 | W147: 1 | X147: 2 | Y147: 5 | Z147: 7 | AA147: 1 | AB147: 1 | AC147: 0 | AD147: 0 | AE147: 1 | AF147: 0 | AG147: 1 | AH147: 0 | AI147: 0 | AJ147: 0 | AK147: 0 | AL147: 0 | AM147: 1 | AN147: 1 | AO147: 0 | AP147: 0 | AQ147: 1 | AR147: 0 | AS147: 0 | AT147: 0 | AU147: 2545 | AV147: 2142 | AW147: 1510 | AX147: 1182 | AY147: 16 | AZ147: 4 | BA147: 7382 | BB147: 1 | BC147: 2 | BD147: 2 | BE147: 2 | BF147: 3 | BG147: 3 | BH147: 4 | BI147: 4 | BJ147: 4 | BK147: 4 | BL147: 1 | BM147: 2 | BN147: 2 | BO147: 2 | BP147: 3 | BQ147: 3 | BR147: 3 | BS147: 3 | BT147: 2548 | BU147: 4690 | BV147: 3 | BW147: 15 | BX147: 10 | BY147: 3 | BZ147: 15 | CA147: 14 | CB147: 6 | CC147: 10 | CD147: 9 | CE147: 2 | CF147: 13 | CI147: 0 | CJ147: 0 | CK147: 0 | CL147: 0 | CO147: 1 | CP147: 2 | CQ147: 5
B148: Nantes | C148: 1ère | D148: A | E148: 100 | F148: 12 | G148: 13 | H148: 3 | I148: 12 | J148: 2 | K148: 13 | L148: 12 | M148: 3 | N148: 10 | O148: 6 | P148: 2 | Q148: 8 | R148: 5 | W148: 1 | X148: 2 | Y148: 3 | Z148: 6 | AA148: 1 | AB148: 1 | AC148: 1 | AD148: 0 | AE148: 0 | AF148: 1 | AG148: 0 | AH148: 0 | AI148: 0 | AJ148: 0 | AK148: 0 | AL148: 0 | AM148: 1 | AN148: 1 | AO148: 1 | AP148: 0 | AQ148: 0 | AR148: 0 | AS148: 0 | AT148: 0 | AU148: 2545 | AV148: 2142 | AW148: 1883 | AX148: 1294 | AY148: 12 | AZ148: 4 | BA148: 7867 | BB148: 1 | BC148: 2 | BD148: 3 | BE148: 3 | BF148: 3 | BG148: 4 | BH148: 4 | BI148: 4 | BJ148: 4 | BK148: 4 | BL148: 1 | BM148: 2 | BN148: 3 | BO148: 3 | BP148: 3 | BQ148: 3 | BR148: 3 | BS148: 3 | BT148: 2548 | BU148: 4690 | BV148: 13 | BW148: 3 | BX148: 12 | BY148: 13 | BZ148: 12 | CA148: 3 | CB148: 10 | CC148: 6 | CD148: 2 | CE148: 8 | CF148: 5 | CI148: 0 | CJ148: 0 | CK148: 0 | CL148: 0 | CO148: 1 | CP148: 2 | CQ148: 3
C149: 2ème | D149: A | E149: 50 | F149: 14 | G149: 14 | H149: 2 | I149: 12 | J149: 7 | K149: 12 | L149: 2 | M149: 5 | N149: 14 | O149: 10 | P149: 8 | Q149: 3 | R149: 9 | S149: 7 | T149: 11 | W149: 1 | X149: 2 | Y149: 4 | Z149: 9 | AA149: 1 | AB149: 1 | AC149: 0 | AD149: 1 | AE149: 0 | AF149: 0 | AG149: 0 | AH149: 0 | AI149: 1 | AJ149: 0 | AK149: 0 | AL149: 0 | AM149: 1 | AN149: 1 | AO149: 0 | AP149: 1 | AQ149: 0 | AR149: 0 | AS149: 0 | AT149: 0 | AU149: 2545 | AV149: 2142 | AW149: 1721 | AX149: 802 | AY149: 14 | AZ149: 4 | BA149: 7213 | BB149: 1 | BC149: 2 | BD149: 2 | BE149: 3 | BF149: 3 | BG149: 3 | BH149: 3 | BI149: 3 | BJ149: 4 | BK149: 4 | BL149: 1 | BM149: 2 | BN149: 2 | BO149: 3 | BP149: 3 | BQ149: 3 | BR149: 3 | BS149: 3 | BT149: 2548 | BU149: 4690 | BV149: 14 | BW149: 2 | BX149: 12 | BY149: 12 | BZ149: 2 | CA149: 5 | CB149: 14 | CC149: 10 | CD149: 8 | CE149: 3 | CF149: 9 | CG149: 7 | CH149: 11 | CI149: 0 | CJ149: 0 | CK149: 0 | CL149: 0 | CO149: 1 | CP149: 2 | CQ149: 4
C150: 3ème | D150: A | E150: 82 | F150: 10 | G150: 4 | H150: 5 | I150: 6 | J150: 3 | K150: 11 | L150: 5 | M150: 4 | N150: 9 | O150: 8 | P150: 2 | Q150: 7 | R150: 1 | S150: 6 | T150: 3 | W150: 2 | X150: 3 | Y150: 9 | Z150: 10 | AA150: 0 | AB150: 1 | AC150: 1 | AD150: 0 | AE150: 0 | AF150: 0 | AG150: 0 | AH150: 0 | AI150: 1 | AJ150: 1 | AK150: 0 | AL150: 0 | AM150: 0 | AN150: 1 | AO150: 1 | AP150: 0 | AQ150: 0 | AR150: 0 | AS150: 0 | AT150: 0 | AU150: 2142 | AV150: 1883 | AW150: 802 | AX150: 627 | AY150: 10 | AZ150: 4 | BA150: 5456 | BB150: 0 | BC150: 1 | BD150: 2 | BE150: 2 | BF150: 2 | BG150: 2 | BH150: 2 | BI150: 2 | BJ150: 3 | BK150: 4 | BL150: 0 | BM150: 1 | BN150: 2 | BO150: 2 | BP150: 2 | BQ150: 2 | BR150: 2 | BS150: 2 | BT150: 2144 | BU150: 4027 | BV150: 4 | BW150: 5 | BX150: 6 | BY150: 11 | BZ150: 5 | CA150: 4 | CB150: 9 | CC150: 8 | CD150: 2 | CE150: 7 | CF150: 1 | CG150: 6 | CH150: 3 | CI150: 0 | CJ150: 0 | CK150: 1 | CL150: 1 | CO150: 2 | CP150: 3 | CQ150: 9
C151: 4ème | D151: A | E151: 69 | F151: 16 | G151: 12 | H151: 11 | I151: 15 | J151: 16 | K151: 12 | L151: 4 | M151: 13 | N151: 10 | O151: 11 | P151: 1 | Q151: 7 | R151: 3 | S151: 14 | T151: 16 | W151: 1 | X151: 5 | Y151: 10 | AA151: 1 | AB151: 0 | AC151: 0 | AD151: 0 | AE151: 1 | AF151: 0 | AG151: 0 | AH151: 0 | AI151: 0 | AJ151: 1 | AK151: 0 | AL151: 0 | AM151: 1 | AN151: 0 | AO151: 0 | AP151: 0 | AQ151: 1 | AR151: 0 | AS151: 0 | AT151: 0 | AU151: 2545 | AV151: 1510 | AW151: 627 | AY151: 16 | AZ151: 3 | BA151: 4684 | BB151: 1 | BC151: 1 | BD151: 1 | BE151: 1 | BF151: 2 | BG151: 2 | BH151: 2 | BI151: 2 | BJ151: 2 | BK151: 3 | BL151: 1 | BM151: 1 | BN151: 1 | BO151: 1 | BP151: 2 | BQ151: 2 | BR151: 2 | BS151: 2 | BT151: 2547 | BU151: 4057 | BV151: 12 | BW151: 11 | BX151: 15 | BY151: 12 | BZ151: 4 | CA151: 13 | CB151: 10 | CC151: 11 | CD151: 1 | CE151: 7 | CF151: 3 | CG151: 14 | CH151: 16 | CI151: 0 | CJ151: 0 | CK151: 0 | CL151: 0 | CO151: 1 | CP151: 5
C152: 5ème | D152: A | E152: 75 | F152: 16 | G152: 13 | H152: 15 | I152: 6 | J152: 2 | K152: 13 | L152: 12 | M152: 15 | N152: 9 | O152: 5 | P152: 6 | Q152: 1 | R152: 8 | S152: 11 | T152: 7 | W152: 1 | X152: 3 | Y152: 6 | AA152: 1 | AB152: 0 | AC152: 1 | AD152: 0 | AE152: 0 | AF152: 1 | AG152: 0 | AH152: 0 | AI152: 0 | AJ152: 0 | AK152: 0 | AL152: 0 | AM152: 1 | AN152: 0 | AO152: 1 | AP152: 0 | AQ152: 0 | AR152: 1 | AS152: 0 | AT152: 0 | AU152: 2545 | AV152: 1883 | AW152: 1294 | AY152: 16 | AZ152: 3 | BA152: 5725 | BB152: 1 | BC152: 1 | BD152: 2 | BE152: 2 | BF152: 2 | BG152: 3 | BH152: 3 | BI152: 3 | BJ152: 3 | BK152: 3 | BL152: 1 | BM152: 1 | BN152: 2 | BO152: 2 | BP152: 2 | BQ152: 3 | BR152: 3 | BS152: 3 | BT152: 2548 | BU152: 4431 | BV152: 13 | BW152: 15 | BX152: 6 | BY152: 13 | BZ152: 12 | CA152: 15 | CB152: 9 | CC152: 5 | CD152: 6 | CE152: 1 | CF152: 8 | CG152: 11 | CH152: 7 | CI152: 0 | CJ152: 0 | CK152: 0 | CL152: 0 | CO152: 1 | CP152: 3 | CQ152: 6
C153: 7ème | D153: A | E153: 44 | F153: 16 | G153: 16 | H153: 14 | I153: 2 | J153: 9 | K153: 16 | L153: 14 | M153: 9 | N153: 2 | O153: 13 | P153: 11 | Q153: 5 | R153: 8 | W153: 1 | X153: 2 | Y153: 3 | Z153: 4 | AA153: 1 | AB153: 1 | AC153: 1 | AD153: 1 | AE153: 0 | AF153: 0 | AG153: 0 | AH153: 0 | AI153: 0 | AJ153: 0 | AK153: 0 | AL153: 0 | AM153: 1 | AN153: 1 | AO153: 0 | AP153: 1 | AQ153: 0 | AR153: 0 | AS153: 0 | AT153: 0 | AU153: 2545 | AV153: 2142 | AW153: 1883 | AX153: 1721 | AY153: 16 | AZ153: 4 | BA153: 8294 | BB153: 1 | BC153: 2 | BD153: 3 | BE153: 4 | BF153: 4 | BG153: 4 | BH153: 4 | BI153: 4 | BJ153: 4 | BK153: 4 | BL153: 1 | BM153: 2 | BN153: 2 | BO153: 3 | BP153: 3 | BQ153: 3 | BR153: 3 | BS153: 3 | BT153: 2548 | BU153: 4690 | BV153: 16 | BW153: 14 | BX153: 2 | BY153: 16 | BZ153: 14 | CA153: 9 | CB153: 2 | CC153: 13 | CD153: 11 | CE153: 5 | CF153: 8 | CI153: 0 | CJ153: 0 | CK153: 0 | CL153: 0 | CO153: 1 | CP153: 2 | CQ153: 4
C154: 8ème | D154: A | E154: 50 | F154: 16 | G154: 4 | H154: 15 | I154: 2 | J154: 13 | K154: 15 | L154: 1 | M154: 4 | N154: 11 | O154: 2 | P154: 14 | Q154: 8 | R154: 5 | S154: 13 | T154: 12 | W154: 1 | X154: 3 | Y154: 5 | Z154: 9 | AA154: 1 | AB154: 0 | AC154: 1 | AD154: 0 | AE154: 1 | AF154: 0 | AG154: 0 | AH154: 0 | AI154: 1 | AJ154: 0 | AK154: 0 | AL154: 0 | AM154: 1 | AN154: 0 | AO154: 1 | AP154: 0 | AQ154: 1 | AR154: 0 | AS154: 0 | AT154: 0 | AU154: 2545 | AV154: 1883 | AW154: 1510 | AX154: 802 | AY154: 16 | AZ154: 4 | BA154: 6743 | BB154: 1 | BC154: 1 | BD154: 2 | BE154: 2 | BF154: 3 | BG154: 3 | BH154: 3 | BI154: 3 | BJ154: 4 | BK154: 4 | BL154: 1 | BM154: 1 | BN154: 2 | BO154: 2 | BP154: 3 | BQ154: 3 | BR154: 3 | BS154: 3 | BT154: 2548 | BU154: 4431 | BV154: 4 | BW154: 15 | BX154: 2 | BY154: 15 | BZ154: 1 | CA154: 4 | CB154: 11 | CC154: 2 | CD154: 14 | CE154: 8 | CF154: 5 | CG154: 13 | CH154: 12 | CI154: 0 | CJ154: 0 | CK154: 0 | CL154: 0 | CO154: 1 | CP154: 3 | CQ154: 5
B155: St Galmier | C155: 1ère | D155: A | E155: 71 | F155: 17 | G155: 11 | H155: 4 | I155: 8 | J155: 9 | K155: 15 | L155: 16 | M155: 4 | N155: 11 | O155: 14 | P155: 12 | Q155: 8 | R155: 17 | S155: 6 | T155: 13 | W155: 3 | X155: 4 | Y155: 7 | AA155: 0 | AB155: 0 | AC155: 1 | AD155: 1 | AE155: 0 | AF155: 0 | AG155: 1 | AH155: 0 | AI155: 0 | AJ155: 0 | AK155: 0 | AL155: 0 | AM155: 0 | AN155: 0 | AO155: 1 | AP155: 1 | AQ155: 0 | AR155: 0 | AS155: 1 | AT155: 0 | AU155: 1883 | AV155: 1721 | AW155: 1182 | AY155: 17 | AZ155: 3 | BA155: 4789 | BB155: 0 | BC155: 0 | BD155: 1 | BE155: 2 | BF155: 2 | BG155: 2 | BH155: 3 | BI155: 3 | BJ155: 3 | BK155: 3 | BL155: 0 | BM155: 0 | BN155: 1 | BO155: 2 | BP155: 2 | BQ155: 2 | BR155: 3 | BS155: 3 | BT155: 1886 | BU155: 3607 | BV155: 11 | BW155: 4 | BX155: 8 | BY155: 15 | BZ155: 16 | CA155: 4 | CB155: 11 | CC155: 14 | CD155: 12 | CE155: 8 | CF155: 17 | CG155: 6 | CH155: 13 | CI155: 0 | CJ155: 0 | CK155: 2 | CL155: 2 | CO155: 3 | CP155: 4 | CQ155: 7
C156: 2ème | D156: A | E156: 56 | F156: 17 | G156: 12 | H156: 9 | I156: 5 | J156: 3 | K156: 16 | L156: 12 | M156: 17 | N156: 9 | O156: 13 | P156: 8 | Q156: 6 | R156: 5 | S156: 18 | T156: 10 | W156: 2 | X156: 4 | Y156: 8 | AA156: 0 | AB156: 1 | AC156: 0 | AD156: 1 | AE156: 0 | AF156: 0 | AG156: 0 | AH156: 1 | AI156: 0 | AJ156: 0 | AK156: 0 | AL156: 0 | AM156: 0 | AN156: 1 | AO156: 0 | AP156: 1 | AQ156: 0 | AR156: 0 | AS156: 0 | AT156: 1 | AU156: 2142 | AV156: 1721 | AW156: 950 | AY156: 17 | AZ156: 3 | BA156: 4816 | BB156: 0 | BC156: 1 | BD156: 1 | BE156: 2 | BF156: 2 | BG156: 2 | BH156: 2 | BI156: 3 | BJ156: 3 | BK156: 3 | BL156: 0 | BM156: 1 | BN156: 1 | BO156: 2 | BP156: 2 | BQ156: 2 | BR156: 2 | BS156: 3 | BT156: 2145 | BU156: 3866 | BV156: 12 | BW156: 9 | BX156: 5 | BY156: 16 | BZ156: 12 | CA156: 17 | CB156: 9 | CC156: 13 | CD156: 8 | CE156: 6 | CF156: 5 | CG156: 18 | CH156: 10 | CI156: 0 | CJ156: 0 | CK156: 1 | CL156: 1 | CO156: 2 | CP156: 4 | CQ156: 8
C157: 3ème | D157: A | E157: 60 | F157: 10 | G157: 3 | H157: 4 | I157: 2 | J157: 5 | K157: 2 | L157: 6 | M157: 7 | N157: 5 | O157: 3 | P157: 4 | Q157: 8 | R157: 1 | W157: 1 | X157: 4 | Y157: 5 | Z157: 6 | AA157: 1 | AB157: 0 | AC157: 0 | AD157: 1 | AE157: 1 | AF157: 1 | AG157: 0 | AH157: 0 | AI157: 0 | AJ157: 0 | AK157: 0 | AL157: 0 | AM157: 1 | AN157: 0 | AO157: 0 | AP157: 0 | AQ157: 1 | AR157: 1 | AS157: 0 | AT157: 0 | AU157: 2545 | AV157: 1721 | AW157: 1510 | AX157: 1294 | AY157: 10 | AZ157: 4 | BA157: 7073 | BB157: 1 | BC157: 1 | BD157: 1 | BE157: 2 | BF157: 3 | BG157: 4 | BH157: 4 | BI157: 4 | BJ157: 4 | BK157: 4 | BL157: 1 | BM157: 1 | BN157: 1 | BO157: 1 | BP157: 2 | BQ157: 3 | BR157: 3 | BS157: 3 | BT157: 2548 | BU157: 4269 | BV157: 3 | BW157: 4 | BX157: 2 | BY157: 2 | BZ157: 6 | CA157: 7 | CB157: 5 | CC157: 3 | CD157: 4 | CE157: 8 | CF157: 1 | CI157: 0 | CJ157: 0 | CK157: 0 | CL157: 0 | CO157: 1 | CP157: 5 | CQ157: 6
C158: 4ème | D158: A | E158: 29 | F158: 17 | G158: 17 | H158: 14 | I158: 11 | J158: 9 | K158: 17 | L158: 10 | M158: 14 | N158: 11 | O158: 16 | P158: 13 | Q158: 8 | R158: 7 | S158: 6 | T158: 12 | W158: 1 | X158: 3 | Y158: 4 | AA158: 1 | AB158: 0 | AC158: 1 | AD158: 1 | AE158: 0 | AF158: 0 | AG158: 0 | AH158: 0 | AI158: 0 | AJ158: 0 | AK158: 0 | AL158: 0 | AM158: 1 | AN158: 0 | AO158: 1 | AP158: 1 | AQ158: 0 | AR158: 0 | AS158: 0 | AT158: 0 | AU158: 2545 | AV158: 1883 | AW158: 1721 | AY158: 17 | AZ158: 3 | BA158: 6152 | BB158: 1 | BC158: 1 | BD158: 2 | BE158: 3 | BF158: 3 | BG158: 3 | BH158: 3 | BI158: 3 | BJ158: 3 | BK158: 3 | BL158: 1 | BM158: 1 | BN158: 2 | BO158: 3 | BP158: 3 | BQ158: 3 | BR158: 3 | BS158: 3 | BT158: 2548 | BU158: 4431 | BV158: 17 | BW158: 14 | BX158: 11 | BY158: 17 | BZ158: 10 | CA158: 14 | CB158: 11 | CC158: 16 | CD158: 13 | CE158: 8 | CF158: 7 | CG158: 6 | CH158: 12 | CI158: 0 | CJ158: 0 | CK158: 0 | CL158: 0 | CO158: 1 | CP158: 3 | CQ158: 4
C159: 6ème | D159: A | E159: 27 | F159: 10 | G159: 1 | H159: 2 | I159: 11 | J159: 5 | K159: 1 | L159: 7 | M159: 5 | N159: 3 | O159: 6 | P159: 4 | Q159: 2 | R159: 8 | S159: 11 | T159: 9 | W159: 1 | X159: 3 | Y159: 7 | Z159: 9 | AA159: 1 | AB159: 0 | AC159: 1 | AD159: 0 | AE159: 0 | AF159: 0 | AG159: 1 | AH159: 0 | AI159: 1 | AJ159: 0 | AK159: 0 | AL159: 0 | AM159: 1 | AN159: 0 | AO159: 0 | AP159: 0 | AQ159: 0 | AR159: 0 | AS159: 1 | AT159: 0 | AU159: 2545 | AV159: 1883 | AW159: 1182 | AX159: 802 | AY159: 10 | AZ159: 4 | BA159: 6414 | BB159: 1 | BC159: 1 | BD159: 2 | BE159: 2 | BF159: 2 | BG159: 2 | BH159: 3 | BI159: 3 | BJ159: 4 | BK159: 4 | BL159: 1 | BM159: 1 | BN159: 1 | BO159: 1 | BP159: 1 | BQ159: 1 | BR159: 2 | BS159: 2 | BT159: 2547 | BU159: 4430 | BV159: 1 | BW159: 2 | BX159: 11 | BY159: 1 | BZ159: 7 | CA159: 5 | CB159: 3 | CC159: 6 | CD159: 4 | CE159: 2 | CF159: 8 | CG159: 11 | CH159: 9 | CI159: 0 | CJ159: 0 | CK159: 0 | CL159: 0 | CO159: 1 | CP159: 7 | CQ159: 9
C160: 7ème | D160: A | E160: 45 | F160: 11 | G160: 7 | H160: 11 | I160: 10 | J160: 9 | K160: 11 | L160: 10 | M160: 9 | N160: 7 | O160: 4 | P160: 5 | Q160: 8 | R160: 3 | W160: 1 | X160: 2 | Y160: 3 | Z160: 4 | AA160: 1 | AB160: 1 | AC160: 1 | AD160: 1 | AE160: 0 | AF160: 0 | AG160: 0 | AH160: 0 | AI160: 0 | AJ160: 0 | AK160: 0 | AL160: 0 | AM160: 1 | AN160: 1 | AO160: 0 | AP160: 1 | AQ160: 0 | AR160: 0 | AS160: 0 | AT160: 0 | AU160: 2545 | AV160: 2142 | AW160: 1883 | AX160: 1721 | AY160: 11 | AZ160: 4 | BA160: 8294 | BB160: 1 | BC160: 2 | BD160: 3 | BE160: 4 | BF160: 4 | BG160: 4 | BH160: 4 | BI160: 4 | BJ160: 4 | BK160: 4 | BL160: 1 | BM160: 2 | BN160: 2 | BO160: 3 | BP160: 3 | BQ160: 3 | BR160: 3 | BS160: 3 | BT160: 2548 | BU160: 4690 | BV160: 7 | BW160: 11 | BX160: 10 | BY160: 11 | BZ160: 10 | CA160: 9 | CB160: 7 | CC160: 4 | CD160: 5 | CE160: 8 | CF160: 3 | CI160: 0 | CJ160: 0 | CK160: 0 | CL160: 0 | CO160: 1 | CP160: 2 | CQ160: 4
C161: 8ème | D161: A | E161: 100 | F161: 13 | G161: 7 | H161: 1 | I161: 4 | J161: 6 | K161: 4 | L161: 1 | M161: 2 | N161: 10 | O161: 5 | P161: 8 | Q161: 6 | R161: 12 | S161: 3 | T161: 7 | W161: 1 | X161: 2 | Y161: 7 | Z161: 10 | AA161: 1 | AB161: 1 | AC161: 0 | AD161: 0 | AE161: 0 | AF161: 0 | AG161: 1 | AH161: 0 | AI161: 0 | AJ161: 1 | AK161: 0 | AL161: 0 | AM161: 1 | AN161: 1 | AO161: 0 | AP161: 0 | AQ161: 0 | AR161: 0 | AS161: 0 | AT161: 0 | AU161: 2545 | AV161: 2142 | AW161: 1182 | AX161: 627 | AY161: 13 | AZ161: 4 | BA161: 6498 | BB161: 1 | BC161: 2 | BD161: 2 | BE161: 2 | BF161: 2 | BG161: 2 | BH161: 3 | BI161: 3 | BJ161: 3 | BK161: 4 | BL161: 1 | BM161: 2 | BN161: 2 | BO161: 2 | BP161: 2 | BQ161: 2 | BR161: 2 | BS161: 2 | BT161: 2547 | BU161: 4689 | BV161: 7 | BW161: 1 | BX161: 4 | BY161: 4 | BZ161: 1 | CA161: 2 | CB161: 10 | CC161: 5 | CD161: 8 | CE161: 6 | CF161: 12 | CG161: 3 | CH161: 7 | CI161: 0 | CJ161: 0 | CK161: 0 | CL161: 0 | CO161: 1 | CP161: 2 | CQ161: 10
A162: 2022-02-27 | B162: Vincennes | C162: 1ère | D162: A | E162: 36 | F162: 14 | G162: 13 | H162: 9 | I162: 14 | J162: 4 | K162: 13 | L162: 10 | M162: 14 | N162: 11 | O162: 3 | P162: 7 | Q162: 9 | R162: 8 | S162: 12 | T162: 4 | W162: 1 | X162: 3 | Y162: 7 | Z162: 10 | AA162: 1 | AB162: 0 | AC162: 1 | AD162: 0 | AE162: 0 | AF162: 0 | AG162: 1 | AH162: 0 | AI162: 0 | AJ162: 1 | AK162: 0 | AL162: 0 | AM162: 1 | AN162: 0 | AO162: 1 | AP162: 0 | AQ162: 0 | AR162: 0 | AS162: 1 | AT162: 0 | AU162: 2545 | AV162: 1883 | AW162: 1182 | AX162: 627 | AY162: 14 | AZ162: 4 | BA162: 6240 | BB162: 1 | BC162: 1 | BD162: 2 | BE162: 2 | BF162: 2 | BG162: 2 | BH162: 3 | BI162: 3 | BJ162: 3 | BK162: 4 | BL162: 1 | BM162: 1 | BN162: 2 | BO162: 2 | BP162: 2 | BQ162: 2 | BR162: 3 | BS162: 3 | BT162: 2548 | BU162: 4431 | BV162: 13 | BW162: 9 | BX162: 14 | BY162: 13 | BZ162: 10 | CA162: 14 | CB162: 11 | CC162: 3 | CD162: 7 | CE162: 9 | CF162: 8 | CG162: 12 | CH162: 4 | CI162: 0 | CJ162: 0 | CK162: 0 | CL162: 0 | CO162: 1 | CP162: 3 | CQ162: 7
C163: 2ème | D163: A | E163: 58 | F163: 12 | G163: 11 | H163: 7 | I163: 1 | J163: 12 | K163: 1 | L163: 12 | M163: 4 | N163: 8 | O163: 10 | P163: 3 | Q163: 7 | R163: 6 | S163: 9 | T163: 11 | W163: 1 | X163: 2 | Y163: 7 | Z163: 10 | AA163: 1 | AB163: 1 | AC163: 0 | AD163: 0 | AE163: 0 | AF163: 0 | AG163: 1 | AH163: 0 | AI163: 0 | AJ163: 1 | AK163: 0 | AL163: 0 | AM163: 1 | AN163: 0 | AO163: 0 | AP163: 0 | AQ163: 0 | AR163: 0 | AS163: 1 | AT163: 0 | AU163: 2545 | AV163: 2142 | AW163: 1182 | AX163: 627 | AY163: 12 | AZ163: 4 | BA163: 6498 | BB163: 1 | BC163: 2 | BD163: 2 | BE163: 2 | BF163: 2 | BG163: 2 | BH163: 3 | BI163: 3 | BJ163: 3 | BK163: 4 | BL163: 1 | BM163: 1 | BN163: 1 | BO163: 1 | BP163: 1 | BQ163: 1 | BR163: 2 | BS163: 2 | BT163: 2547 | BU163: 4689 | BV163: 11 | BW163: 7 | BX163: 1 | BY163: 1 | BZ163: 12 | CA163: 4 | CB163: 8 | CC163: 10 | CD163: 3 | CE163: 7 | CF163: 6 | CG163: 9 | CH163: 11 | CI163: 0 | CJ163: 0 | CK163: 0 | CL163: 0 | CO163: 1 | CP163: 7 | CQ163: 10
C164: 3ème | D164: A | E164: 54 | F164: 13 | G164: 9 | H164: 5 | I164: 7 | J164: 8 | K164: 3 | L164: 11 | M164: 13 | N164: 7 | O164: 12 | P164: 9 | Q164: 5 | R164: 2 | S164: 10 | T164: 4 | W164: 4 | X164: 6 | Y164: 7 | AA164: 0 | AB164: 0 | AC164: 0 | AD164: 1 | AE164: 0 | AF164: 1 | AG164: 1 | AH164: 0 | AI164: 0 | AJ164: 0 | AK164: 0 | AL164: 0 | AM164: 0 | AN164: 0 | AO164: 0 | AP164: 1 | AQ164: 0 | AR164: 1 | AS164: 1 | AT164: 0 | AU164: 1721 | AV164: 1294 | AW164: 1182 | AY164: 13 | AZ164: 3 | BA164: 4200 | BB164: 0 | BC164: 0 | BD164: 0 | BE164: 1 | BF164: 1 | BG164: 2 | BH164: 3 | BI164: 3 | BJ164: 3 | BK164: 3 | BL164: 0 | BM164: 0 | BN164: 0 | BO164: 1 | BP164: 1 | BQ164: 2 | BR164: 3 | BS164: 3 | BT164: 1724 | BU164: 3018 | BV164: 9 | BW164: 5 | BX164: 7 | BY164: 3 | BZ164: 11 | CA164: 13 | CB164: 7 | CC164: 12 | CD164: 9 | CE164: 5 | CF164: 2 | CG164: 10 | CH164: 4 | CI164: 0 | CJ164: 0 | CK164: 3 | CL164: 3 | CO164: 4 | CP164: 6 | CQ164: 7
C165: 4ème | D165: A | E165: 21 | F165: 14 | G165: 9 | H165: 12 | I165: 7 | J165: 1 | K165: 1 | L165: 7 | M165: 12 | N165: 9 | O165: 13 | P165: 14 | Q165: 6 | R165: 10 | W165: 1 | X165: 2 | Y165: 3 | Z165: 4 | AA165: 1 | AB165: 1 | AC165: 1 | AD165: 1 | AE165: 0 | AF165: 0 | AG165: 0 | AH165: 0 | AI165: 0 | AJ165: 0 | AK165: 0 | AL165: 0 | AM165: 0 | AN165: 1 | AO165: 1 | AP165: 1 | AQ165: 0 | AR165: 0 | AS165: 0 | AT165: 0 | AU165: 2545 | AV165: 2142 | AW165: 1883 | AX165: 1721 | AY165: 14 | AZ165: 4 | BA165: 8294 | BB165: 1 | BC165: 2 | BD165: 3 | BE165: 4 | BF165: 4 | BG165: 4 | BH165: 4 | BI165: 4 | BJ165: 4 | BK165: 4 | BL165: 0 | BM165: 1 | BN165: 2 | BO165: 3 | BP165: 3 | BQ165: 3 | BR165: 3 | BS165: 3 | BT165: 2548 | BU165: 4690 | BV165: 9 | BW165: 12 | BX165: 7 | BY165: 1 | BZ165: 7 | CA165: 12 | CB165: 9 | CC165: 13 | CD165: 14 | CE165: 6 | CF165: 10 | CI165: 0 | CJ165: 0 | CK165: 1 | CL165: 0 | CO165: 2 | CP165: 3 | CQ165: 4
C166: 5ème | D166: A | E166: 31 | F166: 16 | G166: 9 | H166: 16 | I166: 10 | J166: 7 | K166: 14 | L166: 12 | M166: 7 | N166: 16 | O166: 10 | P166: 1 | Q166: 8 | R166: 5 | S166: 3 | T166: 9 | W166: 3 | X166: 4 | Y166: 5 | Z166: 10 | AA166: 0 | AB166: 0 | AC166: 1 | AD166: 1 | AE166: 1 | AF166: 0 | AG166: 0 | AH166: 0 | AI166: 0 | AJ166: 1 | AK166: 0 | AL166: 0 | AM166: 0 | AN166: 0 | AO166: 0 | AP166: 1 | AQ166: 1 | AR166: 0 | AS166: 0 | AT166: 0 | AU166: 1883 | AV166: 1721 | AW166: 1510 | AX166: 627 | AY166: 16 | AZ166: 4 | BA166: 5743 | BB166: 0 | BC166: 0 | BD166: 1 | BE166: 2 | BF166: 3 | BG166: 3 | BH166: 3 | BI166: 3 | BJ166: 3 | BK166: 4 | BL166: 0 | BM166: 0 | BN166: 0 | BO166: 1 | BP166: 2 | BQ166: 2 | BR166: 2 | BS166: 2 | BT166: 1885 | BU166: 3606 | BV166: 9 | BW166: 16 | BX166: 10 | BY166: 14 | BZ166: 12 | CA166: 7 | CB166: 16 | CC166: 10 | CD166: 1 | CE166: 8 | CF166: 5 | CG166: 3 | CH166: 9 | CI166: 0 | CJ166: 0 | CK166: 3 | CL166: 2 | CO166: 4 | CP166: 5 | CQ166: 10
C167: 7ème | D167: A | E167: 27 | F167: 15 | G167: 5 | H167: 9 | I167: 10 | J167: 15 | K167: 15 | L167: 9 | M167: 10 | N167: 7 | O167: 6 | P167: 5 | Q167: 2 | R167: 12 | W167: 1 | X167: 2 | Y167: 3 | Z167: 6 | AA167: 1 | AB167: 1 | AC167: 1 | AD167: 0 | AE167: 0 | AF167: 1 | AG167: 0 | AH167: 0 | AI167: 0 | AJ167: 0 | AK167: 0 | AL167: 0 | AM167: 0 | AN167: 1 | AO167: 1 | AP167: 0 | AQ167: 0 | AR167: 1 | AS167: 0 | AT167: 0 | AU167: 2545 | AV167: 2142 | AW167: 1883 | AX167: 1294 | AY167: 15 | AZ167: 4 | BA167: 7867 | BB167: 1 | BC167: 2 | BD167: 3 | BE167: 3 | BF167: 3 | BG167: 4 | BH167: 4 | BI167: 4 | BJ167: 4 | BK167: 4 | BL167: 0 | BM167: 1 | BN167: 2 | BO167: 2 | BP167: 2 | BQ167: 3 | BR167: 3 | BS167: 3 | BT167: 2548 | BU167: 4690 | BV167: 5 | BW167: 9 | BX167: 10 | BY167: 15 | BZ167: 9 | CA167: 10 | CB167: 7 | CC167: 6 | CD167: 5 | CE167: 2 | CF167: 12 | CI167: 0 | CJ167: 0 | CK167: 1 | CL167: 0 | CO167: 2 | CP167: 3 | CQ167: 6
C168: 8ème | D168: A | E168: 47 | F168: 13 | G168: 6 | H168: 2 | I168: 13 | J168: 10 | K168: 6 | L168: 4 | M168: 3 | N168: 11 | O168: 10 | P168: 9 | Q168: 14 | R168: 12 | S168: 2 | T168: 8 | W168: 1 | X168: 5 | Y168: 9 | AA168: 1 | AB168: 0 | AC168: 0 | AD168: 0 | AE168: 1 | AF168: 0 | AG168: 0 | AH168: 0 | AI168: 1 | AJ168: 0 | AK168: 0 | AL168: 0 | AM168: 1 | AN168: 0 | AO168: 0 | AP168: 0 | AQ168: 0 | AR168: 0 | AS168: 0 | AT168: 0 | AU168: 2545 | AV168: 1510 | AW168: 802 | AY168: 13 | AZ168: 3 | BA168: 4858 | BB168: 1 | BC168: 1 | BD168: 1 | BE168: 1 | BF168: 2 | BG168: 2 | BH168: 2 | BI168: 2 | BJ168: 3 | BK168: 3 | BL168: 1 | BM168: 1 | BN168: 1 | BO168: 1 | BP168: 1 | BQ168: 1 | BR168: 1 | BS168: 1 | BT168: 2546 | BU168: 4056 | BV168: 6 | BW168: 2 | BX168: 13 | BY168: 6 | BZ168: 4 | CA168: 3 | CB168: 11 | CC168: 10 | CD168: 9 | CE168: 14 | CF168: 12 | CG168: 2 | CH168: 8 | CI168: 0 | CJ168: 0 | CK168: 0 | CL168: 0 | CO168: 1 | CP168: 9
C169: 9ème | D169: A | E169: 50 | F169: 16 | G169: 13 | H169: 14 | I169: 8 | J169: 4 | K169: 13 | L169: 1 | M169: 2 | N169: 16 | O169: 8 | P169: 15 | Q169: 6 | R169: 12 | S169: 9 | T169: 11 | W169: 1 | X169: 5 | AA169: 1 | AB169: 0 | AC169: 0 | AD169: 0 | AE169: 1 | AF169: 0 | AG169: 0 | AH169: 0 | AI169: 0 | AJ169: 0 | AK169: 0 | AL169: 0 | AM169: 1 | AN169: 0 | AO169: 0 | AP169: 0 | AQ169: 1 | AR169: 0 | AS169: 0 | AT169: 0 | AU169: 2545 | AV169: 1510 | AY169: 16 | AZ169: 2 | BA169: 4057 | BB169: 1 | BC169: 1 | BD169: 1 | BE169: 1 | BF169: 2 | BG169: 2 | BH169: 2 | BI169: 2 | BJ169: 2 | BK169: 2 | BL169: 1 | BM169: 1 | BN169: 1 | BO169: 1 | BP169: 2 | BQ169: 2 | BR169: 2 | BS169: 2 | BT169: 2547 | BU169: 4057 | BV169: 13 | BW169: 14 | BX169: 8 | BY169: 13 | BZ169: 1 | CA169: 2 | CB169: 16 | CC169: 8 | CD169: 15 | CE169: 6 | CF169: 12 | CG169: 9 | CH169: 11 | CI169: 0 | CJ169: 0 | CK169: 0 | CL169: 0 | CO169: 1 | CP169: 5
B170: Le Croisé | C170: 1ère | D170: A | E170: 73 | F170: 15 | G170: 5 | H170: 9 | I170: 10 | J170: 2 | K170: 4 | L170: 5 | M170: 3 | N170: 15 | O170: 8 | P170: 6 | Q170: 2 | R170: 9 | S170: 10 | T170: 11 | W170: 2 | X170: 7 | Y170: 8 | Z170: 9 | AA170: 0 | AB170: 1 | AC170: 0 | AD170: 0 | AE170: 0 | AF170: 0 | AG170: 1 | AH170: 1 | AI170: 1 | AJ170: 0 | AK170: 0 | AL170: 0 | AM170: 0 | AN170: 1 | AO170: 0 | AP170: 0 | AQ170: 0 | AR170: 0 | AS170: 0 | AT170: 1 | AU170: 2142 | AV170: 1182 | AW170: 950 | AX170: 802 | AY170: 15 | AZ170: 4 | BA170: 5078 | BB170: 0 | BC170: 1 | BD170: 1 | BE170: 1 | BF170: 1 | BG170: 1 | BH170: 2 | BI170: 3 | BJ170: 4 | BK170: 4 | BL170: 0 | BM170: 1 | BN170: 1 | BO170: 1 | BP170: 1 | BQ170: 1 | BR170: 1 | BS170: 2 | BT170: 2144 | BU170: 3326 | BV170: 5 | BW170: 9 | BX170: 10 | BY170: 4 | BZ170: 5 | CA170: 3 | CB170: 15 | CC170: 8 | CD170: 6 | CE170: 2 | CF170: 9 | CG170: 10 | CH170: 11 | CI170: 0 | CJ170: 0 | CK170: 1 | CL170: 1 | CO170: 2 | CP170: 8 | CQ170: 9
C171: 2ème | D171: A | E171: 40 | F171: 14 | G171: 8 | H171: 1 | I171: 2 | J171: 7 | K171: 8 | L171: 1 | M171: 3 | N171: 2 | O171: 11 | P171: 4 | Q171: 9 | R171: 13 | S171: 7 | T171: 5 | W171: 1 | X171: 2 | Y171: 4 | Z171: 9 | AA171: 1 | AB171: 1 | AC171: 0 | AD171: 1 | AE171: 0 | AF171: 0 | AG171: 0 | AH171: 0 | AI171: 1 | AJ171: 0 | AK171: 0 | AL171: 0 | AM171: 1 | AN171: 1 | AO171: 0 | AP171: 1 | AQ171: 0 | AR171: 0 | AS171: 0 | AT171: 0 | AU171: 2545 | AV171: 2142 | AW171: 1721 | AX171: 802 | AY171: 14 | AZ171: 4 | BA171: 7213 | BB171: 1 | BC171: 2 | BD171: 2 | BE171: 3 | BF171: 3 | BG171: 3 | BH171: 3 | BI171: 3 | BJ171: 4 | BK171: 4 | BL171: 1 | BM171: 2 | BN171: 2 | BO171: 3 | BP171: 3 | BQ171: 3 | BR171: 3 | BS171: 3 | BT171: 2548 | BU171: 4690 | BV171: 8 | BW171: 1 | BX171: 2 | BY171: 8 | BZ171: 1 | CA171: 3 | CB171: 2 | CC171: 11 | CD171: 4 | CE171: 9 | CF171: 13 | CG171: 7 | CH171: 5 | CI171: 0 | CJ171: 0 | CK171: 0 | CL171: 0 | CO171: 1 | CP171: 2 | CQ171: 4
C172: 3ème | D172: A | E172: 43 | F172: 14 | G172: 6 | H172: 8 | I172: 5 | J172: 3 | K172: 6 | L172: 5 | M172: 12 | N172: 3 | O172: 8 | P172: 4 | Q172: 13 | R172: 2 | W172: 1 | X172: 2 | Y172: 4 | Z172: 5 | AA172: 1 | AB172: 1 | AC172: 0 | AD172: 1 | AE172: 1 | AF172: 0 | AG172: 0 | AH172: 0 | AI172: 0 | AJ172: 0 | AK172: 0 | AL172: 0 | AM172: 1 | AN172: 1 | AO172: 0 | AP172: 0 | AQ172: 1 | AR172: 0 | AS172: 0 | AT172: 0 | AU172: 2545 | AV172: 2142 | AW172: 1721 | AX172: 1510 | AY172: 14 | AZ172: 4 | BA172: 7921 | BB172: 1 | BC172: 2 | BD172: 2 | BE172: 3 | BF172: 4 | BG172: 4 | BH172: 4 | BI172: 4 | BJ172: 4 | BK172: 4 | BL172: 1 | BM172: 2 | BN172: 2 | BO172: 2 | BP172: 3 | BQ172: 3 | BR172: 3 | BS172: 3 | BT172: 2548 | BU172: 4690 | BV172: 6 | BW172: 8 | BX172: 5 | BY172: 6 | BZ172: 5 | CA172: 12 | CB172: 3 | CC172: 8 | CD172: 4 | CE172: 13 | CF172: 2 | CI172: 0 | CJ172: 0 | CK172: 0 | CL172: 0 | CO172: 1 | CP172: 2 | CQ172: 5
C173: 4ème | D173: A | E173: 58 | F173: 12 | G173: 7 | H173: 3 | I173: 6 | J173: 1 | K173: 6 | L173: 3 | M173: 7 | N173: 5 | O173: 4 | P173: 1 | Q173: 2 | R173: 8 | W173: 1 | X173: 2 | Y173: 3 | Z173: 6 | AA173: 1 | AB173: 1 | AC173: 1 | AD173: 0 | AE173: 0 | AF173: 1 | AG173: 0 | AH173: 0 | AI173: 0 | AJ173: 0 | AK173: 0 | AL173: 0 | AM173: 1 | AN173: 1 | AO173: 1 | AP173: 0 | AQ173: 0 | AR173: 0 | AS173: 0 | AT173: 0 | AU173: 2545 | AV173: 2142 | AW173: 1883 | AX173: 1294 | AY173: 12 | AZ173: 4 | BA173: 7867 | BB173: 1 | BC173: 2 | BD173: 3 | BE173: 3 | BF173: 3 | BG173: 4 | BH173: 4 | BI173: 4 | BJ173: 4 | BK173: 4 | BL173: 1 | BM173: 2 | BN173: 3 | BO173: 3 | BP173: 3 | BQ173: 3 | BR173: 3 | BS173: 3 | BT173: 2548 | BU173: 4690 | BV173: 7 | BW173: 3 | BX173: 6 | BY173: 6 | BZ173: 3 | CA173: 7 | CB173: 5 | CC173: 4 | CD173: 1 | CE173: 2 | CF173: 8 | CI173: 0 | CJ173: 0 | CK173: 0 | CL173: 0 | CO173: 1 | CP173: 2 | CQ173: 3
C174: 5ème | D174: A | E174: 58 | F174: 12 | G174: 12 | H174: 5 | I174: 6 | J174: 10 | K174: 5 | L174: 12 | M174: 7 | N174: 11 | O174: 1 | P174: 3 | Q174: 9 | R174: 4 | S174: 10 | T174: 2 | W174: 1 | X174: 2 | Y174: 9 | AA174: 1 | AB174: 1 | AC174: 0 | AD174: 0 | AE174: 0 | AF174: 0 | AG174: 0 | AH174: 0 | AI174: 1 | AJ174: 0 | AK174: 0 | AL174: 0 | AM174: 1 | AN174: 1 | AO174: 0 | AP174: 0 | AQ174: 0 | AR174: 0 | AS174: 0 | AT174: 0 | AU174: 2545 | AV174: 2142 | AW174: 802 | AY174: 12 | AZ174: 3 | BA174: 5491 | BB174: 1 | BC174: 2 | BD174: 2 | BE174: 2 | BF174: 2 | BG174: 2 | BH174: 2 | BI174: 2 | BJ174: 3 | BK174: 3 | BL174: 1 | BM174: 2 | BN174: 2 | BO174: 2 | BP174: 2 | BQ174: 2 | BR174: 2 | BS174: 2 | BT174: 2547 | BU174: 4689 | BV174: 12 | BW174: 5 | BX174: 6 | BY174: 5 | BZ174: 12 | CA174: 7 | CB174: 11 | CC174: 1 | CD174: 3 | CE174: 9 | CF174: 4 | CG174: 10 | CH174: 2 | CI174: 0 | CJ174: 0 | CK174: 0 | CL174: 0 | CO174: 1 | CP174: 2
C175: 6ème | D175: A | E175: 92 | F175: 11 | G175: 3 | H175: 11 | I175: 4 | J175: 7 | K175: 11 | L175: 7 | M175: 1 | N175: 3 | O175: 4 | P175: 5 | Q175: 6 | R175: 10 | W175: 1 | X175: 2 | Y175: 4 | Z175: 5 | AA175: 1 | AB175: 1 | AC175: 0 | AD175: 1 | AE175: 1 | AF175: 0 | AG175: 0 | AH175: 0 | AI175: 0 | AJ175: 0 | AK175: 0 | AL175: 0 | AM175: 1 | AN175: 0 | AO175: 0 | AP175: 1 | AQ175: 1 | AR175: 0 | AS175: 0 | AT175: 0 | AU175: 2545 | AV175: 2142 | AW175: 1721 | AX175: 1510 | AY175: 11 | AZ175: 4 | BA175: 7921 | BB175: 1 | BC175: 2 | BD175: 2 | BE175: 3 | BF175: 4 | BG175: 4 | BH175: 4 | BI175: 4 | BJ175: 4 | BK175: 4 | BL175: 1 | BM175: 1 | BN175: 1 | BO175: 2 | BP175: 3 | BQ175: 3 | BR175: 3 | BS175: 3 | BT175: 2548 | BU175: 4690 | BV175: 3 | BW175: 11 | BX175: 4 | BY175: 11 | BZ175: 7 | CA175: 1 | CB175: 3 | CC175: 4 | CD175: 5 | CE175: 6 | CF175: 10 | CI175: 0 | CJ175: 0 | CK175: 0 | CL175: 0 | CO175: 1 | CP175: 4 | CQ175: 5
C176: 8ème | D176: A | E176: 100 | F176: 12 | G176: 3 | H176: 5 | I176: 7 | J176: 8 | K176: 5 | L176: 6 | M176: 12 | N176: 3 | O176: 1 | P176: 4 | Q176: 10 | R176: 2 | S176: 8 | T176: 7 | W176: 1 | X176: 4 | Y176: 9 | Z176: 10 | AA176: 1 | AB176: 0 | AC176: 0 | AD176: 1 | AE176: 0 | AF176: 0 | AG176: 0 | AH176: 0 | AI176: 1 | AJ176: 1 | AK176: 0 | AL176: 0 | AM176: 1 | AN176: 0 | AO176: 0 | AP176: 1 | AQ176: 0 | AR176: 0 | AS176: 0 | AT176: 0 | AU176: 2545 | AV176: 1721 | AW176: 802 | AX176: 627 | AY176: 12 | AZ176: 4 | BA176: 5697 | BB176: 1 | BC176: 1 | BD176: 1 | BE176: 2 | BF176: 2 | BG176: 2 | BH176: 2 | BI176: 2 | BJ176: 3 | BK176: 4 | BL176: 1 | BM176: 1 | BN176: 1 | BO176: 2 | BP176: 2 | BQ176: 2 | BR176: 2 | BS176: 2 | BT176: 2547 | BU176: 4268 | BV176: 3 | BW176: 5 | BX176: 7 | BY176: 5 | BZ176: 6 | CA176: 12 | CB176: 3 | CC176: 1 | CD176: 4 | CE176: 10 | CF176: 2 | CG176: 8 | CH176: 7 | CI176: 0 | CJ176: 0 | CK176: 0 | CL176: 0 | CO176: 1 | CP176: 4 | CQ176: 10
C177: 2ème | D177: A | E177: 100 | F177: 11 | G177: 12 | H177: 11 | I177: 8 | J177: 7 | K177: 11 | L177: 6 | M177: 12 | N177: 4 | O177: 7 | P177: 10 | Q177: 8 | R177: 3 | W177: 1 | X177: 3 | Y177: 5 | Z177: 7 | AA177: 1 | AB177: 0 | AC177: 1 | AD177: 0 | AE177: 1 | AF177: 0 | AG177: 1 | AH177: 0 | AI177: 0 | AJ177: 0 | AK177: 0 | AL177: 0 | AM177: 1 | AN177: 0 | AO177: 1 | AP177: 0 | AQ177: 0 | AR177: 0 | AS177: 1 | AT177: 0 | AU177: 2545 | AV177: 1883 | AW177: 1510 | AX177: 1182 | AY177: 11 | AZ177: 4 | BA177: 7123 | BB177: 1 | BC177: 1 | BD177: 2 | BE177: 2 | BF177: 3 | BG177: 3 | BH177: 4 | BI177: 4 | BJ177: 4 | BK177: 4 | BL177: 1 | BM177: 1 | BN177: 2 | BO177: 2 | BP177: 2 | BQ177: 2 | BR177: 3 | BS177: 3 | BT177: 2548 | BU177: 4431 | BV177: 12 | BW177: 11 | BX177: 8 | BY177: 11 | BZ177: 6 | CA177: 12 | CB177: 4 | CC177: 7 | CD177: 10 | CE177: 8 | CF177: 3 | CI177: 0 | CJ177: 0 | CK177: 0 | CL177: 0 | CO177: 1 | CP177: 3 | CQ177: 7
C178: 4ème | D178: A | E178: 50 | F178: 13 | G178: 7 | H178: 14 | I178: 9 | J178: 5 | K178: 7 | L178: 8 | M178: 14 | N178: 2 | O178: 10 | P178: 9 | Q178: 13 | R178: 4 | S178: 12 | T178: 6 | W178: 1 | X178: 3 | Y178: 6 | AA178: 1 | AB178: 0 | AC178: 1 | AD178: 0 | AE178: 0 | AF178: 1 | AG178: 0 | AH178: 0 | AI178: 0 | AJ178: 0 | AK178: 0 | AL178: 0 | AM178: 1 | AN178: 0 | AO178: 1 | AP178: 0 | AQ178: 0 | AR178: 1 | AS178: 0 | AT178: 0 | AU178: 2545 | AV178: 1883 | AW178: 1294 | AY178: 13 | AZ178: 3 | BA178: 5725 | BB178: 1 | BC178: 1 | BD178: 2 | BE178: 2 | BF178: 2 | BG178: 3 | BH178: 3 | BI178: 3 | BJ178: 3 | BK178: 3 | BL178: 1 | BM178: 1 | BN178: 2 | BO178: 2 | BP178: 2 | BQ178: 3 | BR178: 3 | BS178: 3 | BT178: 2548 | BU178: 4431 | BV178: 7 | BW178: 14 | BX178: 9 | BY178: 7 | BZ178: 8 | CA178: 14 | CB178: 2 | CC178: 10 | CD178: 9 | CE178: 13 | CF178: 4 | CG178: 12 | CH178: 6 | CI178: 0 | CJ178: 0 | CK178: 0 | CL178: 0 | CO178: 1 | CP178: 3 | CQ178: 6
C179: 5ème | D179: A | E179: 43 | F179: 14 | G179: 12 | H179: 1 | I179: 9 | J179: 13 | K179: 4 | L179: 7 | M179: 12 | N179: 13 | O179: 3 | P179: 6 | Q179: 5 | R179: 1 | W179: 3 | X179: 4 | Y179: 8 | AA179: 0 | AB179: 0 | AC179: 1 | AD179: 1 | AE179: 0 | AF179: 0 | AG179: 0 | AH179: 1 | AI179: 0 | AJ179: 0 | AK179: 0 | AL179: 0 | AM179: 0 | AN179: 0 | AO179: 1 | AP179: 0 | AQ179: 0 | AR179: 0 | AS179: 0 | AT179: 1 | AU179: 1883 | AV179: 1721 | AW179: 950 | AY179: 14 | AZ179: 3 | BA179: 4556 | BB179: 0 | BC179: 0 | BD179: 1 | BE179: 2 | BF179: 2 | BG179: 2 | BH179: 2 | BI179: 3 | BJ179: 3 | BK179: 3 | BL179: 0 | BM179: 0 | BN179: 1 | BO179: 1 | BP179: 1 | BQ179: 1 | BR179: 1 | BS179: 2 | BT179: 1885 | BU179: 3606 | BV179: 12 | BW179: 1 | BX179: 9 | BY179: 4 | BZ179: 7 | CA179: 12 | CB179: 13 | CC179: 3 | CD179: 6 | CE179: 5 | CF179: 1 | CI179: 0 | CJ179: 0 | CK179: 2 | CL179: 2 | CO179: 3 | CP179: 8
C180: 6ème | D180: A | E180: 79 | F180: 14 | G180: 14 | H180: 8 | I180: 12 | J180: 10 | K180: 9 | L180: 14 | M180: 6 | N180: 12 | O180: 8 | P180: 10 | Q180: 11 | R180: 13 | W180: 2 | X180: 4 | Y180: 5 | Z180: 6 | AA180: 0 | AB180: 1 | AC180: 0 | AD180: 1 | AE180: 1 | AF180: 1 | AG180: 0 | AH180: 0 | AI180: 0 | AJ180: 0 | AK180: 0 | AL180: 0 | AM180: 0 | AN180: 1 | AO180: 0 | AP180: 1 | AQ180: 1 | AR180: 0 | AS180: 0 | AT180: 0 | AU180: 2142 | AV180: 1721 | AW180: 1510 | AX180: 1294 | AY180: 14 | AZ180: 4 | BA180: 6670 | BB180: 0 | BC180: 1 | BD180: 1 | BE180: 2 | BF180: 3 | BG180: 4 | BH180: 4 | BI180: 4 | BJ180: 4 | BK180: 4 | BL180: 0 | BM180: 1 | BN180: 1 | BO180: 2 | BP180: 3 | BQ180: 3 | BR180: 3 | BS180: 3 | BT180: 2145 | BU180: 3866 | BV180: 14 | BW180: 8 | BX180: 12 | BY180: 9 | BZ180: 14 | CA180: 6 | CB180: 12 | CC180: 8 | CD180: 10 | CE180: 11 | CF180: 13 | CI180: 0 | CJ180: 0 | CK180: 1 | CL180: 1 | CO180: 2 | CP180: 4 | CQ180: 5
C181: 7ème | D181: A | E181: 36 | F181: 14 | G181: 9 | H181: 3 | I181: 12 | J181: 11 | K181: 3 | L181: 9 | M181: 12 | N181: 14 | O181: 7 | P181: 11 | Q181: 13 | R181: 5 | W181: 1 | X181: 2 | Y181: 3 | Z181: 6 | AA181: 1 | AB181: 1 | AC181: 1 | AD181: 0 | AE181: 0 | AF181: 1 | AG181: 0 | AH181: 0 | AI181: 0 | AJ181: 0 | AK181: 0 | AL181: 0 | AM181: 1 | AN181: 1 | AO181: 1 | AP181: 0 | AQ181: 0 | AR181: 0 | AS181: 0 | AT181: 0 | AU181: 2545 | AV181: 2142 | AW181: 1883 | AX181: 1294 | AY181: 14 | AZ181: 4 | BA181: 7867 | BB181: 1 | BC181: 2 | BD181: 3 | BE181: 3 | BF181: 3 | BG181: 4 | BH181: 4 | BI181: 4 | BJ181: 4 | BK181: 4 | BL181: 1 | BM181: 2 | BN181: 3 | BO181: 3 | BP181: 3 | BQ181: 3 | BR181: 3 | BS181: 3 | BT181: 2548 | BU181: 4690 | BV181: 9 | BW181: 3 | BX181: 12 | BY181: 3 | BZ181: 9 | CA181: 12 | CB181: 14 | CC181: 7 | CD181: 11 | CE181: 13 | CF181: 5 | CI181: 0 | CJ181: 0 | CK181: 0 | CL181: 0 | CO181: 1 | CP181: 2 | CQ181: 3
C182: 8ème | D182: A | E182: 44 | F182: 17 | G182: 15 | H182: 12 | I182: 10 | J182: 6 | K182: 10 | L182: 12 | M182: 17 | N182: 18 | O182: 16 | P182: 6 | Q182: 15 | R182: 8 | W182: 1 | X182: 2 | Y182: 6 | Z182: 7 | AA182: 1 | AB182: 1 | AC182: 0 | AD182: 0 | AE182: 0 | AF182: 1 | AG182: 1 | AH182: 0 | AI182: 0 | AJ182: 0 | AK182: 0 | AL182: 0 | AM182: 1 | AN182: 1 | AO182: 0 | AP182: 0 | AQ182: 0 | AR182: 0 | AS182: 1 | AT182: 0 | AU182: 2545 | AV182: 2142 | AW182: 1294 | AX182: 1182 | AY182: 17 | AZ182: 4 | BA182: 7166 | BB182: 1 | BC182: 2 | BD182: 2 | BE182: 2 | BF182: 2 | BG182: 3 | BH182: 4 | BI182: 4 | BJ182: 4 | BK182: 4 | BL182: 1 | BM182: 2 | BN182: 2 | BO182: 2 | BP182: 2 | BQ182: 2 | BR182: 3 | BS182: 3 | BT182: 2548 | BU182: 4690 | BV182: 15 | BW182: 12 | BX182: 10 | BY182: 10 | BZ182: 12 | CA182: 17 | CB182: 18 | CC182: 16 | CD182: 6 | CE182: 15 | CF182: 8 | CI182: 0 | CJ182: 0 | CK182: 0 | CL182: 0 | CO182: 1 | CP182: 2 | CQ182: 7
B183: Mauquenchy | C183: 1ère | D183: A | E183: 67 | F183: 12 | G183: 7 | H183: 12 | I183: 11 | J183: 3 | K183: 7 | L183: 4 | M183: 11 | N183: 12 | O183: 3 | P183: 6 | Q183: 10 | R183: 9 | W183: 1 | X183: 3 | Y183: 4 | Z183: 5 | AA183: 1 | AB183: 0 | AC183: 1 | AD183: 1 | AE183: 1 | AF183: 0 | AG183: 0 | AH183: 0 | AI183: 0 | AJ183: 0 | AK183: 0 | AL183: 0 | AM183: 1 | AN183: 0 | AO183: 1 | AP183: 1 | AQ183: 0 | AR183: 0 | AS183: 0 | AT183: 0 | AU183: 2545 | AV183: 1883 | AW183: 1721 | AX183: 1510 | AY183: 12 | AZ183: 4 | BA183: 7662 | BB183: 1 | BC183: 1 | BD183: 2 | BE183: 3 | BF183: 4 | BG183: 4 | BH183: 4 | BI183: 4 | BJ183: 4 | BK183: 4 | BL183: 1 | BM183: 1 | BN183: 2 | BO183: 3 | BP183: 3 | BQ183: 3 | BR183: 3 | BS183: 3 | BT183: 2548 | BU183: 4431 | BV183: 7 | BW183: 12 | BX183: 11 | BY183: 7 | BZ183: 4 | CA183: 11 | CB183: 12 | CC183: 3 | CD183: 6 | CE183: 10 | CF183: 9 | CI183: 0 | CJ183: 0 | CK183: 0 | CL183: 0 | CO183: 1 | CP183: 3 | CQ183: 4
C184: 2ème | D184: A | E184: 57 | F184: 14 | G184: 11 | H184: 8 | I184: 7 | J184: 9 | K184: 11 | L184: 7 | M184: 12 | N184: 8 | O184: 13 | P184: 5 | Q184: 14 | R184: 6 | S184: 9 | T184: 10 | W184: 1 | X184: 2 | Y184: 4 | Z184: 9 | AA184: 1 | AB184: 1 | AC184: 0 | AD184: 1 | AE184: 0 | AF184: 0 | AG184: 0 | AH184: 0 | AI184: 1 | AJ184: 0 | AK184: 0 | AL184: 0 | AM184: 1 | AN184: 1 | AO184: 0 | AP184: 1 | AQ184: 0 | AR184: 0 | AS184: 0 | AT184: 0 | AU184: 2545 | AV184: 2142 | AW184: 1721 | AX184: 802 | AY184: 14 | AZ184: 4 | BA184: 7213 | BB184: 1 | BC184: 2 | BD184: 2 | BE184: 3 | BF184: 3 | BG184: 3 | BH184: 3 | BI184: 3 | BJ184: 4 | BK184: 4 | BL184: 1 | BM184: 2 | BN184: 2 | BO184: 3 | BP184: 3 | BQ184: 3 | BR184: 3 | BS184: 3 | BT184: 2548 | BU184: 4690 | BV184: 11 | BW184: 8 | BX184: 7 | BY184: 11 | BZ184: 7 | CA184: 12 | CB184: 8 | CC184: 13 | CD184: 5 | CE184: 14 | CF184: 6 | CG184: 9 | CH184: 10 | CI184: 0 | CJ184: 0 | CK184: 0 | CL184: 0 | CO184: 1 | CP184: 2 | CQ184: 4
C185: 3ème | D185: A | E185: 56 | F185: 18 | G185: 1 | H185: 4 | I185: 2 | J185: 17 | K185: 1 | L185: 4 | M185: 17 | N185: 10 | O185: 16 | P185: 12 | Q185: 14 | R185: 18 | S185: 15 | T185: 13 | W185: 1 | X185: 2 | Y185: 3 | AA185: 1 | AB185: 1 | AC185: 1 | AD185: 0 | AE185: 0 | AF185: 0 | AG185: 0 | AH185: 0 | AI185: 0 | AJ185: 0 | AK185: 0 | AL185: 0 | AM185: 1 | AN185: 1 | AO185: 0 | AP185: 0 | AQ185: 0 | AR185: 0 | AS185: 0 | AT185: 0 | AU185: 2545 | AV185: 2142 | AW185: 1883 | AY185: 18 | AZ185: 3 | BA185: 6572 | BB185: 1 | BC185: 2 | BD185: 3 | BE185: 3 | BF185: 3 | BG185: 3 | BH185: 3 | BI185: 3 | BJ185: 3 | BK185: 3 | BL185: 1 | BM185: 2 | BN185: 2 | BO185: 2 | BP185: 2 | BQ185: 2 | BR185: 2 | BS185: 2 | BT185: 2547 | BU185: 4689 | BV185: 1 | BW185: 4 | BX185: 2 | BY185: 1 | BZ185: 4 | CA185: 17 | CB185: 10 | CC185: 16 | CD185: 12 | CE185: 14 | CF185: 18 | CG185: 15 | CH185: 13 | CI185: 0 | CJ185: 0 | CK185: 0 | CL185: 0 | CO185: 1 | CP185: 2
C186: 4ème | D186: A | E186: 56 | F186: 18 | G186: 8 | H186: 1 | I186: 4 | J186: 12 | K186: 4 | L186: 8 | M186: 18 | N186: 1 | O186: 12 | P186: 6 | Q186: 14 | R186: 17 | W186: 1 | X186: 2 | Y186: 4 | Z186: 5 | AA186: 1 | AB186: 1 | AC186: 0 | AD186: 1 | AE186: 1 | AF186: 0 | AG186: 0 | AH186: 0 | AI186: 0 | AJ186: 0 | AK186: 0 | AL186: 0 | AM186: 1 | AN186: 1 | AO186: 0 | AP186: 1 | AQ186: 0 | AR186: 0 | AS186: 0 | AT186: 0 | AU186: 2545 | AV186: 2142 | AW186: 1721 | AX186: 1510 | AY186: 18 | AZ186: 4 | BA186: 7921 | BB186: 1 | BC186: 2 | BD186: 2 | BE186: 3 | BF186: 4 | BG186: 4 | BH186: 4 | BI186: 4 | BJ186: 4 | BK186: 4 | BL186: 1 | BM186: 2 | BN186: 2 | BO186: 3 | BP186: 3 | BQ186: 3 | BR186: 3 | BS186: 3 | BT186: 2548 | BU186: 4690 | BV186: 8 | BW186: 1 | BX186: 4 | BY186: 4 | BZ186: 8 | CA186: 18 | CB186: 1 | CC186: 12 | CD186: 6 | CE186: 14 | CF186: 17 | CI186: 0 | CJ186: 0 | CK186: 0 | CL186: 0 | CO186: 1 | CP186: 2 | CQ186: 4
C187: 5ème | D187: A | E187: 79 | F187: 14 | G187: 6 | H187: 11 | I187: 4 | J187: 13 | K187: 6 | L187: 13 | M187: 8 | N187: 12 | O187: 14 | P187: 11 | Q187: 4 | R187: 10 | W187: 1 | X187: 2 | Y187: 6 | Z187: 7 | AA187: 1 | AB187: 1 | AC187: 0 | AD187: 0 | AE187: 0 | AF187: 1 | AG187: 1 | AH187: 0 | AI187: 0 | AJ187: 0 | AK187: 0 | AL187: 0 | AM187: 1 | AN187: 0 | AO187: 0 | AP187: 0 | AQ187: 0 | AR187: 1 | AS187: 1 | AT187: 0 | AU187: 2545 | AV187: 2142 | AW187: 1294 | AX187: 1182 | AY187: 14 | AZ187: 4 | BA187: 7166 | BB187: 1 | BC187: 2 | BD187: 2 | BE187: 2 | BF187: 2 | BG187: 3 | BH187: 4 | BI187: 4 | BJ187: 4 | BK187: 4 | BL187: 1 | BM187: 1 | BN187: 1 | BO187: 1 | BP187: 1 | BQ187: 2 | BR187: 3 | BS187: 3 | BT187: 2548 | BU187: 4690 | BV187: 6 | BW187: 11 | BX187: 4 | BY187: 6 | BZ187: 13 | CA187: 8 | CB187: 12 | CC187: 14 | CD187: 11 | CE187: 4 | CF187: 10 | CI187: 0 | CJ187: 0 | CK187: 0 | CL187: 0 | CO187: 1 | CP187: 6 | CQ187: 7
C188: 7ème | D188: A | E188: 100 | F188: 13 | G188: 11 | H188: 8 | I188: 4 | J188: 9 | K188: 9 | L188: 4 | M188: 11 | N188: 8 | O188: 12 | P188: 6 | Q188: 5 | R188: 3 | W188: 1 | X188: 2 | Y188: 3 | Z188: 4 | AA188: 1 | AB188: 1 | AC188: 1 | AD188: 1 | AE188: 0 | AF188: 0 | AG188: 0 | AH188: 0 | AI188: 0 | AJ188: 0 | AK188: 0 | AL188: 0 | AM188: 0 | AN188: 1 | AO188: 1 | AP188: 1 | AQ188: 0 | AR188: 0 | AS188: 0 | AT188: 0 | AU188: 2545 | AV188: 2142 | AW188: 1883 | AX188: 1721 | AY188: 13 | AZ188: 4 | BA188: 8294 | BB188: 1 | BC188: 2 | BD188: 3 | BE188: 4 | BF188: 4 | BG188: 4 | BH188: 4 | BI188: 4 | BJ188: 4 | BK188: 4 | BL188: 0 | BM188: 1 | BN188: 2 | BO188: 3 | BP188: 3 | BQ188: 3 | BR188: 3 | BS188: 3 | BT188: 2548 | BU188: 4690 | BV188: 11 | BW188: 8 | BX188: 4 | BY188: 9 | BZ188: 4 | CA188: 11 | CB188: 8 | CC188: 12 | CD188: 6 | CE188: 5 | CF188: 3 | CI188: 0 | CJ188: 0 | CK188: 1 | CL188: 0 | CO188: 2 | CP188: 3 | CQ188: 4
C189: 8ème | D189: A | E189: 69 | F189: 16 | G189: 6 | H189: 1 | I189: 7 | J189: 13 | K189: 4 | L189: 6 | M189: 1 | N189: 8 | O189: 7 | P189: 11 | Q189: 9 | R189: 13 | W189: 2 | X189: 3 | Y189: 5 | Z189: 8 | AA189: 0 | AB189: 1 | AC189: 1 | AD189: 0 | AE189: 1 | AF189: 0 | AG189: 0 | AH189: 1 | AI189: 0 | AJ189: 0 | AK189: 0 | AL189: 0 | AM189: 0 | AN189: 1 | AO189: 1 | AP189: 0 | AQ189: 1 | AR189: 0 | AS189: 0 | AT189: 0 | AU189: 2142 | AV189: 1883 | AW189: 1510 | AX189: 950 | AY189: 16 | AZ189: 4 | BA189: 6488 | BB189: 0 | BC189: 1 | BD189: 2 | BE189: 2 | BF189: 3 | BG189: 3 | BH189: 3 | BI189: 4 | BJ189: 4 | BK189: 4 | BL189: 0 | BM189: 1 | BN189: 2 | BO189: 2 | BP189: 3 | BQ189: 3 | BR189: 3 | BS189: 3 | BT189: 2145 | BU189: 4028 | BV189: 6 | BW189: 1 | BX189: 7 | BY189: 4 | BZ189: 6 | CA189: 1 | CB189: 8 | CC189: 7 | CD189: 11 | CE189: 9 | CF189: 13 | CI189: 0 | CJ189: 0 | CK189: 1 | CL189: 1 | CO189: 2 | CP189: 3 | CQ189: 5
A190: 2022-03-02 | B190: Vincennes | C190: 1ère | D190: A | E190: 33 | F190: 13 | G190: 11 | H190: 1 | I190: 8 | J190: 15 | K190: 8 | L190: 11 | M190: 15 | N190: 5 | O190: 9 | P190: 12 | Q190: 4 | R190: 7 | S190: 13 | T190: 1 | W190: 1 | X190: 2 | Y190: 3 | Z190: 10 | AA190: 1 | AB190: 1 | AC190: 1 | AD190: 0 | AE190: 0 | AF190: 0 | AG190: 0 | AH190: 0 | AI190: 0 | AJ190: 1 | AK190: 0 | AL190: 0 | AM190: 1 | AN190: 1 | AO190: 0 | AP190: 0 | AQ190: 0 | AR190: 0 | AS190: 0 | AT190: 0 | AU190: 2545 | AV190: 2142 | AW190: 1883 | AX190: 627 | AY190: 13 | AZ190: 4 | BA190: 7199 | BB190: 1 | BC190: 2 | BD190: 3 | BE190: 3 | BF190: 3 | BG190: 3 | BH190: 3 | BI190: 3 | BJ190: 3 | BK190: 4 | BL190: 1 | BM190: 2 | BN190: 2 | BO190: 2 | BP190: 2 | BQ190: 2 | BR190: 2 | BS190: 2 | BT190: 2547 | BU190: 4689 | BV190: 11 | BW190: 1 | BX190: 8 | BY190: 8 | BZ190: 11 | CA190: 15 | CB190: 5 | CC190: 9 | CD190: 12 | CE190: 4 | CF190: 7 | CG190: 13 | CH190: 1 | CI190: 0 | CJ190: 0 | CK190: 0 | CL190: 0 | CO190: 1 | CP190: 2 | CQ190: 10
C191: 3ème | D191: A | E191: 50 | F191: 13 | G191: 14 | H191: 2 | I191: 9 | J191: 1 | K191: 7 | L191: 14 | M191: 13 | N191: 1 | O191: 12 | P191: 11 | Q191: 9 | R191: 6 | S191: 10 | T191: 5 | W191: 2 | X191: 4 | Y191: 7 | AA191: 0 | AB191: 1 | AC191: 0 | AD191: 1 | AE191: 0 | AF191: 0 | AG191: 1 | AH191: 0 | AI191: 0 | AJ191: 0 | AK191: 0 | AL191: 0 | AM191: 0 | AN191: 1 | AO191: 0 | AP191: 0 | AQ191: 0 | AR191: 0 | AS191: 1 | AT191: 0 | AU191: 2142 | AV191: 1721 | AW191: 1182 | AY191: 13 | AZ191: 3 | BA191: 5047 | BB191: 0 | BC191: 1 | BD191: 1 | BE191: 2 | BF191: 2 | BG191: 2 | BH191: 3 | BI191: 3 | BJ191: 3 | BK191: 3 | BL191: 0 | BM191: 1 | BN191: 1 | BO191: 1 | BP191: 1 | BQ191: 1 | BR191: 2 | BS191: 2 | BT191: 2144 | BU191: 3865 | BV191: 14 | BW191: 2 | BX191: 9 | BY191: 7 | BZ191: 14 | CA191: 13 | CB191: 1 | CC191: 12 | CD191: 11 | CE191: 9 | CF191: 6 | CG191: 10 | CH191: 5 | CI191: 0 | CJ191: 0 | CK191: 1 | CL191: 1 | CO191: 2 | CP191: 7
C192: 4ème | D192: A | E192: 43 | F192: 14 | G192: 6 | H192: 7 | I192: 2 | J192: 11 | K192: 14 | L192: 7 | M192: 6 | N192: 3 | O192: 4 | P192: 13 | Q192: 12 | R192: 2 | S192: 1 | T192: 8 | W192: 2 | X192: 3 | Y192: 8 | AA192: 0 | AB192: 1 | AC192: 1 | AD192: 0 | AE192: 0 | AF192: 0 | AG192: 0 | AH192: 1 | AI192: 0 | AJ192: 0 | AK192: 0 | AL192: 0 | AM192: 0 | AN192: 1 | AO192: 1 | AP192: 0 | AQ192: 0 | AR192: 0 | AS192: 0 | AT192: 1 | AU192: 2142 | AV192: 1883 | AW192: 950 | AY192: 14 | AZ192: 3 | BA192: 4978 | BB192: 0 | BC192: 1 | BD192: 2 | BE192: 2 | BF192: 2 | BG192: 2 | BH192: 2 | BI192: 3 | BJ192: 3 | BK192: 3 | BL192: 0 | BM192: 1 | BN192: 2 | BO192: 2 | BP192: 2 | BQ192: 2 | BR192: 2 | BS192: 3 | BT192: 2145 | BU192: 4028 | BV192: 6 | BW192: 7 | BX192: 2 | BY192: 14 | BZ192: 7 | CA192: 6 | CB192: 3 | CC192: 4 | CD192: 13 | CE192: 12 | CF192: 2 | CG192: 1 | CH192: 8 | CI192: 0 | CJ192: 0 | CK192: 1 | CL192: 1 | CO192: 2 | CP192: 3 | CQ192: 8
C193: 5ème | D193: A | E193: 45 | F193: 11 | G193: 1 | H193: 5 | I193: 3 | J193: 6 | K193: 5 | L193: 7 | M193: 2 | N193: 3 | O193: 10 | P193: 6 | Q193: 9 | R193: 11 | S193: 4 | T193: 1 | W193: 1 | X193: 4 | Y193: 6 | Z193: 10 | AA193: 1 | AB193: 0 | AC193: 0 | AD193: 1 | AE193: 0 | AF193: 1 | AG193: 0 | AH193: 0 | AI193: 0 | AJ193: 1 | AK193: 0 | AL193: 0 | AM193: 1 | AN193: 0 | AO193: 0 | AP193: 1 | AQ193: 0 | AR193: 0 | AS193: 0 | AT193: 0 | AU193: 2545 | AV193: 1721 | AW193: 1294 | AX193: 627 | AY193: 11 | AZ193: 4 | BA193: 6189 | BB193: 1 | BC193: 1 | BD193: 1 | BE193: 2 | BF193: 2 | BG193: 3 | BH193: 3 | BI193: 3 | BJ193: 3 | BK193: 4 | BL193: 1 | BM193: 1 | BN193: 1 | BO193: 2 | BP193: 2 | BQ193: 2 | BR193: 2 | BS193: 2 | BT193: 2547 | BU193: 4268 | BV193: 1 | BW193: 5 | BX193: 3 | BY193: 5 | BZ193: 7 | CA193: 2 | CB193: 3 | CC193: 10 | CD193: 6 | CE193: 9 | CF193: 11 | CG193: 4 | CH193: 1 | CI193: 0 | CJ193: 0 | CK193: 0 | CL193: 0 | CO193: 1 | CP193: 4 | CQ193: 10
C194: 6ème | D194: A | E194: 40 | F194: 10 | G194: 9 | H194: 2 | I194: 3 | J194: 7 | K194: 9 | L194: 2 | M194: 5 | N194: 10 | O194: 3 | P194: 6 | Q194: 1 | R194: 8 | S194: 7 | T194: 4 | W194: 1 | X194: 2 | Y194: 5 | Z194: 9 | AA194: 1 | AB194: 1 | AC194: 0 | AD194: 0 | AE194: 1 | AF194: 0 | AG194: 0 | AH194: 0 | AI194: 1 | AJ194: 0 | AK194: 0 | AL194: 0 | AM194: 1 | AN194: 1 | AO194: 0 | AP194: 0 | AQ194: 1 | AR194: 0 | AS194: 0 | AT194: 0 | AU194: 2545 | AV194: 2142 | AW194: 1510 | AX194: 802 | AY194: 10 | AZ194: 4 | BA194: 7002 | BB194: 1 | BC194: 2 | BD194: 2 | BE194: 2 | BF194: 3 | BG194: 3 | BH194: 3 | BI194: 3 | BJ194: 4 | BK194: 4 | BL194: 1 | BM194: 2 | BN194: 2 | BO194: 2 | BP194: 3 | BQ194: 3 | BR194: 3 | BS194: 3 | BT194: 2548 | BU194: 4690 | BV194: 9 | BW194: 2 | BX194: 3 | BY194: 9 | BZ194: 2 | CA194: 5 | CB194: 10 | CC194: 3 | CD194: 6 | CE194: 1 | CF194: 8 | CG194: 7 | CH194: 4 | CI194: 0 | CJ194: 0 | CK194: 0 | CL194: 0 | CO194: 1 | CP194: 2 | CQ194: 5
C195: 7ème | D195: A | E195: 53 | F195: 15 | G195: 10 | H195: 12 | I195: 8 | J195: 5 | K195: 10 | L195: 5 | M195: 11 | N195: 4 | O195: 15 | P195: 12 | Q195: 3 | R195: 14 | S195: 8 | T195: 9 | W195: 1 | X195: 2 | Y195: 6 | Z195: 9 | AA195: 1 | AB195: 1 | AC195: 0 | AD195: 0 | AE195: 0 | AF195: 1 | AG195: 0 | AH195: 0 | AI195: 1 | AJ195: 0 | AK195: 0 | AL195: 0 | AM195: 1 | AN195: 0 | AO195: 0 | AP195: 0 | AQ195: 0 | AR195: 1 | AS195: 0 | AT195: 0 | AU195: 2545 | AV195: 2142 | AW195: 1294 | AX195: 802 | AY195: 15 | AZ195: 4 | BA195: 6785 | BB195: 1 | BC195: 2 | BD195: 2 | BE195: 2 | BF195: 2 | BG195: 3 | BH195: 3 | BI195: 3 | BJ195: 4 | BK195: 4 | BL195: 1 | BM195: 1 | BN195: 1 | BO195: 1 | BP195: 1 | BQ195: 2 | BR195: 2 | BS195: 2 | BT195: 2547 | BU195: 4689 | BV195: 10 | BW195: 12 | BX195: 8 | BY195: 10 | BZ195: 5 | CA195: 11 | CB195: 4 | CC195: 15 | CD195: 12 | CE195: 3 | CF195: 14 | CG195: 8 | CH195: 9 | CI195: 0 | CJ195: 0 | CK195: 0 | CL195: 0 | CO195: 1 | CP195: 6 | CQ195: 9
B196: Cagnes | C196: 1ère | D196: A | E196: 29 | F196: 14 | G196: 3 | H196: 12 | I196: 1 | J196: 6 | K196: 12 | L196: 4 | M196: 5 | N196: 3 | O196: 13 | P196: 1 | Q196: 7 | R196: 2 | S196: 6 | T196: 14 | W196: 1 | X196: 4 | Y196: 6 | Z196: 9 | AA196: 1 | AB196: 0 | AC196: 0 | AD196: 1 | AE196: 0 | AF196: 1 | AG196: 0 | AH196: 0 | AI196: 1 | AJ196: 0 | AK196: 0 | AL196: 0 | AM196: 1 | AN196: 0 | AO196: 0 | AP196: 1 | AQ196: 0 | AR196: 1 | AS196: 0 | AT196: 0 | AU196: 2545 | AV196: 1721 | AW196: 1294 | AX196: 802 | AY196: 14 | AZ196: 4 | BA196: 6365 | BB196: 1 | BC196: 1 | BD196: 1 | BE196: 2 | BF196: 2 | BG196: 3 | BH196: 3 | BI196: 3 | BJ196: 4 | BK196: 4 | BL196: 1 | BM196: 1 | BN196: 1 | BO196: 2 | BP196: 2 | BQ196: 3 | BR196: 3 | BS196: 3 | BT196: 2548 | BU196: 4269 | BV196: 3 | BW196: 12 | BX196: 1 | BY196: 12 | BZ196: 4 | CA196: 5 | CB196: 3 | CC196: 13 | CD196: 1 | CE196: 7 | CF196: 2 | CG196: 6 | CH196: 14 | CI196: 0 | CJ196: 0 | CK196: 0 | CL196: 0 | CO196: 1 | CP196: 4 | CQ196: 6
C197: 2ème | D197: A | E197: 82 | F197: 11 | G197: 2 | H197: 8 | I197: 10 | J197: 5 | K197: 10 | L197: 5 | M197: 3 | N197: 4 | O197: 11 | P197: 1 | Q197: 7 | R197: 2 | S197: 8 | T197: 6 | W197: 1 | X197: 2 | Y197: 8 | Z197: 9 | AA197: 1 | AB197: 1 | AC197: 0 | AD197: 0 | AE197: 0 | AF197: 0 | AG197: 0 | AH197: 1 | AI197: 1 | AJ197: 0 | AK197: 0 | AL197: 0 | AM197: 1 | AN197: 0 | AO197: 0 | AP197: 0 | AQ197: 0 | AR197: 0 | AS197: 0 | AT197: 1 | AU197: 2545 | AV197: 2142 | AW197: 950 | AX197: 802 | AY197: 11 | AZ197: 4 | BA197: 6441 | BB197: 1 | BC197: 2 | BD197: 2 | BE197: 2 | BF197: 2 | BG197: 2 | BH197: 2 | BI197: 3 | BJ197: 4 | BK197: 4 | BL197: 1 | BM197: 1 | BN197: 1 | BO197: 1 | BP197: 1 | BQ197: 1 | BR197: 1 | BS197: 2 | BT197: 2547 | BU197: 4689 | BV197: 2 | BW197: 8 | BX197: 10 | BY197: 10 | BZ197: 5 | CA197: 3 | CB197: 4 | CC197: 11 | CD197: 1 | CE197: 7 | CF197: 2 | CG197: 8 | CH197: 6 | CI197: 0 | CJ197: 0 | CK197: 0 | CL197: 0 | CO197: 1 | CP197: 8 | CQ197: 9
C198: 3ème | D198: A | E198: 50 | F198: 10 | G198: 9 | H198: 7 | I198: 5 | J198: 10 | K198: 5 | L198: 9 | M198: 10 | N198: 2 | O198: 7 | P198: 6 | Q198: 3 | R198: 4 | W198: 1 | X198: 2 | Y198: 3 | Z198: 5 | AA198: 1 | AB198: 1 | AC198: 1 | AD198: 0 | AE198: 1 | AF198: 0 | AG198: 0 | AH198: 0 | AI198: 0 | AJ198: 0 | AK198: 0 | AL198: 0 | AM198: 1 | AN198: 1 | AO198: 0 | AP198: 0 | AQ198: 1 | AR198: 0 | AS198: 0 | AT198: 0 | AU198: 2545 | AV198: 2142 | AW198: 1883 | AX198: 1510 | AY198: 10 | AZ198: 4 | BA198: 8083 | BB198: 1 | BC198: 2 | BD198: 3 | BE198: 3 | BF198: 4 | BG198: 4 | BH198: 4 | BI198: 4 | BJ198: 4 | BK198: 4 | BL198: 1 | BM198: 2 | BN198: 2 | BO198: 2 | BP198: 3 | BQ198: 3 | BR198: 3 | BS198: 3 | BT198: 2548 | BU198: 4690 | BV198: 9 | BW198: 7 | BX198: 5 | BY198: 5 | BZ198: 9 | CA198: 10 | CB198: 2 | CC198: 7 | CD198: 6 | CE198: 3 | CF198: 4 | CI198: 0 | CJ198: 0 | CK198: 0 | CL198: 0 | CO198: 1 | CP198: 2 | CQ198: 5
C199: 4ème | D199: A | E199: 57 | F199: 13 | G199: 6 | H199: 10 | I199: 5 | J199: 13 | K199: 5 | L199: 13 | M199: 3 | N199: 10 | O199: 6 | P199: 14 | Q199: 2 | R199: 12 | W199: 1 | X199: 2 | Y199: 4 | Z199: 5 | AA199: 1 | AB199: 1 | AC199: 0 | AD199: 1 | AE199: 1 | AF199: 0 | AG199: 0 | AH199: 0 | AI199: 0 | AJ199: 0 | AK199: 0 | AL199: 0 | AM199: 1 | AN199: 0 | AO199: 0 | AP199: 1 | AQ199: 1 | AR199: 0 | AS199: 0 | AT199: 0 | AU199: 2545 | AV199: 2142 | AW199: 1721 | AX199: 1510 | AY199: 13 | AZ199: 4 | BA199: 7921 | BB199: 1 | BC199: 2 | BD199: 2 | BE199: 3 | BF199: 4 | BG199: 4 | BH199: 4 | BI199: 4 | BJ199: 4 | BK199: 4 | BL199: 1 | BM199: 1 | BN199: 1 | BO199: 2 | BP199: 3 | BQ199: 3 | BR199: 3 | BS199: 3 | BT199: 2548 | BU199: 4690 | BV199: 6 | BW199: 10 | BX199: 5 | BY199: 5 | BZ199: 13 | CA199: 3 | CB199: 10 | CC199: 6 | CD199: 14 | CE199: 2 | CF199: 12 | CI199: 0 | CJ199: 0 | CK199: 0 | CL199: 0 | CO199: 1 | CP199: 4 | CQ199: 5
C200: 5ème | D200: A | E200: 40 | F200: 10 | G200: 8 | H200: 5 | I200: 3 | J200: 4 | K200: 8 | L200: 4 | M200: 9 | N200: 5 | O200: 6 | P200: 10 | Q200: 7 | R200: 3 | W200: 1 | X200: 2 | Y200: 4 | Z200: 8 | AA200: 1 | AB200: 1 | AC200: 0 | AD200: 1 | AE200: 0 | AF200: 0 | AG200: 0 | AH200: 1 | AI200: 0 | AJ200: 0 | AK200: 0 | AL200: 0 | AM200: 1 | AN200: 0 | AO200: 0 | AP200: 1 | AQ200: 0 | AR200: 0 | AS200: 0 | AT200: 1 | AU200: 2545 | AV200: 2142 | AW200: 1721 | AX200: 950 | AY200: 10 | AZ200: 4 | BA200: 7361 | BB200: 1 | BC200: 2 | BD200: 2 | BE200: 3 | BF200: 3 | BG200: 3 | BH200: 3 | BI200: 4 | BJ200: 4 | BK200: 4 | BL200: 1 | BM200: 1 | BN200: 1 | BO200: 2 | BP200: 2 | BQ200: 2 | BR200: 2 | BS200: 3 | BT200: 2548 | BU200: 4690 | BV200: 8 | BW200: 5 | BX200: 3 | BY200: 8 | BZ200: 4 | CA200: 9 | CB200: 5 | CC200: 6 | CD200: 10 | CE200: 7 | CF200: 3 | CI200: 0 | CJ200: 0 | CK200: 0 | CL200: 0 | CO200: 1 | CP200: 4 | CQ200: 8
... 362 more rows
